{"text_format":"1","workbook":"xlsx","n_sheets":27,"sheets":["Instructions et configuration","mars07","mars14","mars21","mars28","avr04","avr11","avr18","avr25","mai02","mai09","mai16","mai 23","mai 30","juin 06","juin 13","juin 20","juin 27","Juillet 4","Juillet 11","Juillet 18","Juillet 25","Aout 01","Aout 08","Aout 15","Aout 22","Semaine type"],"not_rendered":{"charts":0,"images":0,"macros":1,"external_links":1,"defined_names":330,"comments":0,"pivot_tables":0},"unopened":[],"bounds":{"document_bytes":16777216,"sheet_cells":100000,"rows_first":2000,"rows_last":500,"rows_between":2000,"halvings":0,"cell_chars":16384,"cell_head_chars":4096},"cells_cut":0,"cells_raw":0,"read":"whole","date_system":"1900"}

{"sheet":"Instructions et configuration","index":0,"n_rows":19,"n_cols":9,"rows_kept":19,"cut":false,"hidden":false,"merged":[[11,7,11,8],[4,7,4,8],[6,7,6,8],[8,7,8,8],[10,7,10,8],[3,2,3,4],[5,2,5,4],[7,2,7,4],[9,2,9,4],[3,7,3,8],[5,7,5,8],[7,7,7,8],[9,7,9,8]]}
[]
[null,"Instructions et configuration"]
[]
[null,1,"Dans le tableau Cours ci-dessous, tapez le nom des cours dont vous voulez effectuer le suivi dans cette planification.",null,null,null,5,"Entrez une date de début pour votre planification dans la cellule A5."]
[]
[null,2,"Dans le tableau Activités, également ci-dessous, modifiez les exemples d’activités en fonction de vos besoins. ",null,null,null,6,"Dans la ligne 4, utilisez la liste déroulante pour ajouter vos cours à la planification. "]
[]
[null,3,"Dans la cellule I14, définissez le nombre de lignes que vous voulez utiliser pour les devoirs quotidiens.",null,null,null,7,"En dessous de chaque cours, ajoutez vos devoirs dans la colonne  Devoirs ."]
[]
[null,4,"Dans une feuille de planification, telle que Sept 12, effectuez les étapes 5 à 9.",null,null,null,8,"Évaluez le nombre d’heures dont vous aurez besoin pour chaque devoir dans la colonne des heures, qui se présente sous la forme d’une icône d’horloge."]
[]
[null,null,null,null,null,null,9,"Lorsque votre travail est terminé, double-cliquez sur la colonne Terminé, identifiée par une coche, en regard du devoir."]
[]
[null,null,"Cours",null,"Activités",null,null,"Nombre de lignes pour chaque jour :",5]
[null,null,"Maths 101"]
[null,null,"Anglais 105"]
[null,null,"Français 103"]
[null,null,"Sciences 101"]
[null,null,"Histoire 101"]

{"sheet":"mars07","index":1,"n_rows":103,"n_cols":24,"rows_kept":103,"cut":false,"hidden":false,"merged":[[3,21,3,23],[16,11,20,11],[21,11,22,11],[11,13,11,14],[3,3,3,5],[3,6,3,8],[3,9,3,11],[3,12,3,14],[3,15,3,17],[3,18,3,20],[6,5,9,5],[11,5,12,5],[6,8,7,8],[11,8,12,8],[16,8,17,8]]}
[]
[null,"Social networks"]
[]
[null,"Entrez la date de début","Totaux","Facebook Chambéry",null,null,"Twitter Chambéry",null,null,"FB Annecy",null,null,"Twitter Annecy",null,null,"Viadeo FS",null,null,"Linkedin FS",null,null,"FB Skyline"]
[null,"2016-03-07",null,null,null,"THEME",null,null,"THEME",null,null,"THEME",null,null,"THEME",null,null,"THEME",null,null,"THEME",null,null,"THEME"]
[]
[null,{"$f":"PlanifierJour","v":"2016-03-07"},{"$f":"TotauxHeuresQuotidiennes","v":0},1,null,"Découvrir le patrimoine de chambéry",1,null,"Citation livre de la jungle",1,null,"offre d'emploi",1,null,"Citation voix",null,null,null,1,null,"livre de la "]
[null,{"$f":"PlanifierJour","v":""},{"$f":"TotauxHeuresQuotidiennes","v":""},null,null,null,null,null,null,null,null,"GRUFFY",null,null,null,null,null,null,null,null,"jungle"]
[null,{"$f":"PlanifierJour","v":""},{"$f":"TotauxHeuresQuotidiennes","v":""}]
[null,{"$f":"PlanifierJour","v":""},{"$f":"TotauxHeuresQuotidiennes","v":""}]
[null,{"$f":"PlanifierJour","v":""},{"$f":"TotauxHeuresQuotidiennes","v":""}]
[null,{"$f":"PlanifierJour","v":"2016-03-08"},{"$f":"TotauxHeuresQuotidiennes","v":0},1,null,"offre d'emploi aix les bains",1,null,"Citation livre de la jungle",1,null,"visite",1,"Citation livre de la jungle"]
[null,{"$f":"PlanifierJour","v":""},{"$f":"TotauxHeuresQuotidiennes","v":""},null,null,null,null,null,null,null,null,"de la miellerie"]
[null,{"$f":"PlanifierJour","v":""},{"$f":"TotauxHeuresQuotidiennes","v":""}]
[null,{"$f":"PlanifierJour","v":""},{"$f":"TotauxHeuresQuotidiennes","v":""}]
[null,{"$f":"PlanifierJour","v":""},{"$f":"TotauxHeuresQuotidiennes","v":""}]
[null,{"$f":"PlanifierJour","v":"2016-03-09"},{"$f":"TotauxHeuresQuotidiennes","v":0},1,null,"Promo FS",1,null,"recette croquette au kiri",1,null,"offre d'emploi Héry sur Alby",1,null,"photos formation"]
[null,{"$f":"PlanifierJour","v":""},{"$f":"TotauxHeuresQuotidiennes","v":""},null,null,"témoignage parents"]
[null,{"$f":"PlanifierJour","v":""},{"$f":"TotauxHeuresQuotidiennes","v":""}]
[null,{"$f":"PlanifierJour","v":""},{"$f":"TotauxHeuresQuotidiennes","v":""}]
[null,{"$f":"PlanifierJour","v":""},{"$f":"TotauxHeuresQuotidiennes","v":""}]
[null,{"$f":"PlanifierJour","v":"2016-03-10"},{"$f":"TotauxHeuresQuotidiennes","v":0},1,null,"Citation ",1,null,"offre d'emploi",1,null,"recette croquette au kiri",1,null,"offre d'emploi"]
[null,{"$f":"PlanifierJour","v":""},{"$f":"TotauxHeuresQuotidiennes","v":""},null,null,"livre de la jungle",null,null,"la ravoire",null,null,null,null,null,"thones"]
[null,{"$f":"PlanifierJour","v":""},{"$f":"TotauxHeuresQuotidiennes","v":""}]
[null,{"$f":"PlanifierJour","v":""},{"$f":"TotauxHeuresQuotidiennes","v":""}]
[null,{"$f":"PlanifierJour","v":""},{"$f":"TotauxHeuresQuotidiennes","v":""}]
[null,{"$f":"PlanifierJour","v":"2016-03-11"},{"$f":"TotauxHeuresQuotidiennes","v":0},1,null,"recette",1,null,"photos formation",1,null,"recette"]
[null,{"$f":"PlanifierJour","v":""},{"$f":"TotauxHeuresQuotidiennes","v":""},null,null,"wrap poulet",null,null,null,null,null,"wrap poulet"]
[null,{"$f":"PlanifierJour","v":""},{"$f":"TotauxHeuresQuotidiennes","v":""}]
[null,{"$f":"PlanifierJour","v":""},{"$f":"TotauxHeuresQuotidiennes","v":""}]
[null,{"$f":"PlanifierJour","v":""},{"$f":"TotauxHeuresQuotidiennes","v":""}]
[null,{"$f":"PlanifierJour","v":"2016-03-12"},{"$f":"TotauxHeuresQuotidiennes","v":0},1,null,"offre d'emploi",1,null,"Promotion FS",1,null,"offre d'emploi",1,null,"promotion FS",1,null,"explication ",null,null,"photo formation"]
[null,{"$f":"PlanifierJour","v":""},{"$f":"TotauxHeuresQuotidiennes","v":""},null,null,null,null,null,null,null,null,"GROISY",null,null,null,null,null,"garde d'enfants FS"]
[null,{"$f":"PlanifierJour","v":""},{"$f":"TotauxHeuresQuotidiennes","v":""}]
[null,{"$f":"PlanifierJour","v":""},{"$f":"TotauxHeuresQuotidiennes","v":""}]
[null,{"$f":"PlanifierJour","v":""},{"$f":"TotauxHeuresQuotidiennes","v":""}]
[null,{"$f":"PlanifierJour","v":"2016-03-13"},{"$f":"TotauxHeuresQuotidiennes","v":0},1,null,"photo formation",1,null,"offre d'emploi",1,null,"photo formation",1,null,"offre d'emploi"]
[null,{"$f":"PlanifierJour","v":""},{"$f":"TotauxHeuresQuotidiennes","v":""}]
[null,{"$f":"PlanifierJour","v":""},{"$f":"TotauxHeuresQuotidiennes","v":""}]
[null,{"$f":"PlanifierJour","v":""},{"$f":"TotauxHeuresQuotidiennes","v":""}]
[null,{"$f":"PlanifierJour","v":""},{"$f":"TotauxHeuresQuotidiennes","v":""}]
[null,{"$f":"PlanifierJour","v":""},{"$f":"TotauxHeuresQuotidiennes","v":""}]
[null,{"$f":"PlanifierJour","v":""},{"$f":"TotauxHeuresQuotidiennes","v":""}]
[null,{"$f":"PlanifierJour","v":""},{"$f":"TotauxHeuresQuotidiennes","v":""}]
[null,{"$f":"PlanifierJour","v":""},{"$f":"TotauxHeuresQuotidiennes","v":""}]
[null,{"$f":"PlanifierJour","v":""},{"$f":"TotauxHeuresQuotidiennes","v":""}]
[null,{"$f":"PlanifierJour","v":""},{"$f":"TotauxHeuresQuotidiennes","v":""}]
[null,{"$f":"PlanifierJour","v":""},{"$f":"TotauxHeuresQuotidiennes","v":""}]
[null,{"$f":"PlanifierJour","v":""},{"$f":"TotauxHeuresQuotidiennes","v":""}]
[null,{"$f":"PlanifierJour","v":""},{"$f":"TotauxHeuresQuotidiennes","v":""}]
[null,{"$f":"PlanifierJour","v":""},{"$f":"TotauxHeuresQuotidiennes","v":""}]
[null,{"$f":"PlanifierJour","v":""},{"$f":"TotauxHeuresQuotidiennes","v":""}]
[null,{"$f":"PlanifierJour","v":""},{"$f":"TotauxHeuresQuotidiennes","v":""}]
[null,{"$f":"PlanifierJour","v":""},{"$f":"TotauxHeuresQuotidiennes","v":""}]
[null,{"$f":"PlanifierJour","v":""},{"$f":"TotauxHeuresQuotidiennes","v":""}]
[null,{"$f":"PlanifierJour","v":""},{"$f":"TotauxHeuresQuotidiennes","v":""}]
[null,{"$f":"PlanifierJour","v":""},{"$f":"TotauxHeuresQuotidiennes","v":""}]
[null,{"$f":"PlanifierJour","v":""},{"$f":"TotauxHeuresQuotidiennes","v":""}]
[null,{"$f":"PlanifierJour","v":""},{"$f":"TotauxHeuresQuotidiennes","v":""}]
[null,{"$f":"PlanifierJour","v":""},{"$f":"TotauxHeuresQuotidiennes","v":""}]
[null,{"$f":"PlanifierJour","v":""},{"$f":"TotauxHeuresQuotidiennes","v":""}]
[null,{"$f":"PlanifierJour","v":""},{"$f":"TotauxHeuresQuotidiennes","v":""}]
[null,{"$f":"PlanifierJour","v":""},{"$f":"TotauxHeuresQuotidiennes","v":""}]
[null,{"$f":"PlanifierJour","v":""},{"$f":"TotauxHeuresQuotidiennes","v":""}]
[null,{"$f":"PlanifierJour","v":""},{"$f":"TotauxHeuresQuotidiennes","v":""}]
[null,{"$f":"PlanifierJour","v":""},{"$f":"TotauxHeuresQuotidiennes","v":""}]
[null,{"$f":"PlanifierJour","v":""},{"$f":"TotauxHeuresQuotidiennes","v":""}]
[null,{"$f":"PlanifierJour","v":""},{"$f":"TotauxHeuresQuotidiennes","v":""}]
[null,{"$f":"PlanifierJour","v":""},{"$f":"TotauxHeuresQuotidiennes","v":""}]
[null,{"$f":"PlanifierJour","v":""},{"$f":"TotauxHeuresQuotidiennes","v":""}]
[null,{"$f":"PlanifierJour","v":""},{"$f":"TotauxHeuresQuotidiennes","v":""}]
[null,{"$f":"PlanifierJour","v":""},{"$f":"TotauxHeuresQuotidiennes","v":""}]
[null,{"$f":"PlanifierJour","v":""},{"$f":"TotauxHeuresQuotidiennes","v":""}]
[null,{"$f":"PlanifierJour","v":""},{"$f":"TotauxHeuresQuotidiennes","v":""}]
[null,{"$f":"PlanifierJour","v":""},{"$f":"TotauxHeuresQuotidiennes","v":""}]
[null,{"$f":"PlanifierJour","v":""},{"$f":"TotauxHeuresQuotidiennes","v":""}]
[null,{"$f":"PlanifierJour","v":""},{"$f":"TotauxHeuresQuotidiennes","v":""}]
[null,{"$f":"PlanifierJour","v":""},{"$f":"TotauxHeuresQuotidiennes","v":""}]
[null,{"$f":"PlanifierJour","v":""},{"$f":"TotauxHeuresQuotidiennes","v":""}]
[null,{"$f":"PlanifierJour","v":""},{"$f":"TotauxHeuresQuotidiennes","v":""}]
[null,{"$f":"PlanifierJour","v":""},{"$f":"TotauxHeuresQuotidiennes","v":""}]
[null,{"$f":"PlanifierJour","v":""},{"$f":"TotauxHeuresQuotidiennes","v":""}]
[null,{"$f":"PlanifierJour","v":""},{"$f":"TotauxHeuresQuotidiennes","v":""}]
[null,{"$f":"PlanifierJour","v":""},{"$f":"TotauxHeuresQuotidiennes","v":""}]
[null,{"$f":"PlanifierJour","v":""},{"$f":"TotauxHeuresQuotidiennes","v":""}]
[null,{"$f":"PlanifierJour","v":""},{"$f":"TotauxHeuresQuotidiennes","v":""}]
[null,{"$f":"PlanifierJour","v":""},{"$f":"TotauxHeuresQuotidiennes","v":""}]
[null,{"$f":"PlanifierJour","v":""},{"$f":"TotauxHeuresQuotidiennes","v":""}]
[null,{"$f":"PlanifierJour","v":""},{"$f":"TotauxHeuresQuotidiennes","v":""}]
[null,{"$f":"PlanifierJour","v":""},{"$f":"TotauxHeuresQuotidiennes","v":""}]
[null,{"$f":"PlanifierJour","v":""},{"$f":"TotauxHeuresQuotidiennes","v":""}]
[null,{"$f":"PlanifierJour","v":""},{"$f":"TotauxHeuresQuotidiennes","v":""}]
[null,{"$f":"PlanifierJour","v":""},{"$f":"TotauxHeuresQuotidiennes","v":""}]
[null,{"$f":"PlanifierJour","v":""},{"$f":"TotauxHeuresQuotidiennes","v":""}]
[null,{"$f":"PlanifierJour","v":""},{"$f":"TotauxHeuresQuotidiennes","v":""}]
[null,{"$f":"PlanifierJour","v":""},{"$f":"TotauxHeuresQuotidiennes","v":""}]
[null,{"$f":"PlanifierJour","v":""},{"$f":"TotauxHeuresQuotidiennes","v":""}]
[null,{"$f":"PlanifierJour","v":""},{"$f":"TotauxHeuresQuotidiennes","v":""}]
[null,{"$f":"PlanifierJour","v":""},{"$f":"TotauxHeuresQuotidiennes","v":""}]
[null,{"$f":"PlanifierJour","v":""},{"$f":"TotauxHeuresQuotidiennes","v":""}]
[null,{"$f":"PlanifierJour","v":""},{"$f":"TotauxHeuresQuotidiennes","v":""}]
[null,{"$f":"PlanifierJour","v":""},{"$f":"TotauxHeuresQuotidiennes","v":""}]
[null,{"$f":"PlanifierJour","v":""},{"$f":"TotauxHeuresQuotidiennes","v":""}]

{"sheet":"mars14","index":2,"n_rows":103,"n_cols":24,"rows_kept":103,"cut":false,"hidden":false,"merged":[[3,21,3,23],[6,14,7,14],[16,8,17,8],[3,3,3,5],[3,6,3,8],[3,9,3,11],[3,12,3,14],[3,15,3,17],[3,18,3,20]]}
[]
[null,"Devoirs"]
[]
[null,"Entrez la date de début","Totaux","Facebook Chambéry",null,null,"Twitter Chambéry",null,null,"FB Annecy",null,null,"Twitter Annecy",null,null,"Viadeo FS",null,null,"Linkedin FS",null,null,"FB Skyline"]
[null,"2016-03-14",null,null,null,"THEME",null,null,"THEME",null,null,"THEME",null,null,"THEME",null,null,"THEME",null,null,"THEME",null,null,"THEME"]
[]
[null,{"$f":"PlanifierJour","v":"2016-03-14"},{"$f":"TotauxHeuresQuotidiennes","v":0},1,null,"semaine de lutte ",1,null,"semaine de lutte ",1,null,"semaine de lutte ",null,null,"10 ans familysphere",1,null,"10 ans familysphere",1,null,"10 ans familysphere"]
[null,{"$f":"PlanifierJour","v":""},{"$f":"TotauxHeuresQuotidiennes","v":""},null,null,"contre le cancer",null,null,"contre le cancer",null,null,"contre le cancer",1]
[null,{"$f":"PlanifierJour","v":""},{"$f":"TotauxHeuresQuotidiennes","v":""},1,null,"Changement photo de",null,null,null,1,null,"Changement photo de"]
[null,{"$f":"PlanifierJour","v":""},{"$f":"TotauxHeuresQuotidiennes","v":""},null,null,"couverture",null,null,null,null,null,"couverture"]
[null,{"$f":"PlanifierJour","v":""},{"$f":"TotauxHeuresQuotidiennes","v":""}]
[null,{"$f":"PlanifierJour","v":"2016-03-15"},{"$f":"TotauxHeuresQuotidiennes","v":0},1,null,"10 ans familysphere",1,null,"offre d emploi",1,null,"offre d'emploi",1,null,"semaine de lutte "]
[null,{"$f":"PlanifierJour","v":""},{"$f":"TotauxHeuresQuotidiennes","v":""},null,null,null,null,null,"aix les bains",null,null,"annecy le vieux",null,null,"contre le cancer"]
[null,{"$f":"PlanifierJour","v":""},{"$f":"TotauxHeuresQuotidiennes","v":""}]
[null,{"$f":"PlanifierJour","v":""},{"$f":"TotauxHeuresQuotidiennes","v":""}]
[null,{"$f":"PlanifierJour","v":""},{"$f":"TotauxHeuresQuotidiennes","v":""}]
[null,{"$f":"PlanifierJour","v":"2016-03-16"},{"$f":"TotauxHeuresQuotidiennes","v":0},1,null,"défilé tarines",null,null,null,1,null,"bibli annecy bouts"]
[null,{"$f":"PlanifierJour","v":""},{"$f":"TotauxHeuresQuotidiennes","v":""},null,null,null,null,null,null,null,null,"d'choux"]
[null,{"$f":"PlanifierJour","v":""},{"$f":"TotauxHeuresQuotidiennes","v":""}]
[null,{"$f":"PlanifierJour","v":""},{"$f":"TotauxHeuresQuotidiennes","v":""}]
[null,{"$f":"PlanifierJour","v":""},{"$f":"TotauxHeuresQuotidiennes","v":""}]
[null,{"$f":"PlanifierJour","v":"2016-03-17"},{"$f":"TotauxHeuresQuotidiennes","v":0},1,null,"offre d'emploi",1,null,"offre d'emploi",1,null,"10 ans familysphere",1,null,"offre d'emploi",null,null,"offre d'emploi",null,null,"offre d'emploi"]
[null,{"$f":"PlanifierJour","v":""},{"$f":"TotauxHeuresQuotidiennes","v":""},null,null,"le bourget du lac",null,null,"chambéry",null,null,null,null,null,"corbel"]
[null,{"$f":"PlanifierJour","v":""},{"$f":"TotauxHeuresQuotidiennes","v":""},null,null,null,null,null,"autiste"]
[null,{"$f":"PlanifierJour","v":""},{"$f":"TotauxHeuresQuotidiennes","v":""}]
[null,{"$f":"PlanifierJour","v":""},{"$f":"TotauxHeuresQuotidiennes","v":""}]
[null,{"$f":"PlanifierJour","v":"2016-03-18"},{"$f":"TotauxHeuresQuotidiennes","v":0},1,null,"lumak le pt inuit",1,null,"10 ans familysphere",1,null,"offre d'emploi",1,null,"bibli annecy bouts"]
[null,{"$f":"PlanifierJour","v":""},{"$f":"TotauxHeuresQuotidiennes","v":""},null,null,null,null,null,null,null,null,"Corbel",null,null,"d'choux"]
[null,{"$f":"PlanifierJour","v":""},{"$f":"TotauxHeuresQuotidiennes","v":""}]
[null,{"$f":"PlanifierJour","v":""},{"$f":"TotauxHeuresQuotidiennes","v":""}]
[null,{"$f":"PlanifierJour","v":""},{"$f":"TotauxHeuresQuotidiennes","v":""}]
[null,{"$f":"PlanifierJour","v":"2016-03-19"},{"$f":"TotauxHeuresQuotidiennes","v":0},1,null,"offre d'emploi",null,null,null,1,null,"annecy 1920",1,null,"promotion FS",1,null,"formation Psc1 ",null,null,"Promotion FS"]
[null,{"$f":"PlanifierJour","v":""},{"$f":"TotauxHeuresQuotidiennes","v":""},null,null,"la ravoire",null,null,null,null,null,null,null,null,"enquete satisfation"]
[null,{"$f":"PlanifierJour","v":""},{"$f":"TotauxHeuresQuotidiennes","v":""}]
[null,{"$f":"PlanifierJour","v":""},{"$f":"TotauxHeuresQuotidiennes","v":""}]
[null,{"$f":"PlanifierJour","v":""},{"$f":"TotauxHeuresQuotidiennes","v":""}]
[null,{"$f":"PlanifierJour","v":"2016-03-20"},{"$f":"TotauxHeuresQuotidiennes","v":0},null,null,"nouvel argumentaire",1,null,"Promotion FS",null,null,"nouvel argumentaire",null,null,"offre d'emploi"]
[null,{"$f":"PlanifierJour","v":""},{"$f":"TotauxHeuresQuotidiennes","v":""},null,null,null,null,null,"enquete satisfation"]
[null,{"$f":"PlanifierJour","v":""},{"$f":"TotauxHeuresQuotidiennes","v":""}]
[null,{"$f":"PlanifierJour","v":""},{"$f":"TotauxHeuresQuotidiennes","v":""}]
[null,{"$f":"PlanifierJour","v":""},{"$f":"TotauxHeuresQuotidiennes","v":""}]
[null,{"$f":"PlanifierJour","v":""},{"$f":"TotauxHeuresQuotidiennes","v":""}]
[null,{"$f":"PlanifierJour","v":""},{"$f":"TotauxHeuresQuotidiennes","v":""}]
[null,{"$f":"PlanifierJour","v":""},{"$f":"TotauxHeuresQuotidiennes","v":""}]
[null,{"$f":"PlanifierJour","v":""},{"$f":"TotauxHeuresQuotidiennes","v":""}]
[null,{"$f":"PlanifierJour","v":""},{"$f":"TotauxHeuresQuotidiennes","v":""}]
[null,{"$f":"PlanifierJour","v":""},{"$f":"TotauxHeuresQuotidiennes","v":""}]
[null,{"$f":"PlanifierJour","v":""},{"$f":"TotauxHeuresQuotidiennes","v":""}]
[null,{"$f":"PlanifierJour","v":""},{"$f":"TotauxHeuresQuotidiennes","v":""}]
[null,{"$f":"PlanifierJour","v":""},{"$f":"TotauxHeuresQuotidiennes","v":""}]
[null,{"$f":"PlanifierJour","v":""},{"$f":"TotauxHeuresQuotidiennes","v":""}]
[null,{"$f":"PlanifierJour","v":""},{"$f":"TotauxHeuresQuotidiennes","v":""}]
[null,{"$f":"PlanifierJour","v":""},{"$f":"TotauxHeuresQuotidiennes","v":""}]
[null,{"$f":"PlanifierJour","v":""},{"$f":"TotauxHeuresQuotidiennes","v":""}]
[null,{"$f":"PlanifierJour","v":""},{"$f":"TotauxHeuresQuotidiennes","v":""}]
[null,{"$f":"PlanifierJour","v":""},{"$f":"TotauxHeuresQuotidiennes","v":""}]
[null,{"$f":"PlanifierJour","v":""},{"$f":"TotauxHeuresQuotidiennes","v":""}]
[null,{"$f":"PlanifierJour","v":""},{"$f":"TotauxHeuresQuotidiennes","v":""}]
[null,{"$f":"PlanifierJour","v":""},{"$f":"TotauxHeuresQuotidiennes","v":""}]
[null,{"$f":"PlanifierJour","v":""},{"$f":"TotauxHeuresQuotidiennes","v":""}]
[null,{"$f":"PlanifierJour","v":""},{"$f":"TotauxHeuresQuotidiennes","v":""}]
[null,{"$f":"PlanifierJour","v":""},{"$f":"TotauxHeuresQuotidiennes","v":""}]
[null,{"$f":"PlanifierJour","v":""},{"$f":"TotauxHeuresQuotidiennes","v":""}]
[null,{"$f":"PlanifierJour","v":""},{"$f":"TotauxHeuresQuotidiennes","v":""}]
[null,{"$f":"PlanifierJour","v":""},{"$f":"TotauxHeuresQuotidiennes","v":""}]
[null,{"$f":"PlanifierJour","v":""},{"$f":"TotauxHeuresQuotidiennes","v":""}]
[null,{"$f":"PlanifierJour","v":""},{"$f":"TotauxHeuresQuotidiennes","v":""}]
[null,{"$f":"PlanifierJour","v":""},{"$f":"TotauxHeuresQuotidiennes","v":""}]
[null,{"$f":"PlanifierJour","v":""},{"$f":"TotauxHeuresQuotidiennes","v":""}]
[null,{"$f":"PlanifierJour","v":""},{"$f":"TotauxHeuresQuotidiennes","v":""}]
[null,{"$f":"PlanifierJour","v":""},{"$f":"TotauxHeuresQuotidiennes","v":""}]
[null,{"$f":"PlanifierJour","v":""},{"$f":"TotauxHeuresQuotidiennes","v":""}]
[null,{"$f":"PlanifierJour","v":""},{"$f":"TotauxHeuresQuotidiennes","v":""}]
[null,{"$f":"PlanifierJour","v":""},{"$f":"TotauxHeuresQuotidiennes","v":""}]
[null,{"$f":"PlanifierJour","v":""},{"$f":"TotauxHeuresQuotidiennes","v":""}]
[null,{"$f":"PlanifierJour","v":""},{"$f":"TotauxHeuresQuotidiennes","v":""}]
[null,{"$f":"PlanifierJour","v":""},{"$f":"TotauxHeuresQuotidiennes","v":""}]
[null,{"$f":"PlanifierJour","v":""},{"$f":"TotauxHeuresQuotidiennes","v":""}]
[null,{"$f":"PlanifierJour","v":""},{"$f":"TotauxHeuresQuotidiennes","v":""}]
[null,{"$f":"PlanifierJour","v":""},{"$f":"TotauxHeuresQuotidiennes","v":""}]
[null,{"$f":"PlanifierJour","v":""},{"$f":"TotauxHeuresQuotidiennes","v":""}]
[null,{"$f":"PlanifierJour","v":""},{"$f":"TotauxHeuresQuotidiennes","v":""}]
[null,{"$f":"PlanifierJour","v":""},{"$f":"TotauxHeuresQuotidiennes","v":""}]
[null,{"$f":"PlanifierJour","v":""},{"$f":"TotauxHeuresQuotidiennes","v":""}]
[null,{"$f":"PlanifierJour","v":""},{"$f":"TotauxHeuresQuotidiennes","v":""}]
[null,{"$f":"PlanifierJour","v":""},{"$f":"TotauxHeuresQuotidiennes","v":""}]
[null,{"$f":"PlanifierJour","v":""},{"$f":"TotauxHeuresQuotidiennes","v":""}]
[null,{"$f":"PlanifierJour","v":""},{"$f":"TotauxHeuresQuotidiennes","v":""}]
[null,{"$f":"PlanifierJour","v":""},{"$f":"TotauxHeuresQuotidiennes","v":""}]
[null,{"$f":"PlanifierJour","v":""},{"$f":"TotauxHeuresQuotidiennes","v":""}]
[null,{"$f":"PlanifierJour","v":""},{"$f":"TotauxHeuresQuotidiennes","v":""}]
[null,{"$f":"PlanifierJour","v":""},{"$f":"TotauxHeuresQuotidiennes","v":""}]
[null,{"$f":"PlanifierJour","v":""},{"$f":"TotauxHeuresQuotidiennes","v":""}]
[null,{"$f":"PlanifierJour","v":""},{"$f":"TotauxHeuresQuotidiennes","v":""}]
[null,{"$f":"PlanifierJour","v":""},{"$f":"TotauxHeuresQuotidiennes","v":""}]
[null,{"$f":"PlanifierJour","v":""},{"$f":"TotauxHeuresQuotidiennes","v":""}]
[null,{"$f":"PlanifierJour","v":""},{"$f":"TotauxHeuresQuotidiennes","v":""}]
[null,{"$f":"PlanifierJour","v":""},{"$f":"TotauxHeuresQuotidiennes","v":""}]
[null,{"$f":"PlanifierJour","v":""},{"$f":"TotauxHeuresQuotidiennes","v":""}]
[null,{"$f":"PlanifierJour","v":""},{"$f":"TotauxHeuresQuotidiennes","v":""}]
[null,{"$f":"PlanifierJour","v":""},{"$f":"TotauxHeuresQuotidiennes","v":""}]
[null,{"$f":"PlanifierJour","v":""},{"$f":"TotauxHeuresQuotidiennes","v":""}]
[null,{"$f":"PlanifierJour","v":""},{"$f":"TotauxHeuresQuotidiennes","v":""}]

{"sheet":"mars21","index":3,"n_rows":103,"n_cols":24,"rows_kept":103,"cut":false,"hidden":false,"merged":[[3,21,3,23],[3,3,3,5],[3,6,3,8],[3,9,3,11],[3,12,3,14],[3,15,3,17],[3,18,3,20]]}
[]
[null,"Publications"]
[]
[null,"Entrez la date de début","Totaux","Facebook Chambéry",null,null,"Twitter Chambéry",null,null,"FB Annecy",null,null,"Twitter Annecy",null,null,"Viadeo FS",null,null,"Linkedin FS",null,null,"FB Skyline"]
[null,"2016-03-21",null,null,null,"THEME",null,null,"THEME",null,null,"THEME",null,null,"THEME",null,null,"THEME",null,null,"THEME",null,null,"THEME"]
[]
[null,{"$f":"PlanifierJour","v":"2016-03-21"},{"$f":"TotauxHeuresQuotidiennes","v":0},1,null,"new  argu FS",null,null,null,0,null,null,0]
[null,{"$f":"PlanifierJour","v":""},{"$f":"TotauxHeuresQuotidiennes","v":""},0]
[null,{"$f":"PlanifierJour","v":""},{"$f":"TotauxHeuresQuotidiennes","v":""}]
[null,{"$f":"PlanifierJour","v":""},{"$f":"TotauxHeuresQuotidiennes","v":""}]
[null,{"$f":"PlanifierJour","v":""},{"$f":"TotauxHeuresQuotidiennes","v":""}]
[null,{"$f":"PlanifierJour","v":"2016-03-22"},{"$f":"TotauxHeuresQuotidiennes","v":0},1,null,"promotion FS",1,null,"annonce challenge",1,null,"annonce challenge",1,null,"new  argu FS"]
[null,{"$f":"PlanifierJour","v":""},{"$f":"TotauxHeuresQuotidiennes","v":""},null,null,"enquete satisfation"]
[null,{"$f":"PlanifierJour","v":""},{"$f":"TotauxHeuresQuotidiennes","v":""}]
[null,{"$f":"PlanifierJour","v":""},{"$f":"TotauxHeuresQuotidiennes","v":""}]
[null,{"$f":"PlanifierJour","v":""},{"$f":"TotauxHeuresQuotidiennes","v":""}]
[null,{"$f":"PlanifierJour","v":"2016-03-23"},{"$f":"TotauxHeuresQuotidiennes","v":0},1,null,"annonce challenge",1,null,"jeux de plein air",1,null,"offre d'emploi",1,null,"peur"]
[null,{"$f":"PlanifierJour","v":""},{"$f":"TotauxHeuresQuotidiennes","v":""},null,null,null,null,null,null,null,null,"atgonay"]
[null,{"$f":"PlanifierJour","v":""},{"$f":"TotauxHeuresQuotidiennes","v":""}]
[null,{"$f":"PlanifierJour","v":""},{"$f":"TotauxHeuresQuotidiennes","v":""}]
[null,{"$f":"PlanifierJour","v":""},{"$f":"TotauxHeuresQuotidiennes","v":""}]
[null,{"$f":"PlanifierJour","v":"2016-03-24"},{"$f":"TotauxHeuresQuotidiennes","v":0},1,null,"offre d'emploi",null,null,null,1,null,"promotion FS"]
[null,{"$f":"PlanifierJour","v":""},{"$f":"TotauxHeuresQuotidiennes","v":""},null,null,"Aix les bains",null,null,null,null,null,"enquete satisfation"]
[null,{"$f":"PlanifierJour","v":""},{"$f":"TotauxHeuresQuotidiennes","v":""}]
[null,{"$f":"PlanifierJour","v":""},{"$f":"TotauxHeuresQuotidiennes","v":""}]
[null,{"$f":"PlanifierJour","v":""},{"$f":"TotauxHeuresQuotidiennes","v":""}]
[null,{"$f":"PlanifierJour","v":"2016-03-25"},{"$f":"TotauxHeuresQuotidiennes","v":0},1,null,"agenda chambéry",1,null,"dessins enfants",1,null,"agenda annecy",1,null,"course aus choc"]
[null,{"$f":"PlanifierJour","v":""},{"$f":"TotauxHeuresQuotidiennes","v":""},null,null,null,null,null,null,null,null,null,null,null,"aussois"]
[null,{"$f":"PlanifierJour","v":""},{"$f":"TotauxHeuresQuotidiennes","v":""}]
[null,{"$f":"PlanifierJour","v":""},{"$f":"TotauxHeuresQuotidiennes","v":""}]
[null,{"$f":"PlanifierJour","v":""},{"$f":"TotauxHeuresQuotidiennes","v":""}]
[null,{"$f":"PlanifierJour","v":"2016-03-26"},{"$f":"TotauxHeuresQuotidiennes","v":0},1,null,"dessins enfants",1,null,"offre emploi",1,null,"trucs enfants",1,null,"cabane"]
[null,{"$f":"PlanifierJour","v":""},{"$f":"TotauxHeuresQuotidiennes","v":""},null,null,null,null,null,"aix",null,null,"peur"]
[null,{"$f":"PlanifierJour","v":""},{"$f":"TotauxHeuresQuotidiennes","v":""},null,null,null,null,null,null,1,null,"offre d'emploi"]
[null,{"$f":"PlanifierJour","v":""},{"$f":"TotauxHeuresQuotidiennes","v":""},null,null,null,null,null,null,null,null,"Aix les bains"]
[null,{"$f":"PlanifierJour","v":""},{"$f":"TotauxHeuresQuotidiennes","v":""}]
[null,{"$f":"PlanifierJour","v":"2016-03-27"},{"$f":"TotauxHeuresQuotidiennes","v":0},1,null,"trucs enfants",1,null,"clio rose",1,null,"citation enfants"]
[null,{"$f":"PlanifierJour","v":""},{"$f":"TotauxHeuresQuotidiennes","v":""},null,null,"peur"]
[null,{"$f":"PlanifierJour","v":""},{"$f":"TotauxHeuresQuotidiennes","v":""}]
[null,{"$f":"PlanifierJour","v":""},{"$f":"TotauxHeuresQuotidiennes","v":""}]
[null,{"$f":"PlanifierJour","v":""},{"$f":"TotauxHeuresQuotidiennes","v":""}]
[null,{"$f":"PlanifierJour","v":""},{"$f":"TotauxHeuresQuotidiennes","v":""}]
[null,{"$f":"PlanifierJour","v":""},{"$f":"TotauxHeuresQuotidiennes","v":""}]
[null,{"$f":"PlanifierJour","v":""},{"$f":"TotauxHeuresQuotidiennes","v":""}]
[null,{"$f":"PlanifierJour","v":""},{"$f":"TotauxHeuresQuotidiennes","v":""}]
[null,{"$f":"PlanifierJour","v":""},{"$f":"TotauxHeuresQuotidiennes","v":""}]
[null,{"$f":"PlanifierJour","v":""},{"$f":"TotauxHeuresQuotidiennes","v":""}]
[null,{"$f":"PlanifierJour","v":""},{"$f":"TotauxHeuresQuotidiennes","v":""}]
[null,{"$f":"PlanifierJour","v":""},{"$f":"TotauxHeuresQuotidiennes","v":""}]
[null,{"$f":"PlanifierJour","v":""},{"$f":"TotauxHeuresQuotidiennes","v":""}]
[null,{"$f":"PlanifierJour","v":""},{"$f":"TotauxHeuresQuotidiennes","v":""}]
[null,{"$f":"PlanifierJour","v":""},{"$f":"TotauxHeuresQuotidiennes","v":""}]
[null,{"$f":"PlanifierJour","v":""},{"$f":"TotauxHeuresQuotidiennes","v":""}]
[null,{"$f":"PlanifierJour","v":""},{"$f":"TotauxHeuresQuotidiennes","v":""}]
[null,{"$f":"PlanifierJour","v":""},{"$f":"TotauxHeuresQuotidiennes","v":""}]
[null,{"$f":"PlanifierJour","v":""},{"$f":"TotauxHeuresQuotidiennes","v":""}]
[null,{"$f":"PlanifierJour","v":""},{"$f":"TotauxHeuresQuotidiennes","v":""}]
[null,{"$f":"PlanifierJour","v":""},{"$f":"TotauxHeuresQuotidiennes","v":""}]
[null,{"$f":"PlanifierJour","v":""},{"$f":"TotauxHeuresQuotidiennes","v":""}]
[null,{"$f":"PlanifierJour","v":""},{"$f":"TotauxHeuresQuotidiennes","v":""}]
[null,{"$f":"PlanifierJour","v":""},{"$f":"TotauxHeuresQuotidiennes","v":""}]
[null,{"$f":"PlanifierJour","v":""},{"$f":"TotauxHeuresQuotidiennes","v":""}]
[null,{"$f":"PlanifierJour","v":""},{"$f":"TotauxHeuresQuotidiennes","v":""}]
[null,{"$f":"PlanifierJour","v":""},{"$f":"TotauxHeuresQuotidiennes","v":""}]
[null,{"$f":"PlanifierJour","v":""},{"$f":"TotauxHeuresQuotidiennes","v":""}]
[null,{"$f":"PlanifierJour","v":""},{"$f":"TotauxHeuresQuotidiennes","v":""}]
[null,{"$f":"PlanifierJour","v":""},{"$f":"TotauxHeuresQuotidiennes","v":""}]
[null,{"$f":"PlanifierJour","v":""},{"$f":"TotauxHeuresQuotidiennes","v":""}]
[null,{"$f":"PlanifierJour","v":""},{"$f":"TotauxHeuresQuotidiennes","v":""}]
[null,{"$f":"PlanifierJour","v":""},{"$f":"TotauxHeuresQuotidiennes","v":""}]
[null,{"$f":"PlanifierJour","v":""},{"$f":"TotauxHeuresQuotidiennes","v":""}]
[null,{"$f":"PlanifierJour","v":""},{"$f":"TotauxHeuresQuotidiennes","v":""}]
[null,{"$f":"PlanifierJour","v":""},{"$f":"TotauxHeuresQuotidiennes","v":""}]
[null,{"$f":"PlanifierJour","v":""},{"$f":"TotauxHeuresQuotidiennes","v":""}]
[null,{"$f":"PlanifierJour","v":""},{"$f":"TotauxHeuresQuotidiennes","v":""}]
[null,{"$f":"PlanifierJour","v":""},{"$f":"TotauxHeuresQuotidiennes","v":""}]
[null,{"$f":"PlanifierJour","v":""},{"$f":"TotauxHeuresQuotidiennes","v":""}]
[null,{"$f":"PlanifierJour","v":""},{"$f":"TotauxHeuresQuotidiennes","v":""}]
[null,{"$f":"PlanifierJour","v":""},{"$f":"TotauxHeuresQuotidiennes","v":""}]
[null,{"$f":"PlanifierJour","v":""},{"$f":"TotauxHeuresQuotidiennes","v":""}]
[null,{"$f":"PlanifierJour","v":""},{"$f":"TotauxHeuresQuotidiennes","v":""}]
[null,{"$f":"PlanifierJour","v":""},{"$f":"TotauxHeuresQuotidiennes","v":""}]
[null,{"$f":"PlanifierJour","v":""},{"$f":"TotauxHeuresQuotidiennes","v":""}]
[null,{"$f":"PlanifierJour","v":""},{"$f":"TotauxHeuresQuotidiennes","v":""}]
[null,{"$f":"PlanifierJour","v":""},{"$f":"TotauxHeuresQuotidiennes","v":""}]
[null,{"$f":"PlanifierJour","v":""},{"$f":"TotauxHeuresQuotidiennes","v":""}]
[null,{"$f":"PlanifierJour","v":""},{"$f":"TotauxHeuresQuotidiennes","v":""}]
[null,{"$f":"PlanifierJour","v":""},{"$f":"TotauxHeuresQuotidiennes","v":""}]
[null,{"$f":"PlanifierJour","v":""},{"$f":"TotauxHeuresQuotidiennes","v":""}]
[null,{"$f":"PlanifierJour","v":""},{"$f":"TotauxHeuresQuotidiennes","v":""}]
[null,{"$f":"PlanifierJour","v":""},{"$f":"TotauxHeuresQuotidiennes","v":""}]
[null,{"$f":"PlanifierJour","v":""},{"$f":"TotauxHeuresQuotidiennes","v":""}]
[null,{"$f":"PlanifierJour","v":""},{"$f":"TotauxHeuresQuotidiennes","v":""}]
[null,{"$f":"PlanifierJour","v":""},{"$f":"TotauxHeuresQuotidiennes","v":""}]
[null,{"$f":"PlanifierJour","v":""},{"$f":"TotauxHeuresQuotidiennes","v":""}]
[null,{"$f":"PlanifierJour","v":""},{"$f":"TotauxHeuresQuotidiennes","v":""}]
[null,{"$f":"PlanifierJour","v":""},{"$f":"TotauxHeuresQuotidiennes","v":""}]
[null,{"$f":"PlanifierJour","v":""},{"$f":"TotauxHeuresQuotidiennes","v":""}]
[null,{"$f":"PlanifierJour","v":""},{"$f":"TotauxHeuresQuotidiennes","v":""}]
[null,{"$f":"PlanifierJour","v":""},{"$f":"TotauxHeuresQuotidiennes","v":""}]
[null,{"$f":"PlanifierJour","v":""},{"$f":"TotauxHeuresQuotidiennes","v":""}]
[null,{"$f":"PlanifierJour","v":""},{"$f":"TotauxHeuresQuotidiennes","v":""}]
[null,{"$f":"PlanifierJour","v":""},{"$f":"TotauxHeuresQuotidiennes","v":""}]

{"sheet":"mars28","index":4,"n_rows":103,"n_cols":24,"rows_kept":103,"cut":false,"hidden":false,"merged":[[3,21,3,23],[3,3,3,5],[3,6,3,8],[3,9,3,11],[3,12,3,14],[3,15,3,17],[3,18,3,20]]}
[]
[null,"Publications"]
[]
[null,"Entrez la date de début","Totaux","Facebook Chambéry",null,null,"Twitter Chambéry",null,null,"FB Annecy",null,null,"Twitter Annecy",null,null,"Viadeo FS",null,null,"Linkedin FS",null,null,"FB Skyline"]
[null,"2016-03-28",null,null,null,"THEME",null,null,"THEME",null,null,"THEME",null,null,"THEME",null,null,"THEME",null,null,"THEME",null,null,"THEME"]
[]
[null,{"$f":"PlanifierJour","v":"2016-03-28"},{"$f":"TotauxHeuresQuotidiennes","v":0},0,null,null,null,null,null,0,null,null,0]
[null,{"$f":"PlanifierJour","v":""},{"$f":"TotauxHeuresQuotidiennes","v":""},0]
[null,{"$f":"PlanifierJour","v":""},{"$f":"TotauxHeuresQuotidiennes","v":""}]
[null,{"$f":"PlanifierJour","v":""},{"$f":"TotauxHeuresQuotidiennes","v":""}]
[null,{"$f":"PlanifierJour","v":""},{"$f":"TotauxHeuresQuotidiennes","v":""}]
[null,{"$f":"PlanifierJour","v":"2016-03-29"},{"$f":"TotauxHeuresQuotidiennes","v":0},1,null,"article de presse",1,null,"dessins enfants",1,null,"dessins enfants",1,null,"citation"]
[null,{"$f":"PlanifierJour","v":""},{"$f":"TotauxHeuresQuotidiennes","v":""},null,null,"zicomatic"]
[null,{"$f":"PlanifierJour","v":""},{"$f":"TotauxHeuresQuotidiennes","v":""}]
[null,{"$f":"PlanifierJour","v":""},{"$f":"TotauxHeuresQuotidiennes","v":""}]
[null,{"$f":"PlanifierJour","v":""},{"$f":"TotauxHeuresQuotidiennes","v":""}]
[null,{"$f":"PlanifierJour","v":"2016-03-30"},{"$f":"TotauxHeuresQuotidiennes","v":0},1,null,"citation",1,null,"citation",1,null,"dessins enfants",1,null,"citation",null,null,"citation"]
[null,{"$f":"PlanifierJour","v":""},{"$f":"TotauxHeuresQuotidiennes","v":""},null,null,"enfant qui se devalorise"]
[null,{"$f":"PlanifierJour","v":""},{"$f":"TotauxHeuresQuotidiennes","v":""}]
[null,{"$f":"PlanifierJour","v":""},{"$f":"TotauxHeuresQuotidiennes","v":""}]
[null,{"$f":"PlanifierJour","v":""},{"$f":"TotauxHeuresQuotidiennes","v":""}]
[null,{"$f":"PlanifierJour","v":"2016-03-31"},{"$f":"TotauxHeuresQuotidiennes","v":0},1,null,"avantages FS",1,null,"recette",1,null,"offre d'emploi",1,null,"dessin d'enfants"]
[null,{"$f":"PlanifierJour","v":""},{"$f":"TotauxHeuresQuotidiennes","v":""},null,null,"cout"]
[null,{"$f":"PlanifierJour","v":""},{"$f":"TotauxHeuresQuotidiennes","v":""}]
[null,{"$f":"PlanifierJour","v":""},{"$f":"TotauxHeuresQuotidiennes","v":""}]
[null,{"$f":"PlanifierJour","v":""},{"$f":"TotauxHeuresQuotidiennes","v":""}]
[null,{"$f":"PlanifierJour","v":"2016-04-01"},{"$f":"TotauxHeuresQuotidiennes","v":0},1,null,"agenda",1,null,"agenda",1,null,"agenda",1,null,"agenda",1,null,"video G foucher",1,null,"video G foucher"]
[null,{"$f":"PlanifierJour","v":""},{"$f":"TotauxHeuresQuotidiennes","v":""},null,null,"atoujeu"]
[null,{"$f":"PlanifierJour","v":""},{"$f":"TotauxHeuresQuotidiennes","v":""}]
[null,{"$f":"PlanifierJour","v":""},{"$f":"TotauxHeuresQuotidiennes","v":""}]
[null,{"$f":"PlanifierJour","v":""},{"$f":"TotauxHeuresQuotidiennes","v":""}]
[null,{"$f":"PlanifierJour","v":"2016-04-02"},{"$f":"TotauxHeuresQuotidiennes","v":0},1,null,"conférence braingym",1,null,"zicomatic",1,null,"avantages FS"]
[null,{"$f":"PlanifierJour","v":""},{"$f":"TotauxHeuresQuotidiennes","v":""},null,null,"barby",null,null,"article"]
[null,{"$f":"PlanifierJour","v":""},{"$f":"TotauxHeuresQuotidiennes","v":""},null,null,null,null,null,null,0]
[null,{"$f":"PlanifierJour","v":""},{"$f":"TotauxHeuresQuotidiennes","v":""}]
[null,{"$f":"PlanifierJour","v":""},{"$f":"TotauxHeuresQuotidiennes","v":""}]
[null,{"$f":"PlanifierJour","v":"2016-04-03"},{"$f":"TotauxHeuresQuotidiennes","v":0},1,null,"recette",1,null,"avantages FS",1,null,"Enfants qui se",1,null,"Avantages FS"]
[null,{"$f":"PlanifierJour","v":""},{"$f":"TotauxHeuresQuotidiennes","v":""},null,null,"courgettes chorizo",null,null,null,null,null,"devalorisent"]
[null,{"$f":"PlanifierJour","v":""},{"$f":"TotauxHeuresQuotidiennes","v":""}]
[null,{"$f":"PlanifierJour","v":""},{"$f":"TotauxHeuresQuotidiennes","v":""}]
[null,{"$f":"PlanifierJour","v":""},{"$f":"TotauxHeuresQuotidiennes","v":""}]
[null,{"$f":"PlanifierJour","v":""},{"$f":"TotauxHeuresQuotidiennes","v":""}]
[null,{"$f":"PlanifierJour","v":""},{"$f":"TotauxHeuresQuotidiennes","v":""}]
[null,{"$f":"PlanifierJour","v":""},{"$f":"TotauxHeuresQuotidiennes","v":""}]
[null,{"$f":"PlanifierJour","v":""},{"$f":"TotauxHeuresQuotidiennes","v":""}]
[null,{"$f":"PlanifierJour","v":""},{"$f":"TotauxHeuresQuotidiennes","v":""}]
[null,{"$f":"PlanifierJour","v":""},{"$f":"TotauxHeuresQuotidiennes","v":""}]
[null,{"$f":"PlanifierJour","v":""},{"$f":"TotauxHeuresQuotidiennes","v":""}]
[null,{"$f":"PlanifierJour","v":""},{"$f":"TotauxHeuresQuotidiennes","v":""}]
[null,{"$f":"PlanifierJour","v":""},{"$f":"TotauxHeuresQuotidiennes","v":""}]
[null,{"$f":"PlanifierJour","v":""},{"$f":"TotauxHeuresQuotidiennes","v":""}]
[null,{"$f":"PlanifierJour","v":""},{"$f":"TotauxHeuresQuotidiennes","v":""}]
[null,{"$f":"PlanifierJour","v":""},{"$f":"TotauxHeuresQuotidiennes","v":""}]
[null,{"$f":"PlanifierJour","v":""},{"$f":"TotauxHeuresQuotidiennes","v":""}]
[null,{"$f":"PlanifierJour","v":""},{"$f":"TotauxHeuresQuotidiennes","v":""}]
[null,{"$f":"PlanifierJour","v":""},{"$f":"TotauxHeuresQuotidiennes","v":""}]
[null,{"$f":"PlanifierJour","v":""},{"$f":"TotauxHeuresQuotidiennes","v":""}]
[null,{"$f":"PlanifierJour","v":""},{"$f":"TotauxHeuresQuotidiennes","v":""}]
[null,{"$f":"PlanifierJour","v":""},{"$f":"TotauxHeuresQuotidiennes","v":""}]
[null,{"$f":"PlanifierJour","v":""},{"$f":"TotauxHeuresQuotidiennes","v":""}]
[null,{"$f":"PlanifierJour","v":""},{"$f":"TotauxHeuresQuotidiennes","v":""}]
[null,{"$f":"PlanifierJour","v":""},{"$f":"TotauxHeuresQuotidiennes","v":""}]
[null,{"$f":"PlanifierJour","v":""},{"$f":"TotauxHeuresQuotidiennes","v":""}]
[null,{"$f":"PlanifierJour","v":""},{"$f":"TotauxHeuresQuotidiennes","v":""}]
[null,{"$f":"PlanifierJour","v":""},{"$f":"TotauxHeuresQuotidiennes","v":""}]
[null,{"$f":"PlanifierJour","v":""},{"$f":"TotauxHeuresQuotidiennes","v":""}]
[null,{"$f":"PlanifierJour","v":""},{"$f":"TotauxHeuresQuotidiennes","v":""}]
[null,{"$f":"PlanifierJour","v":""},{"$f":"TotauxHeuresQuotidiennes","v":""}]
[null,{"$f":"PlanifierJour","v":""},{"$f":"TotauxHeuresQuotidiennes","v":""}]
[null,{"$f":"PlanifierJour","v":""},{"$f":"TotauxHeuresQuotidiennes","v":""}]
[null,{"$f":"PlanifierJour","v":""},{"$f":"TotauxHeuresQuotidiennes","v":""}]
[null,{"$f":"PlanifierJour","v":""},{"$f":"TotauxHeuresQuotidiennes","v":""}]
[null,{"$f":"PlanifierJour","v":""},{"$f":"TotauxHeuresQuotidiennes","v":""}]
[null,{"$f":"PlanifierJour","v":""},{"$f":"TotauxHeuresQuotidiennes","v":""}]
[null,{"$f":"PlanifierJour","v":""},{"$f":"TotauxHeuresQuotidiennes","v":""}]
[null,{"$f":"PlanifierJour","v":""},{"$f":"TotauxHeuresQuotidiennes","v":""}]
[null,{"$f":"PlanifierJour","v":""},{"$f":"TotauxHeuresQuotidiennes","v":""}]
[null,{"$f":"PlanifierJour","v":""},{"$f":"TotauxHeuresQuotidiennes","v":""}]
[null,{"$f":"PlanifierJour","v":""},{"$f":"TotauxHeuresQuotidiennes","v":""}]
[null,{"$f":"PlanifierJour","v":""},{"$f":"TotauxHeuresQuotidiennes","v":""}]
[null,{"$f":"PlanifierJour","v":""},{"$f":"TotauxHeuresQuotidiennes","v":""}]
[null,{"$f":"PlanifierJour","v":""},{"$f":"TotauxHeuresQuotidiennes","v":""}]
[null,{"$f":"PlanifierJour","v":""},{"$f":"TotauxHeuresQuotidiennes","v":""}]
[null,{"$f":"PlanifierJour","v":""},{"$f":"TotauxHeuresQuotidiennes","v":""}]
[null,{"$f":"PlanifierJour","v":""},{"$f":"TotauxHeuresQuotidiennes","v":""}]
[null,{"$f":"PlanifierJour","v":""},{"$f":"TotauxHeuresQuotidiennes","v":""}]
[null,{"$f":"PlanifierJour","v":""},{"$f":"TotauxHeuresQuotidiennes","v":""}]
[null,{"$f":"PlanifierJour","v":""},{"$f":"TotauxHeuresQuotidiennes","v":""}]
[null,{"$f":"PlanifierJour","v":""},{"$f":"TotauxHeuresQuotidiennes","v":""}]
[null,{"$f":"PlanifierJour","v":""},{"$f":"TotauxHeuresQuotidiennes","v":""}]
[null,{"$f":"PlanifierJour","v":""},{"$f":"TotauxHeuresQuotidiennes","v":""}]
[null,{"$f":"PlanifierJour","v":""},{"$f":"TotauxHeuresQuotidiennes","v":""}]
[null,{"$f":"PlanifierJour","v":""},{"$f":"TotauxHeuresQuotidiennes","v":""}]
[null,{"$f":"PlanifierJour","v":""},{"$f":"TotauxHeuresQuotidiennes","v":""}]
[null,{"$f":"PlanifierJour","v":""},{"$f":"TotauxHeuresQuotidiennes","v":""}]
[null,{"$f":"PlanifierJour","v":""},{"$f":"TotauxHeuresQuotidiennes","v":""}]
[null,{"$f":"PlanifierJour","v":""},{"$f":"TotauxHeuresQuotidiennes","v":""}]
[null,{"$f":"PlanifierJour","v":""},{"$f":"TotauxHeuresQuotidiennes","v":""}]
[null,{"$f":"PlanifierJour","v":""},{"$f":"TotauxHeuresQuotidiennes","v":""}]
[null,{"$f":"PlanifierJour","v":""},{"$f":"TotauxHeuresQuotidiennes","v":""}]
[null,{"$f":"PlanifierJour","v":""},{"$f":"TotauxHeuresQuotidiennes","v":""}]
[null,{"$f":"PlanifierJour","v":""},{"$f":"TotauxHeuresQuotidiennes","v":""}]
[null,{"$f":"PlanifierJour","v":""},{"$f":"TotauxHeuresQuotidiennes","v":""}]

{"sheet":"avr04","index":5,"n_rows":103,"n_cols":24,"rows_kept":103,"cut":false,"hidden":false,"merged":[[3,21,3,23],[3,3,3,5],[3,6,3,8],[3,9,3,11],[3,12,3,14],[3,15,3,17],[3,18,3,20]]}
[]
[null,"Publications"]
[]
[null,"Entrez la date de début","Totaux","Facebook Chambéry",null,null,"Twitter Chambéry",null,null,"FB Annecy",null,null,"Twitter Annecy",null,null,"Viadeo FS",null,null,"Linkedin FS",null,null,"FB Skyline"]
[null,"2016-04-04",null,null,null,"THEME",null,null,"THEME",null,null,"THEME",null,null,"THEME",null,null,"THEME",null,null,"THEME",null,null,"THEME"]
[]
[null,{"$f":"PlanifierJour","v":"2016-04-04"},{"$f":"TotauxHeuresQuotidiennes","v":0},1,null,"videao youtube",null,null,null,1,null,"recette",0]
[null,{"$f":"PlanifierJour","v":""},{"$f":"TotauxHeuresQuotidiennes","v":""},0,null,null,null,null,null,null,null,"courgettes chorizo"]
[null,{"$f":"PlanifierJour","v":""},{"$f":"TotauxHeuresQuotidiennes","v":""}]
[null,{"$f":"PlanifierJour","v":""},{"$f":"TotauxHeuresQuotidiennes","v":""}]
[null,{"$f":"PlanifierJour","v":""},{"$f":"TotauxHeuresQuotidiennes","v":""}]
[null,{"$f":"PlanifierJour","v":"2016-04-05"},{"$f":"TotauxHeuresQuotidiennes","v":0},1,null,"forum jobs d'été",null,null,null,1,null,"forum jobs d'été"]
[null,{"$f":"PlanifierJour","v":""},{"$f":"TotauxHeuresQuotidiennes","v":""}]
[null,{"$f":"PlanifierJour","v":""},{"$f":"TotauxHeuresQuotidiennes","v":""}]
[null,{"$f":"PlanifierJour","v":""},{"$f":"TotauxHeuresQuotidiennes","v":""}]
[null,{"$f":"PlanifierJour","v":""},{"$f":"TotauxHeuresQuotidiennes","v":""}]
[null,{"$f":"PlanifierJour","v":"2016-04-06"},{"$f":"TotauxHeuresQuotidiennes","v":0},0,null,null,null,null,null,0]
[null,{"$f":"PlanifierJour","v":""},{"$f":"TotauxHeuresQuotidiennes","v":""}]
[null,{"$f":"PlanifierJour","v":""},{"$f":"TotauxHeuresQuotidiennes","v":""}]
[null,{"$f":"PlanifierJour","v":""},{"$f":"TotauxHeuresQuotidiennes","v":""}]
[null,{"$f":"PlanifierJour","v":""},{"$f":"TotauxHeuresQuotidiennes","v":""}]
[null,{"$f":"PlanifierJour","v":"2016-04-07"},{"$f":"TotauxHeuresQuotidiennes","v":0},1,null,"nouveau directeur",1,null,"garde d'enfants",1,null,"dessins",1,null,"dessins"]
[null,{"$f":"PlanifierJour","v":""},{"$f":"TotauxHeuresQuotidiennes","v":""},null,null,"FS",null,null,"en situation handicap"]
[null,{"$f":"PlanifierJour","v":""},{"$f":"TotauxHeuresQuotidiennes","v":""}]
[null,{"$f":"PlanifierJour","v":""},{"$f":"TotauxHeuresQuotidiennes","v":""}]
[null,{"$f":"PlanifierJour","v":""},{"$f":"TotauxHeuresQuotidiennes","v":""}]
[null,{"$f":"PlanifierJour","v":"2016-04-08"},{"$f":"TotauxHeuresQuotidiennes","v":0},1,null,"le loup qui visitait",null,null,null,1,null,"les chlorophylles"]
[null,{"$f":"PlanifierJour","v":""},{"$f":"TotauxHeuresQuotidiennes","v":""},null,null,"Chambéry"]
[null,{"$f":"PlanifierJour","v":""},{"$f":"TotauxHeuresQuotidiennes","v":""}]
[null,{"$f":"PlanifierJour","v":""},{"$f":"TotauxHeuresQuotidiennes","v":""}]
[null,{"$f":"PlanifierJour","v":""},{"$f":"TotauxHeuresQuotidiennes","v":""}]
[null,{"$f":"PlanifierJour","v":"2016-04-09"},{"$f":"TotauxHeuresQuotidiennes","v":0},1,null,"dessins",1,null,"garde d'enfants simple",1,null,"video youtube",1,null,"garde d'enfants",1,null,"Sophie Connetable",0]
[null,{"$f":"PlanifierJour","v":""},{"$f":"TotauxHeuresQuotidiennes","v":""},null,null,null,null,null,"ou partagée.",null,null,null,null,null,"en situation handicap"]
[null,{"$f":"PlanifierJour","v":""},{"$f":"TotauxHeuresQuotidiennes","v":""},null,null,null,null,null,null,0]
[null,{"$f":"PlanifierJour","v":""},{"$f":"TotauxHeuresQuotidiennes","v":""}]
[null,{"$f":"PlanifierJour","v":""},{"$f":"TotauxHeuresQuotidiennes","v":""}]
[null,{"$f":"PlanifierJour","v":"2016-04-10"},{"$f":"TotauxHeuresQuotidiennes","v":0},1,null,"forum jobs d'été",null,null,null,1,null,"nouveau directeur"]
[null,{"$f":"PlanifierJour","v":""},{"$f":"TotauxHeuresQuotidiennes","v":""},null,null,null,null,null,null,null,null,"FS"]
[null,{"$f":"PlanifierJour","v":""},{"$f":"TotauxHeuresQuotidiennes","v":""}]
[null,{"$f":"PlanifierJour","v":""},{"$f":"TotauxHeuresQuotidiennes","v":""}]
[null,{"$f":"PlanifierJour","v":""},{"$f":"TotauxHeuresQuotidiennes","v":""}]
[null,{"$f":"PlanifierJour","v":""},{"$f":"TotauxHeuresQuotidiennes","v":""}]
[null,{"$f":"PlanifierJour","v":""},{"$f":"TotauxHeuresQuotidiennes","v":""}]
[null,{"$f":"PlanifierJour","v":""},{"$f":"TotauxHeuresQuotidiennes","v":""}]
[null,{"$f":"PlanifierJour","v":""},{"$f":"TotauxHeuresQuotidiennes","v":""}]
[null,{"$f":"PlanifierJour","v":""},{"$f":"TotauxHeuresQuotidiennes","v":""}]
[null,{"$f":"PlanifierJour","v":""},{"$f":"TotauxHeuresQuotidiennes","v":""}]
[null,{"$f":"PlanifierJour","v":""},{"$f":"TotauxHeuresQuotidiennes","v":""}]
[null,{"$f":"PlanifierJour","v":""},{"$f":"TotauxHeuresQuotidiennes","v":""}]
[null,{"$f":"PlanifierJour","v":""},{"$f":"TotauxHeuresQuotidiennes","v":""}]
[null,{"$f":"PlanifierJour","v":""},{"$f":"TotauxHeuresQuotidiennes","v":""}]
[null,{"$f":"PlanifierJour","v":""},{"$f":"TotauxHeuresQuotidiennes","v":""}]
[null,{"$f":"PlanifierJour","v":""},{"$f":"TotauxHeuresQuotidiennes","v":""}]
[null,{"$f":"PlanifierJour","v":""},{"$f":"TotauxHeuresQuotidiennes","v":""}]
[null,{"$f":"PlanifierJour","v":""},{"$f":"TotauxHeuresQuotidiennes","v":""}]
[null,{"$f":"PlanifierJour","v":""},{"$f":"TotauxHeuresQuotidiennes","v":""}]
[null,{"$f":"PlanifierJour","v":""},{"$f":"TotauxHeuresQuotidiennes","v":""}]
[null,{"$f":"PlanifierJour","v":""},{"$f":"TotauxHeuresQuotidiennes","v":""}]
[null,{"$f":"PlanifierJour","v":""},{"$f":"TotauxHeuresQuotidiennes","v":""}]
[null,{"$f":"PlanifierJour","v":""},{"$f":"TotauxHeuresQuotidiennes","v":""}]
[null,{"$f":"PlanifierJour","v":""},{"$f":"TotauxHeuresQuotidiennes","v":""}]
[null,{"$f":"PlanifierJour","v":""},{"$f":"TotauxHeuresQuotidiennes","v":""}]
[null,{"$f":"PlanifierJour","v":""},{"$f":"TotauxHeuresQuotidiennes","v":""}]
[null,{"$f":"PlanifierJour","v":""},{"$f":"TotauxHeuresQuotidiennes","v":""}]
[null,{"$f":"PlanifierJour","v":""},{"$f":"TotauxHeuresQuotidiennes","v":""}]
[null,{"$f":"PlanifierJour","v":""},{"$f":"TotauxHeuresQuotidiennes","v":""}]
[null,{"$f":"PlanifierJour","v":""},{"$f":"TotauxHeuresQuotidiennes","v":""}]
[null,{"$f":"PlanifierJour","v":""},{"$f":"TotauxHeuresQuotidiennes","v":""}]
[null,{"$f":"PlanifierJour","v":""},{"$f":"TotauxHeuresQuotidiennes","v":""}]
[null,{"$f":"PlanifierJour","v":""},{"$f":"TotauxHeuresQuotidiennes","v":""}]
[null,{"$f":"PlanifierJour","v":""},{"$f":"TotauxHeuresQuotidiennes","v":""}]
[null,{"$f":"PlanifierJour","v":""},{"$f":"TotauxHeuresQuotidiennes","v":""}]
[null,{"$f":"PlanifierJour","v":""},{"$f":"TotauxHeuresQuotidiennes","v":""}]
[null,{"$f":"PlanifierJour","v":""},{"$f":"TotauxHeuresQuotidiennes","v":""}]
[null,{"$f":"PlanifierJour","v":""},{"$f":"TotauxHeuresQuotidiennes","v":""}]
[null,{"$f":"PlanifierJour","v":""},{"$f":"TotauxHeuresQuotidiennes","v":""}]
[null,{"$f":"PlanifierJour","v":""},{"$f":"TotauxHeuresQuotidiennes","v":""}]
[null,{"$f":"PlanifierJour","v":""},{"$f":"TotauxHeuresQuotidiennes","v":""}]
[null,{"$f":"PlanifierJour","v":""},{"$f":"TotauxHeuresQuotidiennes","v":""}]
[null,{"$f":"PlanifierJour","v":""},{"$f":"TotauxHeuresQuotidiennes","v":""}]
[null,{"$f":"PlanifierJour","v":""},{"$f":"TotauxHeuresQuotidiennes","v":""}]
[null,{"$f":"PlanifierJour","v":""},{"$f":"TotauxHeuresQuotidiennes","v":""}]
[null,{"$f":"PlanifierJour","v":""},{"$f":"TotauxHeuresQuotidiennes","v":""}]
[null,{"$f":"PlanifierJour","v":""},{"$f":"TotauxHeuresQuotidiennes","v":""}]
[null,{"$f":"PlanifierJour","v":""},{"$f":"TotauxHeuresQuotidiennes","v":""}]
[null,{"$f":"PlanifierJour","v":""},{"$f":"TotauxHeuresQuotidiennes","v":""}]
[null,{"$f":"PlanifierJour","v":""},{"$f":"TotauxHeuresQuotidiennes","v":""}]
[null,{"$f":"PlanifierJour","v":""},{"$f":"TotauxHeuresQuotidiennes","v":""}]
[null,{"$f":"PlanifierJour","v":""},{"$f":"TotauxHeuresQuotidiennes","v":""}]
[null,{"$f":"PlanifierJour","v":""},{"$f":"TotauxHeuresQuotidiennes","v":""}]
[null,{"$f":"PlanifierJour","v":""},{"$f":"TotauxHeuresQuotidiennes","v":""}]
[null,{"$f":"PlanifierJour","v":""},{"$f":"TotauxHeuresQuotidiennes","v":""}]
[null,{"$f":"PlanifierJour","v":""},{"$f":"TotauxHeuresQuotidiennes","v":""}]
[null,{"$f":"PlanifierJour","v":""},{"$f":"TotauxHeuresQuotidiennes","v":""}]
[null,{"$f":"PlanifierJour","v":""},{"$f":"TotauxHeuresQuotidiennes","v":""}]
[null,{"$f":"PlanifierJour","v":""},{"$f":"TotauxHeuresQuotidiennes","v":""}]
[null,{"$f":"PlanifierJour","v":""},{"$f":"TotauxHeuresQuotidiennes","v":""}]
[null,{"$f":"PlanifierJour","v":""},{"$f":"TotauxHeuresQuotidiennes","v":""}]
[null,{"$f":"PlanifierJour","v":""},{"$f":"TotauxHeuresQuotidiennes","v":""}]
[null,{"$f":"PlanifierJour","v":""},{"$f":"TotauxHeuresQuotidiennes","v":""}]
[null,{"$f":"PlanifierJour","v":""},{"$f":"TotauxHeuresQuotidiennes","v":""}]
[null,{"$f":"PlanifierJour","v":""},{"$f":"TotauxHeuresQuotidiennes","v":""}]
[null,{"$f":"PlanifierJour","v":""},{"$f":"TotauxHeuresQuotidiennes","v":""}]

{"sheet":"avr11","index":6,"n_rows":103,"n_cols":24,"rows_kept":103,"cut":false,"hidden":false,"merged":[[3,21,3,23],[3,3,3,5],[3,6,3,8],[3,9,3,11],[3,12,3,14],[3,15,3,17],[3,18,3,20]]}
[]
[null,"Publications"]
[]
[null,"Entrez la date de début","Totaux","Facebook Chambéry",null,null,"Twitter Chambéry",null,null,"FB Annecy",null,null,"Twitter Annecy",null,null,"Viadeo FS",null,null,"Linkedin FS",null,null,"FB Skyline"]
[null,"2016-04-11",null,null,null,"THEME",null,null,"THEME",null,null,"THEME",null,null,"THEME",null,null,"THEME",null,null,"THEME",null,null,"THEME"]
[]
[null,{"$f":"PlanifierJour","v":"2016-04-11"},{"$f":"TotauxHeuresQuotidiennes","v":0},1,null,"journée mondiale",null,null,null,1,null,"journée mondiale",0]
[null,{"$f":"PlanifierJour","v":""},{"$f":"TotauxHeuresQuotidiennes","v":""},0,null,"parkinson",null,null,null,null,null,"parkinson"]
[null,{"$f":"PlanifierJour","v":""},{"$f":"TotauxHeuresQuotidiennes","v":""}]
[null,{"$f":"PlanifierJour","v":""},{"$f":"TotauxHeuresQuotidiennes","v":""}]
[null,{"$f":"PlanifierJour","v":""},{"$f":"TotauxHeuresQuotidiennes","v":""}]
[null,{"$f":"PlanifierJour","v":"2016-04-12"},{"$f":"TotauxHeuresQuotidiennes","v":0},0,null,null,null,null,null,0]
[null,{"$f":"PlanifierJour","v":""},{"$f":"TotauxHeuresQuotidiennes","v":""}]
[null,{"$f":"PlanifierJour","v":""},{"$f":"TotauxHeuresQuotidiennes","v":""}]
[null,{"$f":"PlanifierJour","v":""},{"$f":"TotauxHeuresQuotidiennes","v":""}]
[null,{"$f":"PlanifierJour","v":""},{"$f":"TotauxHeuresQuotidiennes","v":""}]
[null,{"$f":"PlanifierJour","v":"2016-04-13"},{"$f":"TotauxHeuresQuotidiennes","v":0},1,null,"offre d'emploi",1,null,"garde d'enfants simple",1,null,"offre d'emploi",1,null,"nounou argonay"]
[null,{"$f":"PlanifierJour","v":""},{"$f":"TotauxHeuresQuotidiennes","v":""},null,null,null,null,null,"ou partagée."]
[null,{"$f":"PlanifierJour","v":""},{"$f":"TotauxHeuresQuotidiennes","v":""},null,null,null,null,null,null,1,null,"demande de garde partagée"]
[null,{"$f":"PlanifierJour","v":""},{"$f":"TotauxHeuresQuotidiennes","v":""}]
[null,{"$f":"PlanifierJour","v":""},{"$f":"TotauxHeuresQuotidiennes","v":""}]
[null,{"$f":"PlanifierJour","v":"2016-04-14"},{"$f":"TotauxHeuresQuotidiennes","v":0},0]
[null,{"$f":"PlanifierJour","v":""},{"$f":"TotauxHeuresQuotidiennes","v":""}]
[null,{"$f":"PlanifierJour","v":""},{"$f":"TotauxHeuresQuotidiennes","v":""}]
[null,{"$f":"PlanifierJour","v":""},{"$f":"TotauxHeuresQuotidiennes","v":""}]
[null,{"$f":"PlanifierJour","v":""},{"$f":"TotauxHeuresQuotidiennes","v":""}]
[null,{"$f":"PlanifierJour","v":"2016-04-15"},{"$f":"TotauxHeuresQuotidiennes","v":0},1,null,"fleur la vache",null,null,null,1,null,"recrutement de 6000"]
[null,{"$f":"PlanifierJour","v":""},{"$f":"TotauxHeuresQuotidiennes","v":""}]
[null,{"$f":"PlanifierJour","v":""},{"$f":"TotauxHeuresQuotidiennes","v":""}]
[null,{"$f":"PlanifierJour","v":""},{"$f":"TotauxHeuresQuotidiennes","v":""}]
[null,{"$f":"PlanifierJour","v":""},{"$f":"TotauxHeuresQuotidiennes","v":""}]
[null,{"$f":"PlanifierJour","v":"2016-04-16"},{"$f":"TotauxHeuresQuotidiennes","v":0},1,null,"garde d'enfants simple",1,null,"recrutement 6000",1,null,"forum jobs d'été",1,null,"garde d'enfants simple",1,null,"recrutement 6000",0,null,"recrutement 6000"]
[null,{"$f":"PlanifierJour","v":""},{"$f":"TotauxHeuresQuotidiennes","v":""},null,null,"ou partagée.",null,null,null,null,null,null,null,null,"ou partagée."]
[null,{"$f":"PlanifierJour","v":""},{"$f":"TotauxHeuresQuotidiennes","v":""},null,null,null,null,null,null,0]
[null,{"$f":"PlanifierJour","v":""},{"$f":"TotauxHeuresQuotidiennes","v":""}]
[null,{"$f":"PlanifierJour","v":""},{"$f":"TotauxHeuresQuotidiennes","v":""}]
[null,{"$f":"PlanifierJour","v":"2016-04-17"},{"$f":"TotauxHeuresQuotidiennes","v":0},1,null,"recrutement de 6000",null,null,null,1,null,"garde d'enfants simple",1,null,"recrutement 6000"]
[null,{"$f":"PlanifierJour","v":""},{"$f":"TotauxHeuresQuotidiennes","v":""},null,null,null,null,null,null,null,null,"ou partagée."]
[null,{"$f":"PlanifierJour","v":""},{"$f":"TotauxHeuresQuotidiennes","v":""}]
[null,{"$f":"PlanifierJour","v":""},{"$f":"TotauxHeuresQuotidiennes","v":""}]
[null,{"$f":"PlanifierJour","v":""},{"$f":"TotauxHeuresQuotidiennes","v":""}]
[null,{"$f":"PlanifierJour","v":""},{"$f":"TotauxHeuresQuotidiennes","v":""}]
[null,{"$f":"PlanifierJour","v":""},{"$f":"TotauxHeuresQuotidiennes","v":""}]
[null,{"$f":"PlanifierJour","v":""},{"$f":"TotauxHeuresQuotidiennes","v":""}]
[null,{"$f":"PlanifierJour","v":""},{"$f":"TotauxHeuresQuotidiennes","v":""}]
[null,{"$f":"PlanifierJour","v":""},{"$f":"TotauxHeuresQuotidiennes","v":""}]
[null,{"$f":"PlanifierJour","v":""},{"$f":"TotauxHeuresQuotidiennes","v":""}]
[null,{"$f":"PlanifierJour","v":""},{"$f":"TotauxHeuresQuotidiennes","v":""}]
[null,{"$f":"PlanifierJour","v":""},{"$f":"TotauxHeuresQuotidiennes","v":""}]
[null,{"$f":"PlanifierJour","v":""},{"$f":"TotauxHeuresQuotidiennes","v":""}]
[null,{"$f":"PlanifierJour","v":""},{"$f":"TotauxHeuresQuotidiennes","v":""}]
[null,{"$f":"PlanifierJour","v":""},{"$f":"TotauxHeuresQuotidiennes","v":""}]
[null,{"$f":"PlanifierJour","v":""},{"$f":"TotauxHeuresQuotidiennes","v":""}]
[null,{"$f":"PlanifierJour","v":""},{"$f":"TotauxHeuresQuotidiennes","v":""}]
[null,{"$f":"PlanifierJour","v":""},{"$f":"TotauxHeuresQuotidiennes","v":""}]
[null,{"$f":"PlanifierJour","v":""},{"$f":"TotauxHeuresQuotidiennes","v":""}]
[null,{"$f":"PlanifierJour","v":""},{"$f":"TotauxHeuresQuotidiennes","v":""}]
[null,{"$f":"PlanifierJour","v":""},{"$f":"TotauxHeuresQuotidiennes","v":""}]
[null,{"$f":"PlanifierJour","v":""},{"$f":"TotauxHeuresQuotidiennes","v":""}]
[null,{"$f":"PlanifierJour","v":""},{"$f":"TotauxHeuresQuotidiennes","v":""}]
[null,{"$f":"PlanifierJour","v":""},{"$f":"TotauxHeuresQuotidiennes","v":""}]
[null,{"$f":"PlanifierJour","v":""},{"$f":"TotauxHeuresQuotidiennes","v":""}]
[null,{"$f":"PlanifierJour","v":""},{"$f":"TotauxHeuresQuotidiennes","v":""}]
[null,{"$f":"PlanifierJour","v":""},{"$f":"TotauxHeuresQuotidiennes","v":""}]
[null,{"$f":"PlanifierJour","v":""},{"$f":"TotauxHeuresQuotidiennes","v":""}]
[null,{"$f":"PlanifierJour","v":""},{"$f":"TotauxHeuresQuotidiennes","v":""}]
[null,{"$f":"PlanifierJour","v":""},{"$f":"TotauxHeuresQuotidiennes","v":""}]
[null,{"$f":"PlanifierJour","v":""},{"$f":"TotauxHeuresQuotidiennes","v":""}]
[null,{"$f":"PlanifierJour","v":""},{"$f":"TotauxHeuresQuotidiennes","v":""}]
[null,{"$f":"PlanifierJour","v":""},{"$f":"TotauxHeuresQuotidiennes","v":""}]
[null,{"$f":"PlanifierJour","v":""},{"$f":"TotauxHeuresQuotidiennes","v":""}]
[null,{"$f":"PlanifierJour","v":""},{"$f":"TotauxHeuresQuotidiennes","v":""}]
[null,{"$f":"PlanifierJour","v":""},{"$f":"TotauxHeuresQuotidiennes","v":""}]
[null,{"$f":"PlanifierJour","v":""},{"$f":"TotauxHeuresQuotidiennes","v":""}]
[null,{"$f":"PlanifierJour","v":""},{"$f":"TotauxHeuresQuotidiennes","v":""}]
[null,{"$f":"PlanifierJour","v":""},{"$f":"TotauxHeuresQuotidiennes","v":""}]
[null,{"$f":"PlanifierJour","v":""},{"$f":"TotauxHeuresQuotidiennes","v":""}]
[null,{"$f":"PlanifierJour","v":""},{"$f":"TotauxHeuresQuotidiennes","v":""}]
[null,{"$f":"PlanifierJour","v":""},{"$f":"TotauxHeuresQuotidiennes","v":""}]
[null,{"$f":"PlanifierJour","v":""},{"$f":"TotauxHeuresQuotidiennes","v":""}]
[null,{"$f":"PlanifierJour","v":""},{"$f":"TotauxHeuresQuotidiennes","v":""}]
[null,{"$f":"PlanifierJour","v":""},{"$f":"TotauxHeuresQuotidiennes","v":""}]
[null,{"$f":"PlanifierJour","v":""},{"$f":"TotauxHeuresQuotidiennes","v":""}]
[null,{"$f":"PlanifierJour","v":""},{"$f":"TotauxHeuresQuotidiennes","v":""}]
[null,{"$f":"PlanifierJour","v":""},{"$f":"TotauxHeuresQuotidiennes","v":""}]
[null,{"$f":"PlanifierJour","v":""},{"$f":"TotauxHeuresQuotidiennes","v":""}]
[null,{"$f":"PlanifierJour","v":""},{"$f":"TotauxHeuresQuotidiennes","v":""}]
[null,{"$f":"PlanifierJour","v":""},{"$f":"TotauxHeuresQuotidiennes","v":""}]
[null,{"$f":"PlanifierJour","v":""},{"$f":"TotauxHeuresQuotidiennes","v":""}]
[null,{"$f":"PlanifierJour","v":""},{"$f":"TotauxHeuresQuotidiennes","v":""}]
[null,{"$f":"PlanifierJour","v":""},{"$f":"TotauxHeuresQuotidiennes","v":""}]
[null,{"$f":"PlanifierJour","v":""},{"$f":"TotauxHeuresQuotidiennes","v":""}]
[null,{"$f":"PlanifierJour","v":""},{"$f":"TotauxHeuresQuotidiennes","v":""}]
[null,{"$f":"PlanifierJour","v":""},{"$f":"TotauxHeuresQuotidiennes","v":""}]
[null,{"$f":"PlanifierJour","v":""},{"$f":"TotauxHeuresQuotidiennes","v":""}]
[null,{"$f":"PlanifierJour","v":""},{"$f":"TotauxHeuresQuotidiennes","v":""}]
[null,{"$f":"PlanifierJour","v":""},{"$f":"TotauxHeuresQuotidiennes","v":""}]
[null,{"$f":"PlanifierJour","v":""},{"$f":"TotauxHeuresQuotidiennes","v":""}]
[null,{"$f":"PlanifierJour","v":""},{"$f":"TotauxHeuresQuotidiennes","v":""}]
[null,{"$f":"PlanifierJour","v":""},{"$f":"TotauxHeuresQuotidiennes","v":""}]
[null,{"$f":"PlanifierJour","v":""},{"$f":"TotauxHeuresQuotidiennes","v":""}]
[null,{"$f":"PlanifierJour","v":""},{"$f":"TotauxHeuresQuotidiennes","v":""}]
[null,{"$f":"PlanifierJour","v":""},{"$f":"TotauxHeuresQuotidiennes","v":""}]

{"sheet":"avr18","index":7,"n_rows":103,"n_cols":24,"rows_kept":103,"cut":false,"hidden":false,"merged":[[3,21,3,23],[3,3,3,5],[3,6,3,8],[3,9,3,11],[3,12,3,14],[3,15,3,17],[3,18,3,20]]}
[]
[null,"Publications"]
[]
[null,"Entrez la date de début","Totaux","Facebook Chambéry",null,null,"Twitter Chambéry",null,null,"FB Annecy",null,null,"Twitter Annecy",null,null,"Viadeo FS",null,null,"Linkedin FS",null,null,"FB Skyline"]
[null,"2016-04-18",null,null,null,"THEME",null,null,"THEME",null,null,"THEME",null,null,"THEME",null,null,"THEME",null,null,"THEME",null,null,"THEME"]
[]
[null,{"$f":"PlanifierJour","v":"2016-04-18"},{"$f":"TotauxHeuresQuotidiennes","v":0},1,null,"mardi des tout petits",null,null,null,1,null,"pot en plastique",0]
[null,{"$f":"PlanifierJour","v":""},{"$f":"TotauxHeuresQuotidiennes","v":""},0,null,"jardins"]
[null,{"$f":"PlanifierJour","v":""},{"$f":"TotauxHeuresQuotidiennes","v":""}]
[null,{"$f":"PlanifierJour","v":""},{"$f":"TotauxHeuresQuotidiennes","v":""}]
[null,{"$f":"PlanifierJour","v":""},{"$f":"TotauxHeuresQuotidiennes","v":""}]
[null,{"$f":"PlanifierJour","v":"2016-04-19"},{"$f":"TotauxHeuresQuotidiennes","v":0},1,null,"festival",null,null,null,0]
[null,{"$f":"PlanifierJour","v":""},{"$f":"TotauxHeuresQuotidiennes","v":""},null,null,"file dans ta chambre"]
[null,{"$f":"PlanifierJour","v":""},{"$f":"TotauxHeuresQuotidiennes","v":""}]
[null,{"$f":"PlanifierJour","v":""},{"$f":"TotauxHeuresQuotidiennes","v":""}]
[null,{"$f":"PlanifierJour","v":""},{"$f":"TotauxHeuresQuotidiennes","v":""}]
[null,{"$f":"PlanifierJour","v":"2016-04-20"},{"$f":"TotauxHeuresQuotidiennes","v":0},0,null,null,1,null,"nounou bilingue",1,null,"offre d'emploi",1,null,"nounou bilingue"]
[null,{"$f":"PlanifierJour","v":""},{"$f":"TotauxHeuresQuotidiennes","v":""}]
[null,{"$f":"PlanifierJour","v":""},{"$f":"TotauxHeuresQuotidiennes","v":""}]
[null,{"$f":"PlanifierJour","v":""},{"$f":"TotauxHeuresQuotidiennes","v":""}]
[null,{"$f":"PlanifierJour","v":""},{"$f":"TotauxHeuresQuotidiennes","v":""}]
[null,{"$f":"PlanifierJour","v":"2016-04-21"},{"$f":"TotauxHeuresQuotidiennes","v":0},1,null,"temoignage marseille",1,null,"mariobros handi",1,null,"legumes",1,null,"mariobros handi"]
[null,{"$f":"PlanifierJour","v":""},{"$f":"TotauxHeuresQuotidiennes","v":""}]
[null,{"$f":"PlanifierJour","v":""},{"$f":"TotauxHeuresQuotidiennes","v":""}]
[null,{"$f":"PlanifierJour","v":""},{"$f":"TotauxHeuresQuotidiennes","v":""}]
[null,{"$f":"PlanifierJour","v":""},{"$f":"TotauxHeuresQuotidiennes","v":""}]
[null,{"$f":"PlanifierJour","v":"2016-04-22"},{"$f":"TotauxHeuresQuotidiennes","v":0},1,null,"tourisme et handicap",null,null,null,1,null,"sevrier bd"]
[null,{"$f":"PlanifierJour","v":""},{"$f":"TotauxHeuresQuotidiennes","v":""},null,null,"chambéry"]
[null,{"$f":"PlanifierJour","v":""},{"$f":"TotauxHeuresQuotidiennes","v":""}]
[null,{"$f":"PlanifierJour","v":""},{"$f":"TotauxHeuresQuotidiennes","v":""}]
[null,{"$f":"PlanifierJour","v":""},{"$f":"TotauxHeuresQuotidiennes","v":""}]
[null,{"$f":"PlanifierJour","v":"2016-04-23"},{"$f":"TotauxHeuresQuotidiennes","v":0},1,null,"braderie de printemps",1,null,"garde d'enfant à dom",1,null,"haricots verts apero",1,null,"garde d'enfant à dom",1,null,"garde d'enfant à dom",0,null,"garde d'enfant à dom"]
[null,{"$f":"PlanifierJour","v":""},{"$f":"TotauxHeuresQuotidiennes","v":""},null,null,null,null,null,"qui sommes nous?",null,null,null,null,null,"qui sommes nous?",null,null,"qui sommes nous?",null,null,"qui sommes nous?"]
[null,{"$f":"PlanifierJour","v":""},{"$f":"TotauxHeuresQuotidiennes","v":""},null,null,null,null,null,null,0]
[null,{"$f":"PlanifierJour","v":""},{"$f":"TotauxHeuresQuotidiennes","v":""}]
[null,{"$f":"PlanifierJour","v":""},{"$f":"TotauxHeuresQuotidiennes","v":""}]
[null,{"$f":"PlanifierJour","v":"2016-04-24"},{"$f":"TotauxHeuresQuotidiennes","v":0},1,null,"pot en plastique",null,null,null,1,null,"temoignage marseille",1,null,"webcam annecy"]
[null,{"$f":"PlanifierJour","v":""},{"$f":"TotauxHeuresQuotidiennes","v":""}]
[null,{"$f":"PlanifierJour","v":""},{"$f":"TotauxHeuresQuotidiennes","v":""}]
[null,{"$f":"PlanifierJour","v":""},{"$f":"TotauxHeuresQuotidiennes","v":""}]
[null,{"$f":"PlanifierJour","v":""},{"$f":"TotauxHeuresQuotidiennes","v":""}]
[null,{"$f":"PlanifierJour","v":""},{"$f":"TotauxHeuresQuotidiennes","v":""}]
[null,{"$f":"PlanifierJour","v":""},{"$f":"TotauxHeuresQuotidiennes","v":""}]
[null,{"$f":"PlanifierJour","v":""},{"$f":"TotauxHeuresQuotidiennes","v":""}]
[null,{"$f":"PlanifierJour","v":""},{"$f":"TotauxHeuresQuotidiennes","v":""}]
[null,{"$f":"PlanifierJour","v":""},{"$f":"TotauxHeuresQuotidiennes","v":""}]
[null,{"$f":"PlanifierJour","v":""},{"$f":"TotauxHeuresQuotidiennes","v":""}]
[null,{"$f":"PlanifierJour","v":""},{"$f":"TotauxHeuresQuotidiennes","v":""}]
[null,{"$f":"PlanifierJour","v":""},{"$f":"TotauxHeuresQuotidiennes","v":""}]
[null,{"$f":"PlanifierJour","v":""},{"$f":"TotauxHeuresQuotidiennes","v":""}]
[null,{"$f":"PlanifierJour","v":""},{"$f":"TotauxHeuresQuotidiennes","v":""}]
[null,{"$f":"PlanifierJour","v":""},{"$f":"TotauxHeuresQuotidiennes","v":""}]
[null,{"$f":"PlanifierJour","v":""},{"$f":"TotauxHeuresQuotidiennes","v":""}]
[null,{"$f":"PlanifierJour","v":""},{"$f":"TotauxHeuresQuotidiennes","v":""}]
[null,{"$f":"PlanifierJour","v":""},{"$f":"TotauxHeuresQuotidiennes","v":""}]
[null,{"$f":"PlanifierJour","v":""},{"$f":"TotauxHeuresQuotidiennes","v":""}]
[null,{"$f":"PlanifierJour","v":""},{"$f":"TotauxHeuresQuotidiennes","v":""}]
[null,{"$f":"PlanifierJour","v":""},{"$f":"TotauxHeuresQuotidiennes","v":""}]
[null,{"$f":"PlanifierJour","v":""},{"$f":"TotauxHeuresQuotidiennes","v":""}]
[null,{"$f":"PlanifierJour","v":""},{"$f":"TotauxHeuresQuotidiennes","v":""}]
[null,{"$f":"PlanifierJour","v":""},{"$f":"TotauxHeuresQuotidiennes","v":""}]
[null,{"$f":"PlanifierJour","v":""},{"$f":"TotauxHeuresQuotidiennes","v":""}]
[null,{"$f":"PlanifierJour","v":""},{"$f":"TotauxHeuresQuotidiennes","v":""}]
[null,{"$f":"PlanifierJour","v":""},{"$f":"TotauxHeuresQuotidiennes","v":""}]
[null,{"$f":"PlanifierJour","v":""},{"$f":"TotauxHeuresQuotidiennes","v":""}]
[null,{"$f":"PlanifierJour","v":""},{"$f":"TotauxHeuresQuotidiennes","v":""}]
[null,{"$f":"PlanifierJour","v":""},{"$f":"TotauxHeuresQuotidiennes","v":""}]
[null,{"$f":"PlanifierJour","v":""},{"$f":"TotauxHeuresQuotidiennes","v":""}]
[null,{"$f":"PlanifierJour","v":""},{"$f":"TotauxHeuresQuotidiennes","v":""}]
[null,{"$f":"PlanifierJour","v":""},{"$f":"TotauxHeuresQuotidiennes","v":""}]
[null,{"$f":"PlanifierJour","v":""},{"$f":"TotauxHeuresQuotidiennes","v":""}]
[null,{"$f":"PlanifierJour","v":""},{"$f":"TotauxHeuresQuotidiennes","v":""}]
[null,{"$f":"PlanifierJour","v":""},{"$f":"TotauxHeuresQuotidiennes","v":""}]
[null,{"$f":"PlanifierJour","v":""},{"$f":"TotauxHeuresQuotidiennes","v":""}]
[null,{"$f":"PlanifierJour","v":""},{"$f":"TotauxHeuresQuotidiennes","v":""}]
[null,{"$f":"PlanifierJour","v":""},{"$f":"TotauxHeuresQuotidiennes","v":""}]
[null,{"$f":"PlanifierJour","v":""},{"$f":"TotauxHeuresQuotidiennes","v":""}]
[null,{"$f":"PlanifierJour","v":""},{"$f":"TotauxHeuresQuotidiennes","v":""}]
[null,{"$f":"PlanifierJour","v":""},{"$f":"TotauxHeuresQuotidiennes","v":""}]
[null,{"$f":"PlanifierJour","v":""},{"$f":"TotauxHeuresQuotidiennes","v":""}]
[null,{"$f":"PlanifierJour","v":""},{"$f":"TotauxHeuresQuotidiennes","v":""}]
[null,{"$f":"PlanifierJour","v":""},{"$f":"TotauxHeuresQuotidiennes","v":""}]
[null,{"$f":"PlanifierJour","v":""},{"$f":"TotauxHeuresQuotidiennes","v":""}]
[null,{"$f":"PlanifierJour","v":""},{"$f":"TotauxHeuresQuotidiennes","v":""}]
[null,{"$f":"PlanifierJour","v":""},{"$f":"TotauxHeuresQuotidiennes","v":""}]
[null,{"$f":"PlanifierJour","v":""},{"$f":"TotauxHeuresQuotidiennes","v":""}]
[null,{"$f":"PlanifierJour","v":""},{"$f":"TotauxHeuresQuotidiennes","v":""}]
[null,{"$f":"PlanifierJour","v":""},{"$f":"TotauxHeuresQuotidiennes","v":""}]
[null,{"$f":"PlanifierJour","v":""},{"$f":"TotauxHeuresQuotidiennes","v":""}]
[null,{"$f":"PlanifierJour","v":""},{"$f":"TotauxHeuresQuotidiennes","v":""}]
[null,{"$f":"PlanifierJour","v":""},{"$f":"TotauxHeuresQuotidiennes","v":""}]
[null,{"$f":"PlanifierJour","v":""},{"$f":"TotauxHeuresQuotidiennes","v":""}]
[null,{"$f":"PlanifierJour","v":""},{"$f":"TotauxHeuresQuotidiennes","v":""}]
[null,{"$f":"PlanifierJour","v":""},{"$f":"TotauxHeuresQuotidiennes","v":""}]
[null,{"$f":"PlanifierJour","v":""},{"$f":"TotauxHeuresQuotidiennes","v":""}]
[null,{"$f":"PlanifierJour","v":""},{"$f":"TotauxHeuresQuotidiennes","v":""}]
[null,{"$f":"PlanifierJour","v":""},{"$f":"TotauxHeuresQuotidiennes","v":""}]
[null,{"$f":"PlanifierJour","v":""},{"$f":"TotauxHeuresQuotidiennes","v":""}]
[null,{"$f":"PlanifierJour","v":""},{"$f":"TotauxHeuresQuotidiennes","v":""}]
[null,{"$f":"PlanifierJour","v":""},{"$f":"TotauxHeuresQuotidiennes","v":""}]
[null,{"$f":"PlanifierJour","v":""},{"$f":"TotauxHeuresQuotidiennes","v":""}]
[null,{"$f":"PlanifierJour","v":""},{"$f":"TotauxHeuresQuotidiennes","v":""}]
[null,{"$f":"PlanifierJour","v":""},{"$f":"TotauxHeuresQuotidiennes","v":""}]

{"sheet":"avr25","index":8,"n_rows":103,"n_cols":24,"rows_kept":103,"cut":false,"hidden":false,"merged":[[3,21,3,23],[3,3,3,5],[3,6,3,8],[3,9,3,11],[3,12,3,14],[3,15,3,17],[3,18,3,20]]}
[]
[null,"Publications"]
[]
[null,"Entrez la date de début","Totaux","Facebook Chambéry",null,null,"Twitter Chambéry",null,null,"FB Annecy",null,null,"Twitter Annecy",null,null,"Viadeo FS",null,null,"Linkedin FS",null,null,"FB Skyline"]
[null,"2016-04-25",null,null,null,"THEME",null,null,"THEME",null,null,"THEME",null,null,"THEME",null,null,"THEME",null,null,"THEME",null,null,"THEME"]
[]
[null,{"$f":"PlanifierJour","v":"2016-04-25"},{"$f":"TotauxHeuresQuotidiennes","v":0},1,null,"légumes",1,null,"page fs annonces",1,null,"haricots verts",1,null,"notre fonctionnement"]
[null,{"$f":"PlanifierJour","v":""},{"$f":"TotauxHeuresQuotidiennes","v":""},null,null,"decouverte",null,null,null,null,null,"apéro"]
[null,{"$f":"PlanifierJour","v":""},{"$f":"TotauxHeuresQuotidiennes","v":""}]
[null,{"$f":"PlanifierJour","v":""},{"$f":"TotauxHeuresQuotidiennes","v":""}]
[null,{"$f":"PlanifierJour","v":""},{"$f":"TotauxHeuresQuotidiennes","v":""}]
[null,{"$f":"PlanifierJour","v":"2016-04-26"},{"$f":"TotauxHeuresQuotidiennes","v":0},null,null,null,1,null,"Changement photo",0,null,null,1,null,"changement photo"]
[null,{"$f":"PlanifierJour","v":""},{"$f":"TotauxHeuresQuotidiennes","v":""},null,null,null,null,null,"couverture",null,null,null,null,null,"couverture"]
[null,{"$f":"PlanifierJour","v":""},{"$f":"TotauxHeuresQuotidiennes","v":""}]
[null,{"$f":"PlanifierJour","v":""},{"$f":"TotauxHeuresQuotidiennes","v":""}]
[null,{"$f":"PlanifierJour","v":""},{"$f":"TotauxHeuresQuotidiennes","v":""},null,null,null,1,null,"notre fonctionnement",null,null,null,1,null,"page fs annonces"]
[null,{"$f":"PlanifierJour","v":"2016-04-27"},{"$f":"TotauxHeuresQuotidiennes","v":0},null,null,null,null,null,null,0]
[null,{"$f":"PlanifierJour","v":""},{"$f":"TotauxHeuresQuotidiennes","v":""}]
[null,{"$f":"PlanifierJour","v":""},{"$f":"TotauxHeuresQuotidiennes","v":""}]
[null,{"$f":"PlanifierJour","v":""},{"$f":"TotauxHeuresQuotidiennes","v":""}]
[null,{"$f":"PlanifierJour","v":""},{"$f":"TotauxHeuresQuotidiennes","v":""}]
[null,{"$f":"PlanifierJour","v":"2016-04-28"},{"$f":"TotauxHeuresQuotidiennes","v":0},1,null,"apprendreaeduquer",1,null,"montessori",1,null,"montessori"]
[null,{"$f":"PlanifierJour","v":""},{"$f":"TotauxHeuresQuotidiennes","v":""},null,null,"livres jeunesse",null,null,"livres dans chambre",null,null,"livres dans chambre"]
[null,{"$f":"PlanifierJour","v":""},{"$f":"TotauxHeuresQuotidiennes","v":""}]
[null,{"$f":"PlanifierJour","v":""},{"$f":"TotauxHeuresQuotidiennes","v":""}]
[null,{"$f":"PlanifierJour","v":""},{"$f":"TotauxHeuresQuotidiennes","v":""}]
[null,{"$f":"PlanifierJour","v":"2016-04-29"},{"$f":"TotauxHeuresQuotidiennes","v":0},1,null,"garde partagée annecy",1,null,"garde partagée annecy",1,null,"garde partagée annecy",1,null,"montessori"]
[null,{"$f":"PlanifierJour","v":""},{"$f":"TotauxHeuresQuotidiennes","v":""},null,null,null,null,null,null,null,null,null,null,null,"livres dans chambre"]
[null,{"$f":"PlanifierJour","v":""},{"$f":"TotauxHeuresQuotidiennes","v":""},null,null,null,null,null,null,null,null,null,null,null,"garde partagée annecy"]
[null,{"$f":"PlanifierJour","v":""},{"$f":"TotauxHeuresQuotidiennes","v":""}]
[null,{"$f":"PlanifierJour","v":""},{"$f":"TotauxHeuresQuotidiennes","v":""}]
[null,{"$f":"PlanifierJour","v":"2016-04-30"},{"$f":"TotauxHeuresQuotidiennes","v":0},1,null,"haricots verts apéro",null,null,null,1,null,"apprendreaeduquer",0,null,null,1,null,"Fonctionnement",0]
[null,{"$f":"PlanifierJour","v":""},{"$f":"TotauxHeuresQuotidiennes","v":""},null,null,null,null,null,null,null,null,"livres jeunesse"]
[null,{"$f":"PlanifierJour","v":""},{"$f":"TotauxHeuresQuotidiennes","v":""},null,null,null,null,null,null,0]
[null,{"$f":"PlanifierJour","v":""},{"$f":"TotauxHeuresQuotidiennes","v":""}]
[null,{"$f":"PlanifierJour","v":""},{"$f":"TotauxHeuresQuotidiennes","v":""}]
[null,{"$f":"PlanifierJour","v":"2016-05-01"},{"$f":"TotauxHeuresQuotidiennes","v":0},1,null,"montessori",null,null,null,13,null,"offre d'emploi"]
[null,{"$f":"PlanifierJour","v":""},{"$f":"TotauxHeuresQuotidiennes","v":""},null,null,"livres dans chambre",null,null,null,null,null,"doussard"]
[null,{"$f":"PlanifierJour","v":""},{"$f":"TotauxHeuresQuotidiennes","v":""}]
[null,{"$f":"PlanifierJour","v":""},{"$f":"TotauxHeuresQuotidiennes","v":""}]
[null,{"$f":"PlanifierJour","v":""},{"$f":"TotauxHeuresQuotidiennes","v":""}]
[null,{"$f":"PlanifierJour","v":""},{"$f":"TotauxHeuresQuotidiennes","v":""}]
[null,{"$f":"PlanifierJour","v":""},{"$f":"TotauxHeuresQuotidiennes","v":""}]
[null,{"$f":"PlanifierJour","v":""},{"$f":"TotauxHeuresQuotidiennes","v":""}]
[null,{"$f":"PlanifierJour","v":""},{"$f":"TotauxHeuresQuotidiennes","v":""}]
[null,{"$f":"PlanifierJour","v":""},{"$f":"TotauxHeuresQuotidiennes","v":""}]
[null,{"$f":"PlanifierJour","v":""},{"$f":"TotauxHeuresQuotidiennes","v":""}]
[null,{"$f":"PlanifierJour","v":""},{"$f":"TotauxHeuresQuotidiennes","v":""}]
[null,{"$f":"PlanifierJour","v":""},{"$f":"TotauxHeuresQuotidiennes","v":""}]
[null,{"$f":"PlanifierJour","v":""},{"$f":"TotauxHeuresQuotidiennes","v":""}]
[null,{"$f":"PlanifierJour","v":""},{"$f":"TotauxHeuresQuotidiennes","v":""}]
[null,{"$f":"PlanifierJour","v":""},{"$f":"TotauxHeuresQuotidiennes","v":""}]
[null,{"$f":"PlanifierJour","v":""},{"$f":"TotauxHeuresQuotidiennes","v":""}]
[null,{"$f":"PlanifierJour","v":""},{"$f":"TotauxHeuresQuotidiennes","v":""}]
[null,{"$f":"PlanifierJour","v":""},{"$f":"TotauxHeuresQuotidiennes","v":""}]
[null,{"$f":"PlanifierJour","v":""},{"$f":"TotauxHeuresQuotidiennes","v":""}]
[null,{"$f":"PlanifierJour","v":""},{"$f":"TotauxHeuresQuotidiennes","v":""}]
[null,{"$f":"PlanifierJour","v":""},{"$f":"TotauxHeuresQuotidiennes","v":""}]
[null,{"$f":"PlanifierJour","v":""},{"$f":"TotauxHeuresQuotidiennes","v":""}]
[null,{"$f":"PlanifierJour","v":""},{"$f":"TotauxHeuresQuotidiennes","v":""}]
[null,{"$f":"PlanifierJour","v":""},{"$f":"TotauxHeuresQuotidiennes","v":""}]
[null,{"$f":"PlanifierJour","v":""},{"$f":"TotauxHeuresQuotidiennes","v":""}]
[null,{"$f":"PlanifierJour","v":""},{"$f":"TotauxHeuresQuotidiennes","v":""}]
[null,{"$f":"PlanifierJour","v":""},{"$f":"TotauxHeuresQuotidiennes","v":""}]
[null,{"$f":"PlanifierJour","v":""},{"$f":"TotauxHeuresQuotidiennes","v":""}]
[null,{"$f":"PlanifierJour","v":""},{"$f":"TotauxHeuresQuotidiennes","v":""}]
[null,{"$f":"PlanifierJour","v":""},{"$f":"TotauxHeuresQuotidiennes","v":""}]
[null,{"$f":"PlanifierJour","v":""},{"$f":"TotauxHeuresQuotidiennes","v":""}]
[null,{"$f":"PlanifierJour","v":""},{"$f":"TotauxHeuresQuotidiennes","v":""}]
[null,{"$f":"PlanifierJour","v":""},{"$f":"TotauxHeuresQuotidiennes","v":""}]
[null,{"$f":"PlanifierJour","v":""},{"$f":"TotauxHeuresQuotidiennes","v":""}]
[null,{"$f":"PlanifierJour","v":""},{"$f":"TotauxHeuresQuotidiennes","v":""}]
[null,{"$f":"PlanifierJour","v":""},{"$f":"TotauxHeuresQuotidiennes","v":""}]
[null,{"$f":"PlanifierJour","v":""},{"$f":"TotauxHeuresQuotidiennes","v":""}]
[null,{"$f":"PlanifierJour","v":""},{"$f":"TotauxHeuresQuotidiennes","v":""}]
[null,{"$f":"PlanifierJour","v":""},{"$f":"TotauxHeuresQuotidiennes","v":""}]
[null,{"$f":"PlanifierJour","v":""},{"$f":"TotauxHeuresQuotidiennes","v":""}]
[null,{"$f":"PlanifierJour","v":""},{"$f":"TotauxHeuresQuotidiennes","v":""}]
[null,{"$f":"PlanifierJour","v":""},{"$f":"TotauxHeuresQuotidiennes","v":""}]
[null,{"$f":"PlanifierJour","v":""},{"$f":"TotauxHeuresQuotidiennes","v":""}]
[null,{"$f":"PlanifierJour","v":""},{"$f":"TotauxHeuresQuotidiennes","v":""}]
[null,{"$f":"PlanifierJour","v":""},{"$f":"TotauxHeuresQuotidiennes","v":""}]
[null,{"$f":"PlanifierJour","v":""},{"$f":"TotauxHeuresQuotidiennes","v":""}]
[null,{"$f":"PlanifierJour","v":""},{"$f":"TotauxHeuresQuotidiennes","v":""}]
[null,{"$f":"PlanifierJour","v":""},{"$f":"TotauxHeuresQuotidiennes","v":""}]
[null,{"$f":"PlanifierJour","v":""},{"$f":"TotauxHeuresQuotidiennes","v":""}]
[null,{"$f":"PlanifierJour","v":""},{"$f":"TotauxHeuresQuotidiennes","v":""}]
[null,{"$f":"PlanifierJour","v":""},{"$f":"TotauxHeuresQuotidiennes","v":""}]
[null,{"$f":"PlanifierJour","v":""},{"$f":"TotauxHeuresQuotidiennes","v":""}]
[null,{"$f":"PlanifierJour","v":""},{"$f":"TotauxHeuresQuotidiennes","v":""}]
[null,{"$f":"PlanifierJour","v":""},{"$f":"TotauxHeuresQuotidiennes","v":""}]
[null,{"$f":"PlanifierJour","v":""},{"$f":"TotauxHeuresQuotidiennes","v":""}]
[null,{"$f":"PlanifierJour","v":""},{"$f":"TotauxHeuresQuotidiennes","v":""}]
[null,{"$f":"PlanifierJour","v":""},{"$f":"TotauxHeuresQuotidiennes","v":""}]
[null,{"$f":"PlanifierJour","v":""},{"$f":"TotauxHeuresQuotidiennes","v":""}]
[null,{"$f":"PlanifierJour","v":""},{"$f":"TotauxHeuresQuotidiennes","v":""}]
[null,{"$f":"PlanifierJour","v":""},{"$f":"TotauxHeuresQuotidiennes","v":""}]
[null,{"$f":"PlanifierJour","v":""},{"$f":"TotauxHeuresQuotidiennes","v":""}]
[null,{"$f":"PlanifierJour","v":""},{"$f":"TotauxHeuresQuotidiennes","v":""}]
[null,{"$f":"PlanifierJour","v":""},{"$f":"TotauxHeuresQuotidiennes","v":""}]
[null,{"$f":"PlanifierJour","v":""},{"$f":"TotauxHeuresQuotidiennes","v":""}]
[null,{"$f":"PlanifierJour","v":""},{"$f":"TotauxHeuresQuotidiennes","v":""}]
[null,{"$f":"PlanifierJour","v":""},{"$f":"TotauxHeuresQuotidiennes","v":""}]

{"sheet":"mai02","index":9,"n_rows":103,"n_cols":24,"rows_kept":103,"cut":false,"hidden":false,"merged":[[3,21,3,23],[3,3,3,5],[3,6,3,8],[3,9,3,11],[3,12,3,14],[3,15,3,17],[3,18,3,20]]}
[]
[null,"Publications"]
[]
[null,"Entrez la date de début","Totaux","Facebook Chambéry",null,null,"Twitter Chambéry",null,null,"FB Annecy",null,null,"Twitter Annecy",null,null,"Viadeo FS",null,null,"Linkedin FS",null,null,"FB Skyline"]
[null,"2016-05-02",null,null,null,"THEME",null,null,"THEME",null,null,"THEME",null,null,"THEME",null,null,"THEME",null,null,"THEME",null,null,"THEME"]
[]
[null,{"$f":"PlanifierJour","v":"2016-05-02"},{"$f":"TotauxHeuresQuotidiennes","v":0},1,null,"offre d'emploi",0,null,null,0,null,null,0]
[null,{"$f":"PlanifierJour","v":""},{"$f":"TotauxHeuresQuotidiennes","v":""},null,null,"aix les bains"]
[null,{"$f":"PlanifierJour","v":""},{"$f":"TotauxHeuresQuotidiennes","v":""}]
[null,{"$f":"PlanifierJour","v":""},{"$f":"TotauxHeuresQuotidiennes","v":""}]
[null,{"$f":"PlanifierJour","v":""},{"$f":"TotauxHeuresQuotidiennes","v":""}]
[null,{"$f":"PlanifierJour","v":"2016-05-03"},{"$f":"TotauxHeuresQuotidiennes","v":0},1,null,"vidéo",1,null,"garde d'enfants dom",1,null,"vidéo",1,null,"garde d'enfants dom"]
[null,{"$f":"PlanifierJour","v":""},{"$f":"TotauxHeuresQuotidiennes","v":""},null,null,"le voyage d'une goutte d'eau",null,null,"combien ca coute?",null,null,"dysphasie",null,null,"combien ca coute?"]
[null,{"$f":"PlanifierJour","v":""},{"$f":"TotauxHeuresQuotidiennes","v":""},null,null,"d'eau"]
[null,{"$f":"PlanifierJour","v":""},{"$f":"TotauxHeuresQuotidiennes","v":""}]
[null,{"$f":"PlanifierJour","v":""},{"$f":"TotauxHeuresQuotidiennes","v":""},null,null,null,0,null,null,null,null,null,0]
[null,{"$f":"PlanifierJour","v":"2016-05-04"},{"$f":"TotauxHeuresQuotidiennes","v":0},1,null,"citation",null,null,null,1,null,"offre d'emploi"]
[null,{"$f":"PlanifierJour","v":""},{"$f":"TotauxHeuresQuotidiennes","v":""},null,null,"se tromper",null,null,null,null,null,"hrey sur albi"]
[null,{"$f":"PlanifierJour","v":""},{"$f":"TotauxHeuresQuotidiennes","v":""}]
[null,{"$f":"PlanifierJour","v":""},{"$f":"TotauxHeuresQuotidiennes","v":""}]
[null,{"$f":"PlanifierJour","v":""},{"$f":"TotauxHeuresQuotidiennes","v":""}]
[null,{"$f":"PlanifierJour","v":"2016-05-05"},{"$f":"TotauxHeuresQuotidiennes","v":0},1,null,"garde d'enfants a dom",1,null,"avantages garde d'enfants",1,null,"expo automates",1,null,"avantages garde d'enfants"]
[null,{"$f":"PlanifierJour","v":""},{"$f":"TotauxHeuresQuotidiennes","v":""},null,null,"idées reçues",null,null,null,null,null,"les gets"]
[null,{"$f":"PlanifierJour","v":""},{"$f":"TotauxHeuresQuotidiennes","v":""}]
[null,{"$f":"PlanifierJour","v":""},{"$f":"TotauxHeuresQuotidiennes","v":""}]
[null,{"$f":"PlanifierJour","v":""},{"$f":"TotauxHeuresQuotidiennes","v":""}]
[null,{"$f":"PlanifierJour","v":"2016-05-06"},{"$f":"TotauxHeuresQuotidiennes","v":0},1,null,"agenda",null,null,null,0]
[null,{"$f":"PlanifierJour","v":""},{"$f":"TotauxHeuresQuotidiennes","v":""}]
[null,{"$f":"PlanifierJour","v":""},{"$f":"TotauxHeuresQuotidiennes","v":""}]
[null,{"$f":"PlanifierJour","v":""},{"$f":"TotauxHeuresQuotidiennes","v":""}]
[null,{"$f":"PlanifierJour","v":""},{"$f":"TotauxHeuresQuotidiennes","v":""}]
[null,{"$f":"PlanifierJour","v":"2016-05-07"},{"$f":"TotauxHeuresQuotidiennes","v":0},1,null,"vidéo",1,null,"recrutement 0-3 ans",1,null,"recrutement rentrée 2016",1,null,"recrutement 0-3 ans",0,null,null,0]
[null,{"$f":"PlanifierJour","v":""},{"$f":"TotauxHeuresQuotidiennes","v":""},null,null,"l'ile aux enfants",null,null,null,null,null,"garde d'enfants + 3 ans"]
[null,{"$f":"PlanifierJour","v":""},{"$f":"TotauxHeuresQuotidiennes","v":""},null,null,null,null,null,null,0]
[null,{"$f":"PlanifierJour","v":""},{"$f":"TotauxHeuresQuotidiennes","v":""}]
[null,{"$f":"PlanifierJour","v":""},{"$f":"TotauxHeuresQuotidiennes","v":""}]
[null,{"$f":"PlanifierJour","v":"2016-05-08"},{"$f":"TotauxHeuresQuotidiennes","v":0},1,null,"recrutement rentrée 2016",null,null,null,1,null,"vidéo"]
[null,{"$f":"PlanifierJour","v":""},{"$f":"TotauxHeuresQuotidiennes","v":""},null,null,"garde d'enfants + 3 ans"]
[null,{"$f":"PlanifierJour","v":""},{"$f":"TotauxHeuresQuotidiennes","v":""}]
[null,{"$f":"PlanifierJour","v":""},{"$f":"TotauxHeuresQuotidiennes","v":""}]
[null,{"$f":"PlanifierJour","v":""},{"$f":"TotauxHeuresQuotidiennes","v":""}]
[null,{"$f":"PlanifierJour","v":""},{"$f":"TotauxHeuresQuotidiennes","v":""}]
[null,{"$f":"PlanifierJour","v":""},{"$f":"TotauxHeuresQuotidiennes","v":""}]
[null,{"$f":"PlanifierJour","v":""},{"$f":"TotauxHeuresQuotidiennes","v":""}]
[null,{"$f":"PlanifierJour","v":""},{"$f":"TotauxHeuresQuotidiennes","v":""}]
[null,{"$f":"PlanifierJour","v":""},{"$f":"TotauxHeuresQuotidiennes","v":""}]
[null,{"$f":"PlanifierJour","v":""},{"$f":"TotauxHeuresQuotidiennes","v":""}]
[null,{"$f":"PlanifierJour","v":""},{"$f":"TotauxHeuresQuotidiennes","v":""}]
[null,{"$f":"PlanifierJour","v":""},{"$f":"TotauxHeuresQuotidiennes","v":""}]
[null,{"$f":"PlanifierJour","v":""},{"$f":"TotauxHeuresQuotidiennes","v":""}]
[null,{"$f":"PlanifierJour","v":""},{"$f":"TotauxHeuresQuotidiennes","v":""}]
[null,{"$f":"PlanifierJour","v":""},{"$f":"TotauxHeuresQuotidiennes","v":""}]
[null,{"$f":"PlanifierJour","v":""},{"$f":"TotauxHeuresQuotidiennes","v":""}]
[null,{"$f":"PlanifierJour","v":""},{"$f":"TotauxHeuresQuotidiennes","v":""}]
[null,{"$f":"PlanifierJour","v":""},{"$f":"TotauxHeuresQuotidiennes","v":""}]
[null,{"$f":"PlanifierJour","v":""},{"$f":"TotauxHeuresQuotidiennes","v":""}]
[null,{"$f":"PlanifierJour","v":""},{"$f":"TotauxHeuresQuotidiennes","v":""}]
[null,{"$f":"PlanifierJour","v":""},{"$f":"TotauxHeuresQuotidiennes","v":""}]
[null,{"$f":"PlanifierJour","v":""},{"$f":"TotauxHeuresQuotidiennes","v":""}]
[null,{"$f":"PlanifierJour","v":""},{"$f":"TotauxHeuresQuotidiennes","v":""}]
[null,{"$f":"PlanifierJour","v":""},{"$f":"TotauxHeuresQuotidiennes","v":""}]
[null,{"$f":"PlanifierJour","v":""},{"$f":"TotauxHeuresQuotidiennes","v":""}]
[null,{"$f":"PlanifierJour","v":""},{"$f":"TotauxHeuresQuotidiennes","v":""}]
[null,{"$f":"PlanifierJour","v":""},{"$f":"TotauxHeuresQuotidiennes","v":""}]
[null,{"$f":"PlanifierJour","v":""},{"$f":"TotauxHeuresQuotidiennes","v":""}]
[null,{"$f":"PlanifierJour","v":""},{"$f":"TotauxHeuresQuotidiennes","v":""}]
[null,{"$f":"PlanifierJour","v":""},{"$f":"TotauxHeuresQuotidiennes","v":""}]
[null,{"$f":"PlanifierJour","v":""},{"$f":"TotauxHeuresQuotidiennes","v":""}]
[null,{"$f":"PlanifierJour","v":""},{"$f":"TotauxHeuresQuotidiennes","v":""}]
[null,{"$f":"PlanifierJour","v":""},{"$f":"TotauxHeuresQuotidiennes","v":""}]
[null,{"$f":"PlanifierJour","v":""},{"$f":"TotauxHeuresQuotidiennes","v":""}]
[null,{"$f":"PlanifierJour","v":""},{"$f":"TotauxHeuresQuotidiennes","v":""}]
[null,{"$f":"PlanifierJour","v":""},{"$f":"TotauxHeuresQuotidiennes","v":""}]
[null,{"$f":"PlanifierJour","v":""},{"$f":"TotauxHeuresQuotidiennes","v":""}]
[null,{"$f":"PlanifierJour","v":""},{"$f":"TotauxHeuresQuotidiennes","v":""}]
[null,{"$f":"PlanifierJour","v":""},{"$f":"TotauxHeuresQuotidiennes","v":""}]
[null,{"$f":"PlanifierJour","v":""},{"$f":"TotauxHeuresQuotidiennes","v":""}]
[null,{"$f":"PlanifierJour","v":""},{"$f":"TotauxHeuresQuotidiennes","v":""}]
[null,{"$f":"PlanifierJour","v":""},{"$f":"TotauxHeuresQuotidiennes","v":""}]
[null,{"$f":"PlanifierJour","v":""},{"$f":"TotauxHeuresQuotidiennes","v":""}]
[null,{"$f":"PlanifierJour","v":""},{"$f":"TotauxHeuresQuotidiennes","v":""}]
[null,{"$f":"PlanifierJour","v":""},{"$f":"TotauxHeuresQuotidiennes","v":""}]
[null,{"$f":"PlanifierJour","v":""},{"$f":"TotauxHeuresQuotidiennes","v":""}]
[null,{"$f":"PlanifierJour","v":""},{"$f":"TotauxHeuresQuotidiennes","v":""}]
[null,{"$f":"PlanifierJour","v":""},{"$f":"TotauxHeuresQuotidiennes","v":""}]
[null,{"$f":"PlanifierJour","v":""},{"$f":"TotauxHeuresQuotidiennes","v":""}]
[null,{"$f":"PlanifierJour","v":""},{"$f":"TotauxHeuresQuotidiennes","v":""}]
[null,{"$f":"PlanifierJour","v":""},{"$f":"TotauxHeuresQuotidiennes","v":""}]
[null,{"$f":"PlanifierJour","v":""},{"$f":"TotauxHeuresQuotidiennes","v":""}]
[null,{"$f":"PlanifierJour","v":""},{"$f":"TotauxHeuresQuotidiennes","v":""}]
[null,{"$f":"PlanifierJour","v":""},{"$f":"TotauxHeuresQuotidiennes","v":""}]
[null,{"$f":"PlanifierJour","v":""},{"$f":"TotauxHeuresQuotidiennes","v":""}]
[null,{"$f":"PlanifierJour","v":""},{"$f":"TotauxHeuresQuotidiennes","v":""}]
[null,{"$f":"PlanifierJour","v":""},{"$f":"TotauxHeuresQuotidiennes","v":""}]
[null,{"$f":"PlanifierJour","v":""},{"$f":"TotauxHeuresQuotidiennes","v":""}]
[null,{"$f":"PlanifierJour","v":""},{"$f":"TotauxHeuresQuotidiennes","v":""}]
[null,{"$f":"PlanifierJour","v":""},{"$f":"TotauxHeuresQuotidiennes","v":""}]
[null,{"$f":"PlanifierJour","v":""},{"$f":"TotauxHeuresQuotidiennes","v":""}]
[null,{"$f":"PlanifierJour","v":""},{"$f":"TotauxHeuresQuotidiennes","v":""}]
[null,{"$f":"PlanifierJour","v":""},{"$f":"TotauxHeuresQuotidiennes","v":""}]
[null,{"$f":"PlanifierJour","v":""},{"$f":"TotauxHeuresQuotidiennes","v":""}]
[null,{"$f":"PlanifierJour","v":""},{"$f":"TotauxHeuresQuotidiennes","v":""}]
[null,{"$f":"PlanifierJour","v":""},{"$f":"TotauxHeuresQuotidiennes","v":""}]

{"sheet":"mai09","index":10,"n_rows":103,"n_cols":24,"rows_kept":103,"cut":false,"hidden":false,"merged":[[3,21,3,23],[3,3,3,5],[3,6,3,8],[3,9,3,11],[3,12,3,14],[3,15,3,17],[3,18,3,20]]}
[]
[null,"Publications"]
[]
[null,"Entrez la date de début","Totaux","Facebook Chambéry",null,null,"Twitter Chambéry",null,null,"FB Annecy",null,null,"Twitter Annecy",null,null,"Viadeo FS",null,null,"Linkedin FS",null,null,"FB Skyline"]
[null,"2016-05-09",null,null,null,"THEME",null,null,"THEME",null,null,"THEME",null,null,"THEME",null,null,"THEME",null,null,"THEME",null,null,"THEME"]
[]
[null,{"$f":"PlanifierJour","v":"2016-05-09"},{"$f":"TotauxHeuresQuotidiennes","v":0},1,null,"calligramme",1,null,"recrutement +3ans",1,null,"garde d'enfants a dom",1,null,"recrutement +3ans"]
[null,{"$f":"PlanifierJour","v":""},{"$f":"TotauxHeuresQuotidiennes","v":""},null,null,null,null,null,null,null,null,"idées reçues"]
[null,{"$f":"PlanifierJour","v":""},{"$f":"TotauxHeuresQuotidiennes","v":""}]
[null,{"$f":"PlanifierJour","v":""},{"$f":"TotauxHeuresQuotidiennes","v":""}]
[null,{"$f":"PlanifierJour","v":""},{"$f":"TotauxHeuresQuotidiennes","v":""}]
[null,{"$f":"PlanifierJour","v":"2016-05-10"},{"$f":"TotauxHeuresQuotidiennes","v":0},1,null,"vidéo tous les",0,null,null,1,null,"citation",0]
[null,{"$f":"PlanifierJour","v":""},{"$f":"TotauxHeuresQuotidiennes","v":""},null,null,"handicaps",null,null,null,null,null,"se tromper"]
[null,{"$f":"PlanifierJour","v":""},{"$f":"TotauxHeuresQuotidiennes","v":""}]
[null,{"$f":"PlanifierJour","v":""},{"$f":"TotauxHeuresQuotidiennes","v":""}]
[null,{"$f":"PlanifierJour","v":""},{"$f":"TotauxHeuresQuotidiennes","v":""},null,null,null,0,null,null,null,null,null,0]
[null,{"$f":"PlanifierJour","v":"2016-05-11"},{"$f":"TotauxHeuresQuotidiennes","v":0},1,null,"familysphere garde",1,null,"recrutement handicap",1,null,"offre d'emploi",1,null,"recrutement handicap",null,null,null,1,null,"RECRUTEMENT"]
[null,{"$f":"PlanifierJour","v":""},{"$f":"TotauxHeuresQuotidiennes","v":""},null,null,"site web",null,null,null,null,null,"hery sur alby",null,null,null,null,null,null,null,null,"3-13 ANS"]
[null,{"$f":"PlanifierJour","v":""},{"$f":"TotauxHeuresQuotidiennes","v":""}]
[null,{"$f":"PlanifierJour","v":""},{"$f":"TotauxHeuresQuotidiennes","v":""}]
[null,{"$f":"PlanifierJour","v":""},{"$f":"TotauxHeuresQuotidiennes","v":""}]
[null,{"$f":"PlanifierJour","v":"2016-05-12"},{"$f":"TotauxHeuresQuotidiennes","v":0},1,null,"concert flutes ",null,null,null,0]
[null,{"$f":"PlanifierJour","v":""},{"$f":"TotauxHeuresQuotidiennes","v":""},null,null,"conservatoire"]
[null,{"$f":"PlanifierJour","v":""},{"$f":"TotauxHeuresQuotidiennes","v":""}]
[null,{"$f":"PlanifierJour","v":""},{"$f":"TotauxHeuresQuotidiennes","v":""}]
[null,{"$f":"PlanifierJour","v":""},{"$f":"TotauxHeuresQuotidiennes","v":""}]
[null,{"$f":"PlanifierJour","v":"2016-05-13"},{"$f":"TotauxHeuresQuotidiennes","v":0},null,null,null,1,null,"petits dej",1,null,"Histoires pour les Bouts d'choux / 18 mois - 3 ans",1,null,"petits dej"]
[null,{"$f":"PlanifierJour","v":""},{"$f":"TotauxHeuresQuotidiennes","v":""},null,null,null,null,null,"tokyo",null,null,"bouts d'choux",null,null,"tokyo"]
[null,{"$f":"PlanifierJour","v":""},{"$f":"TotauxHeuresQuotidiennes","v":""}]
[null,{"$f":"PlanifierJour","v":""},{"$f":"TotauxHeuresQuotidiennes","v":""}]
[null,{"$f":"PlanifierJour","v":""},{"$f":"TotauxHeuresQuotidiennes","v":""}]
[null,{"$f":"PlanifierJour","v":"2016-05-14"},{"$f":"TotauxHeuresQuotidiennes","v":0},1,null,"recrutement rentrée 2016",null,null,null,1,null,"calligramme",0,null,null,1,null,"RECRUTEMENT",0]
[null,{"$f":"PlanifierJour","v":""},{"$f":"TotauxHeuresQuotidiennes","v":""},null,null,"garde d'enfants - 3 ans",null,null,null,null,null,null,null,null,null,null,null,"3-13 ANS"]
[null,{"$f":"PlanifierJour","v":""},{"$f":"TotauxHeuresQuotidiennes","v":""},null,null,null,null,null,null,0]
[null,{"$f":"PlanifierJour","v":""},{"$f":"TotauxHeuresQuotidiennes","v":""}]
[null,{"$f":"PlanifierJour","v":""},{"$f":"TotauxHeuresQuotidiennes","v":""}]
[null,{"$f":"PlanifierJour","v":"2016-05-15"},{"$f":"TotauxHeuresQuotidiennes","v":0},1,null,"petit dej tokyo",1,null,"citation",1,null,"recrutement rentrée 2016",1,null,"offre d'emploi"]
[null,{"$f":"PlanifierJour","v":""},{"$f":"TotauxHeuresQuotidiennes","v":""},null,null,null,null,null,"peine",null,null,"garde d'enfants - 3 ans",null,null,"doussard"]
[null,{"$f":"PlanifierJour","v":""},{"$f":"TotauxHeuresQuotidiennes","v":""}]
[null,{"$f":"PlanifierJour","v":""},{"$f":"TotauxHeuresQuotidiennes","v":""}]
[null,{"$f":"PlanifierJour","v":""},{"$f":"TotauxHeuresQuotidiennes","v":""}]
[null,{"$f":"PlanifierJour","v":""},{"$f":"TotauxHeuresQuotidiennes","v":""}]
[null,{"$f":"PlanifierJour","v":""},{"$f":"TotauxHeuresQuotidiennes","v":""}]
[null,{"$f":"PlanifierJour","v":""},{"$f":"TotauxHeuresQuotidiennes","v":""}]
[null,{"$f":"PlanifierJour","v":""},{"$f":"TotauxHeuresQuotidiennes","v":""}]
[null,{"$f":"PlanifierJour","v":""},{"$f":"TotauxHeuresQuotidiennes","v":""}]
[null,{"$f":"PlanifierJour","v":""},{"$f":"TotauxHeuresQuotidiennes","v":""}]
[null,{"$f":"PlanifierJour","v":""},{"$f":"TotauxHeuresQuotidiennes","v":""}]
[null,{"$f":"PlanifierJour","v":""},{"$f":"TotauxHeuresQuotidiennes","v":""}]
[null,{"$f":"PlanifierJour","v":""},{"$f":"TotauxHeuresQuotidiennes","v":""}]
[null,{"$f":"PlanifierJour","v":""},{"$f":"TotauxHeuresQuotidiennes","v":""}]
[null,{"$f":"PlanifierJour","v":""},{"$f":"TotauxHeuresQuotidiennes","v":""}]
[null,{"$f":"PlanifierJour","v":""},{"$f":"TotauxHeuresQuotidiennes","v":""}]
[null,{"$f":"PlanifierJour","v":""},{"$f":"TotauxHeuresQuotidiennes","v":""}]
[null,{"$f":"PlanifierJour","v":""},{"$f":"TotauxHeuresQuotidiennes","v":""}]
[null,{"$f":"PlanifierJour","v":""},{"$f":"TotauxHeuresQuotidiennes","v":""}]
[null,{"$f":"PlanifierJour","v":""},{"$f":"TotauxHeuresQuotidiennes","v":""}]
[null,{"$f":"PlanifierJour","v":""},{"$f":"TotauxHeuresQuotidiennes","v":""}]
[null,{"$f":"PlanifierJour","v":""},{"$f":"TotauxHeuresQuotidiennes","v":""}]
[null,{"$f":"PlanifierJour","v":""},{"$f":"TotauxHeuresQuotidiennes","v":""}]
[null,{"$f":"PlanifierJour","v":""},{"$f":"TotauxHeuresQuotidiennes","v":""}]
[null,{"$f":"PlanifierJour","v":""},{"$f":"TotauxHeuresQuotidiennes","v":""}]
[null,{"$f":"PlanifierJour","v":""},{"$f":"TotauxHeuresQuotidiennes","v":""}]
[null,{"$f":"PlanifierJour","v":""},{"$f":"TotauxHeuresQuotidiennes","v":""}]
[null,{"$f":"PlanifierJour","v":""},{"$f":"TotauxHeuresQuotidiennes","v":""}]
[null,{"$f":"PlanifierJour","v":""},{"$f":"TotauxHeuresQuotidiennes","v":""}]
[null,{"$f":"PlanifierJour","v":""},{"$f":"TotauxHeuresQuotidiennes","v":""}]
[null,{"$f":"PlanifierJour","v":""},{"$f":"TotauxHeuresQuotidiennes","v":""}]
[null,{"$f":"PlanifierJour","v":""},{"$f":"TotauxHeuresQuotidiennes","v":""}]
[null,{"$f":"PlanifierJour","v":""},{"$f":"TotauxHeuresQuotidiennes","v":""}]
[null,{"$f":"PlanifierJour","v":""},{"$f":"TotauxHeuresQuotidiennes","v":""}]
[null,{"$f":"PlanifierJour","v":""},{"$f":"TotauxHeuresQuotidiennes","v":""}]
[null,{"$f":"PlanifierJour","v":""},{"$f":"TotauxHeuresQuotidiennes","v":""}]
[null,{"$f":"PlanifierJour","v":""},{"$f":"TotauxHeuresQuotidiennes","v":""}]
[null,{"$f":"PlanifierJour","v":""},{"$f":"TotauxHeuresQuotidiennes","v":""}]
[null,{"$f":"PlanifierJour","v":""},{"$f":"TotauxHeuresQuotidiennes","v":""}]
[null,{"$f":"PlanifierJour","v":""},{"$f":"TotauxHeuresQuotidiennes","v":""}]
[null,{"$f":"PlanifierJour","v":""},{"$f":"TotauxHeuresQuotidiennes","v":""}]
[null,{"$f":"PlanifierJour","v":""},{"$f":"TotauxHeuresQuotidiennes","v":""}]
[null,{"$f":"PlanifierJour","v":""},{"$f":"TotauxHeuresQuotidiennes","v":""}]
[null,{"$f":"PlanifierJour","v":""},{"$f":"TotauxHeuresQuotidiennes","v":""}]
[null,{"$f":"PlanifierJour","v":""},{"$f":"TotauxHeuresQuotidiennes","v":""}]
[null,{"$f":"PlanifierJour","v":""},{"$f":"TotauxHeuresQuotidiennes","v":""}]
[null,{"$f":"PlanifierJour","v":""},{"$f":"TotauxHeuresQuotidiennes","v":""}]
[null,{"$f":"PlanifierJour","v":""},{"$f":"TotauxHeuresQuotidiennes","v":""}]
[null,{"$f":"PlanifierJour","v":""},{"$f":"TotauxHeuresQuotidiennes","v":""}]
[null,{"$f":"PlanifierJour","v":""},{"$f":"TotauxHeuresQuotidiennes","v":""}]
[null,{"$f":"PlanifierJour","v":""},{"$f":"TotauxHeuresQuotidiennes","v":""}]
[null,{"$f":"PlanifierJour","v":""},{"$f":"TotauxHeuresQuotidiennes","v":""}]
[null,{"$f":"PlanifierJour","v":""},{"$f":"TotauxHeuresQuotidiennes","v":""}]
[null,{"$f":"PlanifierJour","v":""},{"$f":"TotauxHeuresQuotidiennes","v":""}]
[null,{"$f":"PlanifierJour","v":""},{"$f":"TotauxHeuresQuotidiennes","v":""}]
[null,{"$f":"PlanifierJour","v":""},{"$f":"TotauxHeuresQuotidiennes","v":""}]
[null,{"$f":"PlanifierJour","v":""},{"$f":"TotauxHeuresQuotidiennes","v":""}]
[null,{"$f":"PlanifierJour","v":""},{"$f":"TotauxHeuresQuotidiennes","v":""}]
[null,{"$f":"PlanifierJour","v":""},{"$f":"TotauxHeuresQuotidiennes","v":""}]
[null,{"$f":"PlanifierJour","v":""},{"$f":"TotauxHeuresQuotidiennes","v":""}]
[null,{"$f":"PlanifierJour","v":""},{"$f":"TotauxHeuresQuotidiennes","v":""}]
[null,{"$f":"PlanifierJour","v":""},{"$f":"TotauxHeuresQuotidiennes","v":""}]
[null,{"$f":"PlanifierJour","v":""},{"$f":"TotauxHeuresQuotidiennes","v":""}]
[null,{"$f":"PlanifierJour","v":""},{"$f":"TotauxHeuresQuotidiennes","v":""}]
[null,{"$f":"PlanifierJour","v":""},{"$f":"TotauxHeuresQuotidiennes","v":""}]
[null,{"$f":"PlanifierJour","v":""},{"$f":"TotauxHeuresQuotidiennes","v":""}]

{"sheet":"mai16","index":11,"n_rows":103,"n_cols":24,"rows_kept":103,"cut":false,"hidden":false,"merged":[[11,8,12,8],[3,21,3,23],[3,3,3,5],[3,6,3,8],[3,9,3,11],[3,12,3,14],[3,15,3,17],[3,18,3,20]]}
[]
[null,"Publications"]
[]
[null,"Entrez la date de début","Totaux","Facebook Chambéry",null,null,"Twitter Chambéry",null,null,"FB Annecy",null,null,"Twitter Annecy",null,null,"Viadeo FS",null,null,"Linkedin FS",null,null,"FB Skyline"]
[null,"2016-05-16",null,null,null,"THEME",null,null,"THEME",null,null,"THEME",null,null,"THEME",null,null,"THEME",null,null,"THEME",null,null,"THEME"]
[]
[null,{"$f":"PlanifierJour","v":"2016-05-16"},{"$f":"TotauxHeuresQuotidiennes","v":0},0,null,null,null,null,null,0,null,null,0]
[null,{"$f":"PlanifierJour","v":""},{"$f":"TotauxHeuresQuotidiennes","v":""},0]
[null,{"$f":"PlanifierJour","v":""},{"$f":"TotauxHeuresQuotidiennes","v":""}]
[null,{"$f":"PlanifierJour","v":""},{"$f":"TotauxHeuresQuotidiennes","v":""}]
[null,{"$f":"PlanifierJour","v":""},{"$f":"TotauxHeuresQuotidiennes","v":""}]
[null,{"$f":"PlanifierJour","v":"2016-05-17"},{"$f":"TotauxHeuresQuotidiennes","v":0},1,null,"citation montessori",1,null,"Science et actions médecine",1,null,"peinture pièce",0]
[null,{"$f":"PlanifierJour","v":""},{"$f":"TotauxHeuresQuotidiennes","v":""}]
[null,{"$f":"PlanifierJour","v":""},{"$f":"TotauxHeuresQuotidiennes","v":""}]
[null,{"$f":"PlanifierJour","v":""},{"$f":"TotauxHeuresQuotidiennes","v":""}]
[null,{"$f":"PlanifierJour","v":""},{"$f":"TotauxHeuresQuotidiennes","v":""}]
[null,{"$f":"PlanifierJour","v":"2016-05-18"},{"$f":"TotauxHeuresQuotidiennes","v":0},1,null,"présentation FS Chambéry",0,null,null,1,null,"offre d'emploi gruffy",1,null,"citation",null,null,null,1,null,"Recrutement permanent"]
[null,{"$f":"PlanifierJour","v":""},{"$f":"TotauxHeuresQuotidiennes","v":""},null,null,null,null,null,null,null,null,null,null,null,"enfants peines",null,null,null,null,null,"avec lien vers site"]
[null,{"$f":"PlanifierJour","v":""},{"$f":"TotauxHeuresQuotidiennes","v":""}]
[null,{"$f":"PlanifierJour","v":""},{"$f":"TotauxHeuresQuotidiennes","v":""}]
[null,{"$f":"PlanifierJour","v":""},{"$f":"TotauxHeuresQuotidiennes","v":""}]
[null,{"$f":"PlanifierJour","v":"2016-05-19"},{"$f":"TotauxHeuresQuotidiennes","v":0},1,null,"horaires FS chambé",1,null,"calligramme",1,null,"citation montessori",1,null,"horaires"]
[null,{"$f":"PlanifierJour","v":""},{"$f":"TotauxHeuresQuotidiennes","v":""}]
[null,{"$f":"PlanifierJour","v":""},{"$f":"TotauxHeuresQuotidiennes","v":""}]
[null,{"$f":"PlanifierJour","v":""},{"$f":"TotauxHeuresQuotidiennes","v":""}]
[null,{"$f":"PlanifierJour","v":""},{"$f":"TotauxHeuresQuotidiennes","v":""}]
[null,{"$f":"PlanifierJour","v":"2016-05-20"},{"$f":"TotauxHeuresQuotidiennes","v":0},1,null,"braderie enfants",0,null,null,1,null,"Specatcle musical",0]
[null,{"$f":"PlanifierJour","v":""},{"$f":"TotauxHeuresQuotidiennes","v":""},null,null,null,null,null,null,null,null,"pierre castellan"]
[null,{"$f":"PlanifierJour","v":""},{"$f":"TotauxHeuresQuotidiennes","v":""}]
[null,{"$f":"PlanifierJour","v":""},{"$f":"TotauxHeuresQuotidiennes","v":""}]
[null,{"$f":"PlanifierJour","v":""},{"$f":"TotauxHeuresQuotidiennes","v":""}]
[null,{"$f":"PlanifierJour","v":"2016-05-21"},{"$f":"TotauxHeuresQuotidiennes","v":0},1,null,"recrutement",0,null,null,1,null,"recrutement",1,null,"FS A et FS C sont liés",1,null,"Recrutement permanent"]
[null,{"$f":"PlanifierJour","v":""},{"$f":"TotauxHeuresQuotidiennes","v":""},null,null,"handicap",1,null,"horaires",null,null,"handicap",null,null,null,null,null,"avec lien vers site"]
[null,{"$f":"PlanifierJour","v":""},{"$f":"TotauxHeuresQuotidiennes","v":""},null,null,null,null,null,null,0]
[null,{"$f":"PlanifierJour","v":""},{"$f":"TotauxHeuresQuotidiennes","v":""}]
[null,{"$f":"PlanifierJour","v":""},{"$f":"TotauxHeuresQuotidiennes","v":""}]
[null,{"$f":"PlanifierJour","v":"2016-05-22"},{"$f":"TotauxHeuresQuotidiennes","v":0},1,null,"spot radio",1,null,"citation montessori",1,null,"spot radio",1,null,"recrutement"]
[null,{"$f":"PlanifierJour","v":""},{"$f":"TotauxHeuresQuotidiennes","v":""},null,null,null,null,null,null,null,null,null,null,null,"handicap"]
[null,{"$f":"PlanifierJour","v":""},{"$f":"TotauxHeuresQuotidiennes","v":""}]
[null,{"$f":"PlanifierJour","v":""},{"$f":"TotauxHeuresQuotidiennes","v":""}]
[null,{"$f":"PlanifierJour","v":""},{"$f":"TotauxHeuresQuotidiennes","v":""}]
[null,{"$f":"PlanifierJour","v":""},{"$f":"TotauxHeuresQuotidiennes","v":""}]
[null,{"$f":"PlanifierJour","v":""},{"$f":"TotauxHeuresQuotidiennes","v":""}]
[null,{"$f":"PlanifierJour","v":""},{"$f":"TotauxHeuresQuotidiennes","v":""}]
[null,{"$f":"PlanifierJour","v":""},{"$f":"TotauxHeuresQuotidiennes","v":""}]
[null,{"$f":"PlanifierJour","v":""},{"$f":"TotauxHeuresQuotidiennes","v":""}]
[null,{"$f":"PlanifierJour","v":""},{"$f":"TotauxHeuresQuotidiennes","v":""}]
[null,{"$f":"PlanifierJour","v":""},{"$f":"TotauxHeuresQuotidiennes","v":""}]
[null,{"$f":"PlanifierJour","v":""},{"$f":"TotauxHeuresQuotidiennes","v":""}]
[null,{"$f":"PlanifierJour","v":""},{"$f":"TotauxHeuresQuotidiennes","v":""}]
[null,{"$f":"PlanifierJour","v":""},{"$f":"TotauxHeuresQuotidiennes","v":""}]
[null,{"$f":"PlanifierJour","v":""},{"$f":"TotauxHeuresQuotidiennes","v":""}]
[null,{"$f":"PlanifierJour","v":""},{"$f":"TotauxHeuresQuotidiennes","v":""}]
[null,{"$f":"PlanifierJour","v":""},{"$f":"TotauxHeuresQuotidiennes","v":""}]
[null,{"$f":"PlanifierJour","v":""},{"$f":"TotauxHeuresQuotidiennes","v":""}]
[null,{"$f":"PlanifierJour","v":""},{"$f":"TotauxHeuresQuotidiennes","v":""}]
[null,{"$f":"PlanifierJour","v":""},{"$f":"TotauxHeuresQuotidiennes","v":""}]
[null,{"$f":"PlanifierJour","v":""},{"$f":"TotauxHeuresQuotidiennes","v":""}]
[null,{"$f":"PlanifierJour","v":""},{"$f":"TotauxHeuresQuotidiennes","v":""}]
[null,{"$f":"PlanifierJour","v":""},{"$f":"TotauxHeuresQuotidiennes","v":""}]
[null,{"$f":"PlanifierJour","v":""},{"$f":"TotauxHeuresQuotidiennes","v":""}]
[null,{"$f":"PlanifierJour","v":""},{"$f":"TotauxHeuresQuotidiennes","v":""}]
[null,{"$f":"PlanifierJour","v":""},{"$f":"TotauxHeuresQuotidiennes","v":""}]
[null,{"$f":"PlanifierJour","v":""},{"$f":"TotauxHeuresQuotidiennes","v":""}]
[null,{"$f":"PlanifierJour","v":""},{"$f":"TotauxHeuresQuotidiennes","v":""}]
[null,{"$f":"PlanifierJour","v":""},{"$f":"TotauxHeuresQuotidiennes","v":""}]
[null,{"$f":"PlanifierJour","v":""},{"$f":"TotauxHeuresQuotidiennes","v":""}]
[null,{"$f":"PlanifierJour","v":""},{"$f":"TotauxHeuresQuotidiennes","v":""}]
[null,{"$f":"PlanifierJour","v":""},{"$f":"TotauxHeuresQuotidiennes","v":""}]
[null,{"$f":"PlanifierJour","v":""},{"$f":"TotauxHeuresQuotidiennes","v":""}]
[null,{"$f":"PlanifierJour","v":""},{"$f":"TotauxHeuresQuotidiennes","v":""}]
[null,{"$f":"PlanifierJour","v":""},{"$f":"TotauxHeuresQuotidiennes","v":""}]
[null,{"$f":"PlanifierJour","v":""},{"$f":"TotauxHeuresQuotidiennes","v":""}]
[null,{"$f":"PlanifierJour","v":""},{"$f":"TotauxHeuresQuotidiennes","v":""}]
[null,{"$f":"PlanifierJour","v":""},{"$f":"TotauxHeuresQuotidiennes","v":""}]
[null,{"$f":"PlanifierJour","v":""},{"$f":"TotauxHeuresQuotidiennes","v":""}]
[null,{"$f":"PlanifierJour","v":""},{"$f":"TotauxHeuresQuotidiennes","v":""}]
[null,{"$f":"PlanifierJour","v":""},{"$f":"TotauxHeuresQuotidiennes","v":""}]
[null,{"$f":"PlanifierJour","v":""},{"$f":"TotauxHeuresQuotidiennes","v":""}]
[null,{"$f":"PlanifierJour","v":""},{"$f":"TotauxHeuresQuotidiennes","v":""}]
[null,{"$f":"PlanifierJour","v":""},{"$f":"TotauxHeuresQuotidiennes","v":""}]
[null,{"$f":"PlanifierJour","v":""},{"$f":"TotauxHeuresQuotidiennes","v":""}]
[null,{"$f":"PlanifierJour","v":""},{"$f":"TotauxHeuresQuotidiennes","v":""}]
[null,{"$f":"PlanifierJour","v":""},{"$f":"TotauxHeuresQuotidiennes","v":""}]
[null,{"$f":"PlanifierJour","v":""},{"$f":"TotauxHeuresQuotidiennes","v":""}]
[null,{"$f":"PlanifierJour","v":""},{"$f":"TotauxHeuresQuotidiennes","v":""}]
[null,{"$f":"PlanifierJour","v":""},{"$f":"TotauxHeuresQuotidiennes","v":""}]
[null,{"$f":"PlanifierJour","v":""},{"$f":"TotauxHeuresQuotidiennes","v":""}]
[null,{"$f":"PlanifierJour","v":""},{"$f":"TotauxHeuresQuotidiennes","v":""}]
[null,{"$f":"PlanifierJour","v":""},{"$f":"TotauxHeuresQuotidiennes","v":""}]
[null,{"$f":"PlanifierJour","v":""},{"$f":"TotauxHeuresQuotidiennes","v":""}]
[null,{"$f":"PlanifierJour","v":""},{"$f":"TotauxHeuresQuotidiennes","v":""}]
[null,{"$f":"PlanifierJour","v":""},{"$f":"TotauxHeuresQuotidiennes","v":""}]
[null,{"$f":"PlanifierJour","v":""},{"$f":"TotauxHeuresQuotidiennes","v":""}]
[null,{"$f":"PlanifierJour","v":""},{"$f":"TotauxHeuresQuotidiennes","v":""}]
[null,{"$f":"PlanifierJour","v":""},{"$f":"TotauxHeuresQuotidiennes","v":""}]
[null,{"$f":"PlanifierJour","v":""},{"$f":"TotauxHeuresQuotidiennes","v":""}]
[null,{"$f":"PlanifierJour","v":""},{"$f":"TotauxHeuresQuotidiennes","v":""}]
[null,{"$f":"PlanifierJour","v":""},{"$f":"TotauxHeuresQuotidiennes","v":""}]
[null,{"$f":"PlanifierJour","v":""},{"$f":"TotauxHeuresQuotidiennes","v":""}]
[null,{"$f":"PlanifierJour","v":""},{"$f":"TotauxHeuresQuotidiennes","v":""}]
[null,{"$f":"PlanifierJour","v":""},{"$f":"TotauxHeuresQuotidiennes","v":""}]
[null,{"$f":"PlanifierJour","v":""},{"$f":"TotauxHeuresQuotidiennes","v":""}]

{"sheet":"mai 23","index":12,"n_rows":103,"n_cols":24,"rows_kept":103,"cut":false,"hidden":false,"merged":[[16,8,17,8],[16,11,20,11],[21,11,22,11],[3,21,3,23],[6,11,9,11],[6,8,7,8],[11,8,12,8],[11,13,11,14],[3,18,3,20],[3,3,3,5],[3,6,3,8],[3,9,3,11],[3,12,3,14],[3,15,3,17]]}
[]
[null,"Social networks"]
[]
[null,"Entrez la date de début","Totaux","Facebook Chambéry",null,null,"Twitter Chambéry",null,null,"FB Annecy",null,null,"Twitter Annecy",null,null,"Viadeo FS",null,null,"Linkedin FS",null,null,"FB Skyline"]
[null,"2016-05-23",null,null,null,"THEME",null,null,"THEME",null,null,"THEME",null,null,"THEME",null,null,"THEME",null,null,"THEME",null,null,"THEME"]
[]
[null,{"$f":"PlanifierJour","v":"2016-05-23"},{"$f":"TotauxHeuresQuotidiennes","v":0},1,null,"Astuces",1,null,"Astuces",1,null,"La citation du lundi petit prince",1,null,"calligramme",null,null,null,0]
[null,{"$f":"PlanifierJour","v":""},{"$f":"TotauxHeuresQuotidiennes","v":""},null,null,"mission impossible"]
[null,{"$f":"PlanifierJour","v":""},{"$f":"TotauxHeuresQuotidiennes","v":""},null,null,"a la maison",null,null,"circuit voitures"]
[null,{"$f":"PlanifierJour","v":""},{"$f":"TotauxHeuresQuotidiennes","v":""}]
[null,{"$f":"PlanifierJour","v":""},{"$f":"TotauxHeuresQuotidiennes","v":""}]
[null,{"$f":"PlanifierJour","v":"2016-05-24"},{"$f":"TotauxHeuresQuotidiennes","v":0},1,null,"citation",0,null,null,1,null,"journée mondiale des",0]
[null,{"$f":"PlanifierJour","v":""},{"$f":"TotauxHeuresQuotidiennes","v":""},null,null,"petit prince",null,null,null,null,null,"enfants disparus"]
[null,{"$f":"PlanifierJour","v":""},{"$f":"TotauxHeuresQuotidiennes","v":""}]
[null,{"$f":"PlanifierJour","v":""},{"$f":"TotauxHeuresQuotidiennes","v":""}]
[null,{"$f":"PlanifierJour","v":""},{"$f":"TotauxHeuresQuotidiennes","v":""}]
[null,{"$f":"PlanifierJour","v":"2016-05-25"},{"$f":"TotauxHeuresQuotidiennes","v":0},1,null,"journée mondiale des",1,null,"FS A et FS C sont liés",1,null,"Offre d'emploi",1,null,"citation petit prince"]
[null,{"$f":"PlanifierJour","v":""},{"$f":"TotauxHeuresQuotidiennes","v":""},null,null,"enfants disparus"]
[null,{"$f":"PlanifierJour","v":""},{"$f":"TotauxHeuresQuotidiennes","v":""}]
[null,{"$f":"PlanifierJour","v":""},{"$f":"TotauxHeuresQuotidiennes","v":""}]
[null,{"$f":"PlanifierJour","v":""},{"$f":"TotauxHeuresQuotidiennes","v":""}]
[null,{"$f":"PlanifierJour","v":"2016-05-26"},{"$f":"TotauxHeuresQuotidiennes","v":0},1,null,"droles de gammes",1,null,"citation ",1,null,"création tshirt",0]
[null,{"$f":"PlanifierJour","v":""},{"$f":"TotauxHeuresQuotidiennes","v":""},null,null,"agenda"]
[null,{"$f":"PlanifierJour","v":""},{"$f":"TotauxHeuresQuotidiennes","v":""}]
[null,{"$f":"PlanifierJour","v":""},{"$f":"TotauxHeuresQuotidiennes","v":""}]
[null,{"$f":"PlanifierJour","v":""},{"$f":"TotauxHeuresQuotidiennes","v":""}]
[null,{"$f":"PlanifierJour","v":"2016-05-27"},{"$f":"TotauxHeuresQuotidiennes","v":0},1,null,"Agenda",1,null,"fs recrute",1,null,"Agenda",1,null,"fs recrute"]
[null,{"$f":"PlanifierJour","v":""},{"$f":"TotauxHeuresQuotidiennes","v":""},null,null,"amnesty bouquinerie",null,null,null,null,null,"bouts d'choux"]
[null,{"$f":"PlanifierJour","v":""},{"$f":"TotauxHeuresQuotidiennes","v":""}]
[null,{"$f":"PlanifierJour","v":""},{"$f":"TotauxHeuresQuotidiennes","v":""}]
[null,{"$f":"PlanifierJour","v":""},{"$f":"TotauxHeuresQuotidiennes","v":""}]
[null,{"$f":"PlanifierJour","v":"2016-05-28"},{"$f":"TotauxHeuresQuotidiennes","v":0},1,null,"fs rencontres mensuels",0,null,null,1,null,"FS partenaire",0,null,null,1,null,"combien ca coute?"]
[null,{"$f":"PlanifierJour","v":""},{"$f":"TotauxHeuresQuotidiennes","v":""},null,null,"nounous",null,null,null,null,null,"espace concours"]
[null,{"$f":"PlanifierJour","v":""},{"$f":"TotauxHeuresQuotidiennes","v":""}]
[null,{"$f":"PlanifierJour","v":""},{"$f":"TotauxHeuresQuotidiennes","v":""}]
[null,{"$f":"PlanifierJour","v":""},{"$f":"TotauxHeuresQuotidiennes","v":""}]
[null,{"$f":"PlanifierJour","v":"2016-05-29"},{"$f":"TotauxHeuresQuotidiennes","v":0},1,null,"FS recrute",1,null,"avantages fs",1,null,"FS recrute",1,null,"Cesu et Fs"]
[null,{"$f":"PlanifierJour","v":""},{"$f":"TotauxHeuresQuotidiennes","v":""}]
[null,{"$f":"PlanifierJour","v":""},{"$f":"TotauxHeuresQuotidiennes","v":""}]
[null,{"$f":"PlanifierJour","v":""},{"$f":"TotauxHeuresQuotidiennes","v":""}]
[null,{"$f":"PlanifierJour","v":""},{"$f":"TotauxHeuresQuotidiennes","v":""}]
[null,{"$f":"PlanifierJour","v":""},{"$f":"TotauxHeuresQuotidiennes","v":""}]
[null,{"$f":"PlanifierJour","v":""},{"$f":"TotauxHeuresQuotidiennes","v":""},null,null,"Réserve",null,null,"Journées internationales"]
[null,{"$f":"PlanifierJour","v":""},{"$f":"TotauxHeuresQuotidiennes","v":""}]
[null,{"$f":"PlanifierJour","v":""},{"$f":"TotauxHeuresQuotidiennes","v":""}]
[null,{"$f":"PlanifierJour","v":""},{"$f":"TotauxHeuresQuotidiennes","v":""}]
[null,{"$f":"PlanifierJour","v":""},{"$f":"TotauxHeuresQuotidiennes","v":""}]
[null,{"$f":"PlanifierJour","v":""},{"$f":"TotauxHeuresQuotidiennes","v":""}]
[null,{"$f":"PlanifierJour","v":""},{"$f":"TotauxHeuresQuotidiennes","v":""}]
[null,{"$f":"PlanifierJour","v":""},{"$f":"TotauxHeuresQuotidiennes","v":""}]
[null,{"$f":"PlanifierJour","v":""},{"$f":"TotauxHeuresQuotidiennes","v":""}]
[null,{"$f":"PlanifierJour","v":""},{"$f":"TotauxHeuresQuotidiennes","v":""}]
[null,{"$f":"PlanifierJour","v":""},{"$f":"TotauxHeuresQuotidiennes","v":""}]
[null,{"$f":"PlanifierJour","v":""},{"$f":"TotauxHeuresQuotidiennes","v":""}]
[null,{"$f":"PlanifierJour","v":""},{"$f":"TotauxHeuresQuotidiennes","v":""}]
[null,{"$f":"PlanifierJour","v":""},{"$f":"TotauxHeuresQuotidiennes","v":""}]
[null,{"$f":"PlanifierJour","v":""},{"$f":"TotauxHeuresQuotidiennes","v":""}]
[null,{"$f":"PlanifierJour","v":""},{"$f":"TotauxHeuresQuotidiennes","v":""}]
[null,{"$f":"PlanifierJour","v":""},{"$f":"TotauxHeuresQuotidiennes","v":""}]
[null,{"$f":"PlanifierJour","v":""},{"$f":"TotauxHeuresQuotidiennes","v":""}]
[null,{"$f":"PlanifierJour","v":""},{"$f":"TotauxHeuresQuotidiennes","v":""}]
[null,{"$f":"PlanifierJour","v":""},{"$f":"TotauxHeuresQuotidiennes","v":""}]
[null,{"$f":"PlanifierJour","v":""},{"$f":"TotauxHeuresQuotidiennes","v":""}]
[null,{"$f":"PlanifierJour","v":""},{"$f":"TotauxHeuresQuotidiennes","v":""}]
[null,{"$f":"PlanifierJour","v":""},{"$f":"TotauxHeuresQuotidiennes","v":""}]
[null,{"$f":"PlanifierJour","v":""},{"$f":"TotauxHeuresQuotidiennes","v":""}]
[null,{"$f":"PlanifierJour","v":""},{"$f":"TotauxHeuresQuotidiennes","v":""}]
[null,{"$f":"PlanifierJour","v":""},{"$f":"TotauxHeuresQuotidiennes","v":""}]
[null,{"$f":"PlanifierJour","v":""},{"$f":"TotauxHeuresQuotidiennes","v":""}]
[null,{"$f":"PlanifierJour","v":""},{"$f":"TotauxHeuresQuotidiennes","v":""}]
[null,{"$f":"PlanifierJour","v":""},{"$f":"TotauxHeuresQuotidiennes","v":""}]
[null,{"$f":"PlanifierJour","v":""},{"$f":"TotauxHeuresQuotidiennes","v":""}]
[null,{"$f":"PlanifierJour","v":""},{"$f":"TotauxHeuresQuotidiennes","v":""}]
[null,{"$f":"PlanifierJour","v":""},{"$f":"TotauxHeuresQuotidiennes","v":""}]
[null,{"$f":"PlanifierJour","v":""},{"$f":"TotauxHeuresQuotidiennes","v":""}]
[null,{"$f":"PlanifierJour","v":""},{"$f":"TotauxHeuresQuotidiennes","v":""}]
[null,{"$f":"PlanifierJour","v":""},{"$f":"TotauxHeuresQuotidiennes","v":""}]
[null,{"$f":"PlanifierJour","v":""},{"$f":"TotauxHeuresQuotidiennes","v":""}]
[null,{"$f":"PlanifierJour","v":""},{"$f":"TotauxHeuresQuotidiennes","v":""}]
[null,{"$f":"PlanifierJour","v":""},{"$f":"TotauxHeuresQuotidiennes","v":""}]
[null,{"$f":"PlanifierJour","v":""},{"$f":"TotauxHeuresQuotidiennes","v":""}]
[null,{"$f":"PlanifierJour","v":""},{"$f":"TotauxHeuresQuotidiennes","v":""}]
[null,{"$f":"PlanifierJour","v":""},{"$f":"TotauxHeuresQuotidiennes","v":""}]
[null,{"$f":"PlanifierJour","v":""},{"$f":"TotauxHeuresQuotidiennes","v":""}]
[null,{"$f":"PlanifierJour","v":""},{"$f":"TotauxHeuresQuotidiennes","v":""}]
[null,{"$f":"PlanifierJour","v":""},{"$f":"TotauxHeuresQuotidiennes","v":""}]
[null,{"$f":"PlanifierJour","v":""},{"$f":"TotauxHeuresQuotidiennes","v":""}]
[null,{"$f":"PlanifierJour","v":""},{"$f":"TotauxHeuresQuotidiennes","v":""}]
[null,{"$f":"PlanifierJour","v":""},{"$f":"TotauxHeuresQuotidiennes","v":""}]
[null,{"$f":"PlanifierJour","v":""},{"$f":"TotauxHeuresQuotidiennes","v":""}]
[null,{"$f":"PlanifierJour","v":""},{"$f":"TotauxHeuresQuotidiennes","v":""}]
[null,{"$f":"PlanifierJour","v":""},{"$f":"TotauxHeuresQuotidiennes","v":""}]
[null,{"$f":"PlanifierJour","v":""},{"$f":"TotauxHeuresQuotidiennes","v":""}]
[null,{"$f":"PlanifierJour","v":""},{"$f":"TotauxHeuresQuotidiennes","v":""}]
[null,{"$f":"PlanifierJour","v":""},{"$f":"TotauxHeuresQuotidiennes","v":""}]
[null,{"$f":"PlanifierJour","v":""},{"$f":"TotauxHeuresQuotidiennes","v":""}]
[null,{"$f":"PlanifierJour","v":""},{"$f":"TotauxHeuresQuotidiennes","v":""}]
[null,{"$f":"PlanifierJour","v":""},{"$f":"TotauxHeuresQuotidiennes","v":""}]
[null,{"$f":"PlanifierJour","v":""},{"$f":"TotauxHeuresQuotidiennes","v":""}]
[null,{"$f":"PlanifierJour","v":""},{"$f":"TotauxHeuresQuotidiennes","v":""}]
[null,{"$f":"PlanifierJour","v":""},{"$f":"TotauxHeuresQuotidiennes","v":""}]
[null,{"$f":"PlanifierJour","v":""},{"$f":"TotauxHeuresQuotidiennes","v":""}]
[null,{"$f":"PlanifierJour","v":""},{"$f":"TotauxHeuresQuotidiennes","v":""}]

{"sheet":"mai 30","index":13,"n_rows":103,"n_cols":24,"rows_kept":103,"cut":false,"hidden":false,"merged":[[3,3,3,5],[3,6,3,8],[3,9,3,11],[3,12,3,14],[3,15,3,17],[6,5,9,5],[6,8,7,8],[11,5,12,5],[11,8,12,8],[11,13,11,14],[26,14,27,14],[16,8,17,8],[16,11,20,11],[21,11,22,11],[3,21,3,23],[3,18,3,20]]}
[]
[null,"Social networks"]
[]
[null,"Entrez la date de début","Totaux","Facebook Chambéry",null,null,"Twitter Chambéry",null,null,"FB Annecy",null,null,"Twitter Annecy",null,null,"Viadeo FS",null,null,"Linkedin FS",null,null,"FB Skyline"]
[null,"2016-05-30",null,null,null,"THEME",null,null,"THEME",null,null,"THEME",null,null,"THEME",null,null,"THEME",null,null,"THEME",null,null,"THEME"]
[]
[null,{"$f":"PlanifierJour","v":"2016-05-30"},{"$f":"TotauxHeuresQuotidiennes","v":0},1,null,"vidéo vinz et loup a chacun son talent",1,null,"fs rencontres mensuels",1,null,"Astuces",1,null,"fs rencontres mensuels",null,null,null,0]
[null,{"$f":"PlanifierJour","v":""},{"$f":"TotauxHeuresQuotidiennes","v":""},null,null,null,null,null,null,null,null,"circuit voitures",null,null,"nounous"]
[null,{"$f":"PlanifierJour","v":""},{"$f":"TotauxHeuresQuotidiennes","v":""},null,null,null,null,null,null,null,null,"scotch"]
[null,{"$f":"PlanifierJour","v":""},{"$f":"TotauxHeuresQuotidiennes","v":""}]
[null,{"$f":"PlanifierJour","v":""},{"$f":"TotauxHeuresQuotidiennes","v":""}]
[null,{"$f":"PlanifierJour","v":"2016-05-31"},{"$f":"TotauxHeuresQuotidiennes","v":0},1,null,"matériel fete des pères",0,null,null,1,null,"Vidéo",0]
[null,{"$f":"PlanifierJour","v":""},{"$f":"TotauxHeuresQuotidiennes","v":""}]
[null,{"$f":"PlanifierJour","v":""},{"$f":"TotauxHeuresQuotidiennes","v":""}]
[null,{"$f":"PlanifierJour","v":""},{"$f":"TotauxHeuresQuotidiennes","v":""}]
[null,{"$f":"PlanifierJour","v":""},{"$f":"TotauxHeuresQuotidiennes","v":""}]
[null,{"$f":"PlanifierJour","v":"2016-06-01"},{"$f":"TotauxHeuresQuotidiennes","v":0},10,null,"Offre d'emploi",1,null,"matériel fete des pères",1,null,"Offre d'emploi",1,null,"recherche permanente"]
[null,{"$f":"PlanifierJour","v":""},{"$f":"TotauxHeuresQuotidiennes","v":""},null,null,null,null,null,null,null,null,null,null,null,"intervenantes"]
[null,{"$f":"PlanifierJour","v":""},{"$f":"TotauxHeuresQuotidiennes","v":""}]
[null,{"$f":"PlanifierJour","v":""},{"$f":"TotauxHeuresQuotidiennes","v":""}]
[null,{"$f":"PlanifierJour","v":""},{"$f":"TotauxHeuresQuotidiennes","v":""}]
[null,{"$f":"PlanifierJour","v":"2016-06-02"},{"$f":"TotauxHeuresQuotidiennes","v":0},1,null,"vidéo",0,null,null,1,null,"matériel fete des pères",0]
[null,{"$f":"PlanifierJour","v":""},{"$f":"TotauxHeuresQuotidiennes","v":""}]
[null,{"$f":"PlanifierJour","v":""},{"$f":"TotauxHeuresQuotidiennes","v":""}]
[null,{"$f":"PlanifierJour","v":""},{"$f":"TotauxHeuresQuotidiennes","v":""}]
[null,{"$f":"PlanifierJour","v":""},{"$f":"TotauxHeuresQuotidiennes","v":""}]
[null,{"$f":"PlanifierJour","v":"2016-06-03"},{"$f":"TotauxHeuresQuotidiennes","v":0},1,null,"Agenda",1,null,"recherche permanente",1,null,"Agenda",1,null,"matériel fete des pères"]
[null,{"$f":"PlanifierJour","v":""},{"$f":"TotauxHeuresQuotidiennes","v":""},null,null,"critérium dauph libere",null,null,"intervenantes",null,null,"critérium dauph libere"]
[null,{"$f":"PlanifierJour","v":""},{"$f":"TotauxHeuresQuotidiennes","v":""}]
[null,{"$f":"PlanifierJour","v":""},{"$f":"TotauxHeuresQuotidiennes","v":""}]
[null,{"$f":"PlanifierJour","v":""},{"$f":"TotauxHeuresQuotidiennes","v":""}]
[null,{"$f":"PlanifierJour","v":"2016-06-04"},{"$f":"TotauxHeuresQuotidiennes","v":0},1,null,"FS partenaire",0,null,null,1,null,"fs rencontres mensuels",0,null,null,1,null,"fs rencontres mensuels"]
[null,{"$f":"PlanifierJour","v":""},{"$f":"TotauxHeuresQuotidiennes","v":""},null,null,"espace concours",null,null,null,null,null,"nounous",null,null,null,null,null,"nounous"]
[null,{"$f":"PlanifierJour","v":""},{"$f":"TotauxHeuresQuotidiennes","v":""}]
[null,{"$f":"PlanifierJour","v":""},{"$f":"TotauxHeuresQuotidiennes","v":""}]
[null,{"$f":"PlanifierJour","v":""},{"$f":"TotauxHeuresQuotidiennes","v":""}]
[null,{"$f":"PlanifierJour","v":"2016-06-05"},{"$f":"TotauxHeuresQuotidiennes","v":0},0,null,null,0,null,null,0,null,null,0]
[null,{"$f":"PlanifierJour","v":""},{"$f":"TotauxHeuresQuotidiennes","v":""}]
[null,{"$f":"PlanifierJour","v":""},{"$f":"TotauxHeuresQuotidiennes","v":""}]
[null,{"$f":"PlanifierJour","v":""},{"$f":"TotauxHeuresQuotidiennes","v":""}]
[null,{"$f":"PlanifierJour","v":""},{"$f":"TotauxHeuresQuotidiennes","v":""}]
[null,{"$f":"PlanifierJour","v":""},{"$f":"TotauxHeuresQuotidiennes","v":""}]
[null,{"$f":"PlanifierJour","v":""},{"$f":"TotauxHeuresQuotidiennes","v":""},null,null,"Réserve",null,null,"Journées internationales"]
[null,{"$f":"PlanifierJour","v":""},{"$f":"TotauxHeuresQuotidiennes","v":""}]
[null,{"$f":"PlanifierJour","v":""},{"$f":"TotauxHeuresQuotidiennes","v":""}]
[null,{"$f":"PlanifierJour","v":""},{"$f":"TotauxHeuresQuotidiennes","v":""}]
[null,{"$f":"PlanifierJour","v":""},{"$f":"TotauxHeuresQuotidiennes","v":""}]
[null,{"$f":"PlanifierJour","v":""},{"$f":"TotauxHeuresQuotidiennes","v":""}]
[null,{"$f":"PlanifierJour","v":""},{"$f":"TotauxHeuresQuotidiennes","v":""}]
[null,{"$f":"PlanifierJour","v":""},{"$f":"TotauxHeuresQuotidiennes","v":""}]
[null,{"$f":"PlanifierJour","v":""},{"$f":"TotauxHeuresQuotidiennes","v":""}]
[null,{"$f":"PlanifierJour","v":""},{"$f":"TotauxHeuresQuotidiennes","v":""}]
[null,{"$f":"PlanifierJour","v":""},{"$f":"TotauxHeuresQuotidiennes","v":""}]
[null,{"$f":"PlanifierJour","v":""},{"$f":"TotauxHeuresQuotidiennes","v":""}]
[null,{"$f":"PlanifierJour","v":""},{"$f":"TotauxHeuresQuotidiennes","v":""}]
[null,{"$f":"PlanifierJour","v":""},{"$f":"TotauxHeuresQuotidiennes","v":""}]
[null,{"$f":"PlanifierJour","v":""},{"$f":"TotauxHeuresQuotidiennes","v":""}]
[null,{"$f":"PlanifierJour","v":""},{"$f":"TotauxHeuresQuotidiennes","v":""}]
[null,{"$f":"PlanifierJour","v":""},{"$f":"TotauxHeuresQuotidiennes","v":""}]
[null,{"$f":"PlanifierJour","v":""},{"$f":"TotauxHeuresQuotidiennes","v":""}]
[null,{"$f":"PlanifierJour","v":""},{"$f":"TotauxHeuresQuotidiennes","v":""}]
[null,{"$f":"PlanifierJour","v":""},{"$f":"TotauxHeuresQuotidiennes","v":""}]
[null,{"$f":"PlanifierJour","v":""},{"$f":"TotauxHeuresQuotidiennes","v":""}]
[null,{"$f":"PlanifierJour","v":""},{"$f":"TotauxHeuresQuotidiennes","v":""}]
[null,{"$f":"PlanifierJour","v":""},{"$f":"TotauxHeuresQuotidiennes","v":""}]
[null,{"$f":"PlanifierJour","v":""},{"$f":"TotauxHeuresQuotidiennes","v":""}]
[null,{"$f":"PlanifierJour","v":""},{"$f":"TotauxHeuresQuotidiennes","v":""}]
[null,{"$f":"PlanifierJour","v":""},{"$f":"TotauxHeuresQuotidiennes","v":""}]
[null,{"$f":"PlanifierJour","v":""},{"$f":"TotauxHeuresQuotidiennes","v":""}]
[null,{"$f":"PlanifierJour","v":""},{"$f":"TotauxHeuresQuotidiennes","v":""}]
[null,{"$f":"PlanifierJour","v":""},{"$f":"TotauxHeuresQuotidiennes","v":""}]
[null,{"$f":"PlanifierJour","v":""},{"$f":"TotauxHeuresQuotidiennes","v":""}]
[null,{"$f":"PlanifierJour","v":""},{"$f":"TotauxHeuresQuotidiennes","v":""}]
[null,{"$f":"PlanifierJour","v":""},{"$f":"TotauxHeuresQuotidiennes","v":""}]
[null,{"$f":"PlanifierJour","v":""},{"$f":"TotauxHeuresQuotidiennes","v":""}]
[null,{"$f":"PlanifierJour","v":""},{"$f":"TotauxHeuresQuotidiennes","v":""}]
[null,{"$f":"PlanifierJour","v":""},{"$f":"TotauxHeuresQuotidiennes","v":""}]
[null,{"$f":"PlanifierJour","v":""},{"$f":"TotauxHeuresQuotidiennes","v":""}]
[null,{"$f":"PlanifierJour","v":""},{"$f":"TotauxHeuresQuotidiennes","v":""}]
[null,{"$f":"PlanifierJour","v":""},{"$f":"TotauxHeuresQuotidiennes","v":""}]
[null,{"$f":"PlanifierJour","v":""},{"$f":"TotauxHeuresQuotidiennes","v":""}]
[null,{"$f":"PlanifierJour","v":""},{"$f":"TotauxHeuresQuotidiennes","v":""}]
[null,{"$f":"PlanifierJour","v":""},{"$f":"TotauxHeuresQuotidiennes","v":""}]
[null,{"$f":"PlanifierJour","v":""},{"$f":"TotauxHeuresQuotidiennes","v":""}]
[null,{"$f":"PlanifierJour","v":""},{"$f":"TotauxHeuresQuotidiennes","v":""}]
[null,{"$f":"PlanifierJour","v":""},{"$f":"TotauxHeuresQuotidiennes","v":""}]
[null,{"$f":"PlanifierJour","v":""},{"$f":"TotauxHeuresQuotidiennes","v":""}]
[null,{"$f":"PlanifierJour","v":""},{"$f":"TotauxHeuresQuotidiennes","v":""}]
[null,{"$f":"PlanifierJour","v":""},{"$f":"TotauxHeuresQuotidiennes","v":""}]
[null,{"$f":"PlanifierJour","v":""},{"$f":"TotauxHeuresQuotidiennes","v":""}]
[null,{"$f":"PlanifierJour","v":""},{"$f":"TotauxHeuresQuotidiennes","v":""}]
[null,{"$f":"PlanifierJour","v":""},{"$f":"TotauxHeuresQuotidiennes","v":""}]
[null,{"$f":"PlanifierJour","v":""},{"$f":"TotauxHeuresQuotidiennes","v":""}]
[null,{"$f":"PlanifierJour","v":""},{"$f":"TotauxHeuresQuotidiennes","v":""}]
[null,{"$f":"PlanifierJour","v":""},{"$f":"TotauxHeuresQuotidiennes","v":""}]
[null,{"$f":"PlanifierJour","v":""},{"$f":"TotauxHeuresQuotidiennes","v":""}]
[null,{"$f":"PlanifierJour","v":""},{"$f":"TotauxHeuresQuotidiennes","v":""}]
[null,{"$f":"PlanifierJour","v":""},{"$f":"TotauxHeuresQuotidiennes","v":""}]
[null,{"$f":"PlanifierJour","v":""},{"$f":"TotauxHeuresQuotidiennes","v":""}]
[null,{"$f":"PlanifierJour","v":""},{"$f":"TotauxHeuresQuotidiennes","v":""}]
[null,{"$f":"PlanifierJour","v":""},{"$f":"TotauxHeuresQuotidiennes","v":""}]
[null,{"$f":"PlanifierJour","v":""},{"$f":"TotauxHeuresQuotidiennes","v":""}]
[null,{"$f":"PlanifierJour","v":""},{"$f":"TotauxHeuresQuotidiennes","v":""}]

{"sheet":"juin 06","index":14,"n_rows":103,"n_cols":24,"rows_kept":103,"cut":false,"hidden":false,"merged":[[16,8,17,8],[31,14,32,14],[3,21,3,23],[11,5,14,5],[6,8,7,8],[11,8,12,8],[11,13,11,14],[3,3,3,5],[3,6,3,8],[3,9,3,11],[3,12,3,14],[3,15,3,17],[3,18,3,20]]}
[]
[null,"Social networks"]
[]
[null,"Entrez la date de début","Totaux","Facebook Chambéry",null,null,"Twitter Chambéry",null,null,"FB Annecy",null,null,"Twitter Annecy",null,null,"Viadeo FS",null,null,"Linkedin FS",null,null,"FB Skyline"]
[null,"2016-06-06",null,null,null,"THEME",null,null,"THEME",null,null,"THEME",null,null,"THEME",null,null,"THEME",null,null,"THEME",null,null,"THEME"]
[]
[null,{"$f":"PlanifierJour","v":"2016-06-06"},{"$f":"TotauxHeuresQuotidiennes","v":0},0,null,null,0,null,null,0,null,"Astuces",0,null,null,null,null,null,0]
[null,{"$f":"PlanifierJour","v":""},{"$f":"TotauxHeuresQuotidiennes","v":""}]
[null,{"$f":"PlanifierJour","v":""},{"$f":"TotauxHeuresQuotidiennes","v":""}]
[null,{"$f":"PlanifierJour","v":""},{"$f":"TotauxHeuresQuotidiennes","v":""}]
[null,{"$f":"PlanifierJour","v":""},{"$f":"TotauxHeuresQuotidiennes","v":""}]
[null,{"$f":"PlanifierJour","v":"2016-06-07"},{"$f":"TotauxHeuresQuotidiennes","v":0},1,null,"La citation du lundi adulte créatif",1,null,"rentrée 2016",1,null,"comment recrutons nous?",1,"matériel fete des peres."]
[null,{"$f":"PlanifierJour","v":""},{"$f":"TotauxHeuresQuotidiennes","v":""}]
[null,{"$f":"PlanifierJour","v":""},{"$f":"TotauxHeuresQuotidiennes","v":""},null,null,null,null,null,"prévoyez"]
[null,{"$f":"PlanifierJour","v":""},{"$f":"TotauxHeuresQuotidiennes","v":""}]
[null,{"$f":"PlanifierJour","v":""},{"$f":"TotauxHeuresQuotidiennes","v":""}]
[null,{"$f":"PlanifierJour","v":"2016-06-08"},{"$f":"TotauxHeuresQuotidiennes","v":0},1,null,"Offre d'emploi",0,null,null,1,null,"Offre d'emploi",0]
[null,{"$f":"PlanifierJour","v":""},{"$f":"TotauxHeuresQuotidiennes","v":""},null,null,"la motte servolex",null,null,null,null,null,"septembre annecy"]
[null,{"$f":"PlanifierJour","v":""},{"$f":"TotauxHeuresQuotidiennes","v":""}]
[null,{"$f":"PlanifierJour","v":""},{"$f":"TotauxHeuresQuotidiennes","v":""}]
[null,{"$f":"PlanifierJour","v":""},{"$f":"TotauxHeuresQuotidiennes","v":""}]
[null,{"$f":"PlanifierJour","v":"2016-06-09"},{"$f":"TotauxHeuresQuotidiennes","v":0},1,null,"comment recrutons nous?",1,null,"critérium dauphiné",1,null,"mandala",1,null,"comment recrutons nous?"]
[null,{"$f":"PlanifierJour","v":""},{"$f":"TotauxHeuresQuotidiennes","v":""}]
[null,{"$f":"PlanifierJour","v":""},{"$f":"TotauxHeuresQuotidiennes","v":""}]
[null,{"$f":"PlanifierJour","v":""},{"$f":"TotauxHeuresQuotidiennes","v":""}]
[null,{"$f":"PlanifierJour","v":""},{"$f":"TotauxHeuresQuotidiennes","v":""}]
[null,{"$f":"PlanifierJour","v":"2016-06-10"},{"$f":"TotauxHeuresQuotidiennes","v":0},1,null,"Agenda",0,null,null,1,null,"haute savoie"]
[null,{"$f":"PlanifierJour","v":""},{"$f":"TotauxHeuresQuotidiennes","v":""},null,null,"critérium",null,null,null,null,null,"expérience"]
[null,{"$f":"PlanifierJour","v":""},{"$f":"TotauxHeuresQuotidiennes","v":""}]
[null,{"$f":"PlanifierJour","v":""},{"$f":"TotauxHeuresQuotidiennes","v":""}]
[null,{"$f":"PlanifierJour","v":""},{"$f":"TotauxHeuresQuotidiennes","v":""}]
[null,{"$f":"PlanifierJour","v":"2016-06-11"},{"$f":"TotauxHeuresQuotidiennes","v":0},1,null,"rentrée 2016",1,null,"comment recrutons nous?",1,null,"age de glace",1,null,"rentrée 2016",0]
[null,{"$f":"PlanifierJour","v":""},{"$f":"TotauxHeuresQuotidiennes","v":""},null,null,"horaires"]
[null,{"$f":"PlanifierJour","v":""},{"$f":"TotauxHeuresQuotidiennes","v":""},null,null,null,null,null,null,null,null,null,null,null,"prévoyez"]
[null,{"$f":"PlanifierJour","v":""},{"$f":"TotauxHeuresQuotidiennes","v":""}]
[null,{"$f":"PlanifierJour","v":""},{"$f":"TotauxHeuresQuotidiennes","v":""}]
[null,{"$f":"PlanifierJour","v":"2016-06-12"},{"$f":"TotauxHeuresQuotidiennes","v":0},1,null,"tarte aux fraises",1,null,"horaires",1,null,"tam tam récup",1,null,"horaires"]
[null,{"$f":"PlanifierJour","v":""},{"$f":"TotauxHeuresQuotidiennes","v":""}]
[null,{"$f":"PlanifierJour","v":""},{"$f":"TotauxHeuresQuotidiennes","v":""}]
[null,{"$f":"PlanifierJour","v":""},{"$f":"TotauxHeuresQuotidiennes","v":""}]
[null,{"$f":"PlanifierJour","v":""},{"$f":"TotauxHeuresQuotidiennes","v":""}]
[null,{"$f":"PlanifierJour","v":""},{"$f":"TotauxHeuresQuotidiennes","v":""}]
[null,{"$f":"PlanifierJour","v":""},{"$f":"TotauxHeuresQuotidiennes","v":""},null,null,"Réserve",null,null,"Journées internationales"]
[null,{"$f":"PlanifierJour","v":""},{"$f":"TotauxHeuresQuotidiennes","v":""}]
[null,{"$f":"PlanifierJour","v":""},{"$f":"TotauxHeuresQuotidiennes","v":""}]
[null,{"$f":"PlanifierJour","v":""},{"$f":"TotauxHeuresQuotidiennes","v":""}]
[null,{"$f":"PlanifierJour","v":""},{"$f":"TotauxHeuresQuotidiennes","v":""}]
[null,{"$f":"PlanifierJour","v":""},{"$f":"TotauxHeuresQuotidiennes","v":""}]
[null,{"$f":"PlanifierJour","v":""},{"$f":"TotauxHeuresQuotidiennes","v":""}]
[null,{"$f":"PlanifierJour","v":""},{"$f":"TotauxHeuresQuotidiennes","v":""}]
[null,{"$f":"PlanifierJour","v":""},{"$f":"TotauxHeuresQuotidiennes","v":""}]
[null,{"$f":"PlanifierJour","v":""},{"$f":"TotauxHeuresQuotidiennes","v":""}]
[null,{"$f":"PlanifierJour","v":""},{"$f":"TotauxHeuresQuotidiennes","v":""}]
[null,{"$f":"PlanifierJour","v":""},{"$f":"TotauxHeuresQuotidiennes","v":""}]
[null,{"$f":"PlanifierJour","v":""},{"$f":"TotauxHeuresQuotidiennes","v":""}]
[null,{"$f":"PlanifierJour","v":""},{"$f":"TotauxHeuresQuotidiennes","v":""}]
[null,{"$f":"PlanifierJour","v":""},{"$f":"TotauxHeuresQuotidiennes","v":""}]
[null,{"$f":"PlanifierJour","v":""},{"$f":"TotauxHeuresQuotidiennes","v":""}]
[null,{"$f":"PlanifierJour","v":""},{"$f":"TotauxHeuresQuotidiennes","v":""}]
[null,{"$f":"PlanifierJour","v":""},{"$f":"TotauxHeuresQuotidiennes","v":""}]
[null,{"$f":"PlanifierJour","v":""},{"$f":"TotauxHeuresQuotidiennes","v":""}]
[null,{"$f":"PlanifierJour","v":""},{"$f":"TotauxHeuresQuotidiennes","v":""}]
[null,{"$f":"PlanifierJour","v":""},{"$f":"TotauxHeuresQuotidiennes","v":""}]
[null,{"$f":"PlanifierJour","v":""},{"$f":"TotauxHeuresQuotidiennes","v":""}]
[null,{"$f":"PlanifierJour","v":""},{"$f":"TotauxHeuresQuotidiennes","v":""}]
[null,{"$f":"PlanifierJour","v":""},{"$f":"TotauxHeuresQuotidiennes","v":""}]
[null,{"$f":"PlanifierJour","v":""},{"$f":"TotauxHeuresQuotidiennes","v":""}]
[null,{"$f":"PlanifierJour","v":""},{"$f":"TotauxHeuresQuotidiennes","v":""}]
[null,{"$f":"PlanifierJour","v":""},{"$f":"TotauxHeuresQuotidiennes","v":""}]
[null,{"$f":"PlanifierJour","v":""},{"$f":"TotauxHeuresQuotidiennes","v":""}]
[null,{"$f":"PlanifierJour","v":""},{"$f":"TotauxHeuresQuotidiennes","v":""}]
[null,{"$f":"PlanifierJour","v":""},{"$f":"TotauxHeuresQuotidiennes","v":""}]
[null,{"$f":"PlanifierJour","v":""},{"$f":"TotauxHeuresQuotidiennes","v":""}]
[null,{"$f":"PlanifierJour","v":""},{"$f":"TotauxHeuresQuotidiennes","v":""}]
[null,{"$f":"PlanifierJour","v":""},{"$f":"TotauxHeuresQuotidiennes","v":""}]
[null,{"$f":"PlanifierJour","v":""},{"$f":"TotauxHeuresQuotidiennes","v":""}]
[null,{"$f":"PlanifierJour","v":""},{"$f":"TotauxHeuresQuotidiennes","v":""}]
[null,{"$f":"PlanifierJour","v":""},{"$f":"TotauxHeuresQuotidiennes","v":""}]
[null,{"$f":"PlanifierJour","v":""},{"$f":"TotauxHeuresQuotidiennes","v":""}]
[null,{"$f":"PlanifierJour","v":""},{"$f":"TotauxHeuresQuotidiennes","v":""}]
[null,{"$f":"PlanifierJour","v":""},{"$f":"TotauxHeuresQuotidiennes","v":""}]
[null,{"$f":"PlanifierJour","v":""},{"$f":"TotauxHeuresQuotidiennes","v":""}]
[null,{"$f":"PlanifierJour","v":""},{"$f":"TotauxHeuresQuotidiennes","v":""}]
[null,{"$f":"PlanifierJour","v":""},{"$f":"TotauxHeuresQuotidiennes","v":""}]
[null,{"$f":"PlanifierJour","v":""},{"$f":"TotauxHeuresQuotidiennes","v":""}]
[null,{"$f":"PlanifierJour","v":""},{"$f":"TotauxHeuresQuotidiennes","v":""}]
[null,{"$f":"PlanifierJour","v":""},{"$f":"TotauxHeuresQuotidiennes","v":""}]
[null,{"$f":"PlanifierJour","v":""},{"$f":"TotauxHeuresQuotidiennes","v":""}]
[null,{"$f":"PlanifierJour","v":""},{"$f":"TotauxHeuresQuotidiennes","v":""}]
[null,{"$f":"PlanifierJour","v":""},{"$f":"TotauxHeuresQuotidiennes","v":""}]
[null,{"$f":"PlanifierJour","v":""},{"$f":"TotauxHeuresQuotidiennes","v":""}]
[null,{"$f":"PlanifierJour","v":""},{"$f":"TotauxHeuresQuotidiennes","v":""}]
[null,{"$f":"PlanifierJour","v":""},{"$f":"TotauxHeuresQuotidiennes","v":""}]
[null,{"$f":"PlanifierJour","v":""},{"$f":"TotauxHeuresQuotidiennes","v":""}]
[null,{"$f":"PlanifierJour","v":""},{"$f":"TotauxHeuresQuotidiennes","v":""}]
[null,{"$f":"PlanifierJour","v":""},{"$f":"TotauxHeuresQuotidiennes","v":""}]
[null,{"$f":"PlanifierJour","v":""},{"$f":"TotauxHeuresQuotidiennes","v":""}]
[null,{"$f":"PlanifierJour","v":""},{"$f":"TotauxHeuresQuotidiennes","v":""}]
[null,{"$f":"PlanifierJour","v":""},{"$f":"TotauxHeuresQuotidiennes","v":""}]
[null,{"$f":"PlanifierJour","v":""},{"$f":"TotauxHeuresQuotidiennes","v":""}]
[null,{"$f":"PlanifierJour","v":""},{"$f":"TotauxHeuresQuotidiennes","v":""}]
[null,{"$f":"PlanifierJour","v":""},{"$f":"TotauxHeuresQuotidiennes","v":""}]
[null,{"$f":"PlanifierJour","v":""},{"$f":"TotauxHeuresQuotidiennes","v":""}]

{"sheet":"juin 13","index":15,"n_rows":103,"n_cols":24,"rows_kept":103,"cut":false,"hidden":false,"merged":[[21,13,22,14],[21,7,22,8],[31,14,32,14],[21,11,24,11],[21,5,22,5],[3,21,3,23],[6,8,7,8],[11,5,14,5],[16,8,17,8],[3,3,3,5],[3,6,3,8],[3,9,3,11],[3,12,3,14],[3,15,3,17],[3,18,3,20],[16,11,17,11],[16,5,17,5]]}
[]
[null,"Social networks"]
[]
[null,"Entrez la date de début","Totaux","Facebook Chambéry",null,null,"Twitter Chambéry",null,null,"FB Annecy",null,null,"Twitter Annecy",null,null,"Viadeo FS",null,null,"Linkedin FS",null,null,"FB Skyline"]
[null,"2016-06-13",null,null,null,"THEME",null,null,"THEME",null,null,"THEME",null,null,"THEME",null,null,"THEME",null,null,"THEME",null,null,"THEME"]
[]
[null,{"$f":"PlanifierJour","v":"2016-06-13"},{"$f":"TotauxHeuresQuotidiennes","v":2},1,null,"mandala",0,null,null,1,null,"rentrée 2016",0,null,null,1,1,"recrutement septembre",1,1,"fs savoies garde vos"]
[null,{"$f":"PlanifierJour","v":""},{"$f":"TotauxHeuresQuotidiennes","v":""},null,null,null,null,null,null,null,null,null,null,null,null,null,null,null,null,null,"enfants"]
[null,{"$f":"PlanifierJour","v":""},{"$f":"TotauxHeuresQuotidiennes","v":""}]
[null,{"$f":"PlanifierJour","v":""},{"$f":"TotauxHeuresQuotidiennes","v":""}]
[null,{"$f":"PlanifierJour","v":""},{"$f":"TotauxHeuresQuotidiennes","v":""}]
[null,{"$f":"PlanifierJour","v":"2016-06-14"},{"$f":"TotauxHeuresQuotidiennes","v":0},1,null,"fete des peres star wars",1,null,"offre d'emploi sept",1,null,"citation",1,null,"offre d'emploi alex"]
[null,{"$f":"PlanifierJour","v":""},{"$f":"TotauxHeuresQuotidiennes","v":""},null,null,null,null,null,null,null,null,"lire c'est rèver les "]
[null,{"$f":"PlanifierJour","v":""},{"$f":"TotauxHeuresQuotidiennes","v":""},null,null,null,null,null,null,null,null,"yeux ouverts"]
[null,{"$f":"PlanifierJour","v":""},{"$f":"TotauxHeuresQuotidiennes","v":""}]
[null,{"$f":"PlanifierJour","v":""},{"$f":"TotauxHeuresQuotidiennes","v":""}]
[null,{"$f":"PlanifierJour","v":"2016-06-15"},{"$f":"TotauxHeuresQuotidiennes","v":0},1,null,"Journée Mondiale de l'enfant Africain",null,null,null,null,null,"fete des peres star wars"]
[null,{"$f":"PlanifierJour","v":""},{"$f":"TotauxHeuresQuotidiennes","v":""}]
[null,{"$f":"PlanifierJour","v":""},{"$f":"TotauxHeuresQuotidiennes","v":""}]
[null,{"$f":"PlanifierJour","v":""},{"$f":"TotauxHeuresQuotidiennes","v":""}]
[null,{"$f":"PlanifierJour","v":""},{"$f":"TotauxHeuresQuotidiennes","v":""}]
[null,{"$f":"PlanifierJour","v":"2016-06-16"},{"$f":"TotauxHeuresQuotidiennes","v":0},1,null,"offre d'emploi chambéry",1,"Journée Mondiale de l'enfant Africain",null,1,null,"Journée Mondiale de l'enfant Africain",1,"Journée Mondiale de l'enfant Africain"]
[null,{"$f":"PlanifierJour","v":""},{"$f":"TotauxHeuresQuotidiennes","v":""}]
[null,{"$f":"PlanifierJour","v":""},{"$f":"TotauxHeuresQuotidiennes","v":""}]
[null,{"$f":"PlanifierJour","v":""},{"$f":"TotauxHeuresQuotidiennes","v":""}]
[null,{"$f":"PlanifierJour","v":""},{"$f":"TotauxHeuresQuotidiennes","v":""}]
[null,{"$f":"PlanifierJour","v":"2016-06-17"},{"$f":"TotauxHeuresQuotidiennes","v":0},1,null,"agenda",null,null,null,1,null,"offre d'emploi"]
[null,{"$f":"PlanifierJour","v":""},{"$f":"TotauxHeuresQuotidiennes","v":""}]
[null,{"$f":"PlanifierJour","v":""},{"$f":"TotauxHeuresQuotidiennes","v":""}]
[null,{"$f":"PlanifierJour","v":""},{"$f":"TotauxHeuresQuotidiennes","v":""}]
[null,{"$f":"PlanifierJour","v":""},{"$f":"TotauxHeuresQuotidiennes","v":""}]
[null,{"$f":"PlanifierJour","v":"2016-06-18"},{"$f":"TotauxHeuresQuotidiennes","v":1},1,null,"avantages fs",1,null,"relai merc et vacances",1,null,"avantages fs",1,null,"relai merc et vacances",1,1,"fs savoies garde vos"]
[null,{"$f":"PlanifierJour","v":""},{"$f":"TotauxHeuresQuotidiennes","v":""},null,null,null,null,null,null,null,null,null,null,null,null,null,null,"enfants"]
[null,{"$f":"PlanifierJour","v":""},{"$f":"TotauxHeuresQuotidiennes","v":""}]
[null,{"$f":"PlanifierJour","v":""},{"$f":"TotauxHeuresQuotidiennes","v":""}]
[null,{"$f":"PlanifierJour","v":""},{"$f":"TotauxHeuresQuotidiennes","v":""}]
[null,{"$f":"PlanifierJour","v":"2016-06-19"},{"$f":"TotauxHeuresQuotidiennes","v":0},1,null,"fete des peres",1,null,"fete des peres",1,null,"fete des peres",1,null,"fete des peres"]
[null,{"$f":"PlanifierJour","v":""},{"$f":"TotauxHeuresQuotidiennes","v":""}]
[null,{"$f":"PlanifierJour","v":""},{"$f":"TotauxHeuresQuotidiennes","v":""}]
[null,{"$f":"PlanifierJour","v":""},{"$f":"TotauxHeuresQuotidiennes","v":""}]
[null,{"$f":"PlanifierJour","v":""},{"$f":"TotauxHeuresQuotidiennes","v":""}]
[null,{"$f":"PlanifierJour","v":""},{"$f":"TotauxHeuresQuotidiennes","v":""}]
[null,{"$f":"PlanifierJour","v":""},{"$f":"TotauxHeuresQuotidiennes","v":""},null,null,"Réserve",null,null,"Journées internationales"]
[null,{"$f":"PlanifierJour","v":""},{"$f":"TotauxHeuresQuotidiennes","v":""}]
[null,{"$f":"PlanifierJour","v":""},{"$f":"TotauxHeuresQuotidiennes","v":""}]
[null,{"$f":"PlanifierJour","v":""},{"$f":"TotauxHeuresQuotidiennes","v":""}]
[null,{"$f":"PlanifierJour","v":""},{"$f":"TotauxHeuresQuotidiennes","v":""}]
[null,{"$f":"PlanifierJour","v":""},{"$f":"TotauxHeuresQuotidiennes","v":""}]
[null,{"$f":"PlanifierJour","v":""},{"$f":"TotauxHeuresQuotidiennes","v":""}]
[null,{"$f":"PlanifierJour","v":""},{"$f":"TotauxHeuresQuotidiennes","v":""}]
[null,{"$f":"PlanifierJour","v":""},{"$f":"TotauxHeuresQuotidiennes","v":""}]
[null,{"$f":"PlanifierJour","v":""},{"$f":"TotauxHeuresQuotidiennes","v":""}]
[null,{"$f":"PlanifierJour","v":""},{"$f":"TotauxHeuresQuotidiennes","v":""}]
[null,{"$f":"PlanifierJour","v":""},{"$f":"TotauxHeuresQuotidiennes","v":""}]
[null,{"$f":"PlanifierJour","v":""},{"$f":"TotauxHeuresQuotidiennes","v":""}]
[null,{"$f":"PlanifierJour","v":""},{"$f":"TotauxHeuresQuotidiennes","v":""}]
[null,{"$f":"PlanifierJour","v":""},{"$f":"TotauxHeuresQuotidiennes","v":""}]
[null,{"$f":"PlanifierJour","v":""},{"$f":"TotauxHeuresQuotidiennes","v":""}]
[null,{"$f":"PlanifierJour","v":""},{"$f":"TotauxHeuresQuotidiennes","v":""}]
[null,{"$f":"PlanifierJour","v":""},{"$f":"TotauxHeuresQuotidiennes","v":""}]
[null,{"$f":"PlanifierJour","v":""},{"$f":"TotauxHeuresQuotidiennes","v":""}]
[null,{"$f":"PlanifierJour","v":""},{"$f":"TotauxHeuresQuotidiennes","v":""}]
[null,{"$f":"PlanifierJour","v":""},{"$f":"TotauxHeuresQuotidiennes","v":""}]
[null,{"$f":"PlanifierJour","v":""},{"$f":"TotauxHeuresQuotidiennes","v":""}]
[null,{"$f":"PlanifierJour","v":""},{"$f":"TotauxHeuresQuotidiennes","v":""}]
[null,{"$f":"PlanifierJour","v":""},{"$f":"TotauxHeuresQuotidiennes","v":""}]
[null,{"$f":"PlanifierJour","v":""},{"$f":"TotauxHeuresQuotidiennes","v":""}]
[null,{"$f":"PlanifierJour","v":""},{"$f":"TotauxHeuresQuotidiennes","v":""}]
[null,{"$f":"PlanifierJour","v":""},{"$f":"TotauxHeuresQuotidiennes","v":""}]
[null,{"$f":"PlanifierJour","v":""},{"$f":"TotauxHeuresQuotidiennes","v":""}]
[null,{"$f":"PlanifierJour","v":""},{"$f":"TotauxHeuresQuotidiennes","v":""}]
[null,{"$f":"PlanifierJour","v":""},{"$f":"TotauxHeuresQuotidiennes","v":""}]
[null,{"$f":"PlanifierJour","v":""},{"$f":"TotauxHeuresQuotidiennes","v":""}]
[null,{"$f":"PlanifierJour","v":""},{"$f":"TotauxHeuresQuotidiennes","v":""}]
[null,{"$f":"PlanifierJour","v":""},{"$f":"TotauxHeuresQuotidiennes","v":""}]
[null,{"$f":"PlanifierJour","v":""},{"$f":"TotauxHeuresQuotidiennes","v":""}]
[null,{"$f":"PlanifierJour","v":""},{"$f":"TotauxHeuresQuotidiennes","v":""}]
[null,{"$f":"PlanifierJour","v":""},{"$f":"TotauxHeuresQuotidiennes","v":""}]
[null,{"$f":"PlanifierJour","v":""},{"$f":"TotauxHeuresQuotidiennes","v":""}]
[null,{"$f":"PlanifierJour","v":""},{"$f":"TotauxHeuresQuotidiennes","v":""}]
[null,{"$f":"PlanifierJour","v":""},{"$f":"TotauxHeuresQuotidiennes","v":""}]
[null,{"$f":"PlanifierJour","v":""},{"$f":"TotauxHeuresQuotidiennes","v":""}]
[null,{"$f":"PlanifierJour","v":""},{"$f":"TotauxHeuresQuotidiennes","v":""}]
[null,{"$f":"PlanifierJour","v":""},{"$f":"TotauxHeuresQuotidiennes","v":""}]
[null,{"$f":"PlanifierJour","v":""},{"$f":"TotauxHeuresQuotidiennes","v":""}]
[null,{"$f":"PlanifierJour","v":""},{"$f":"TotauxHeuresQuotidiennes","v":""}]
[null,{"$f":"PlanifierJour","v":""},{"$f":"TotauxHeuresQuotidiennes","v":""}]
[null,{"$f":"PlanifierJour","v":""},{"$f":"TotauxHeuresQuotidiennes","v":""}]
[null,{"$f":"PlanifierJour","v":""},{"$f":"TotauxHeuresQuotidiennes","v":""}]
[null,{"$f":"PlanifierJour","v":""},{"$f":"TotauxHeuresQuotidiennes","v":""}]
[null,{"$f":"PlanifierJour","v":""},{"$f":"TotauxHeuresQuotidiennes","v":""}]
[null,{"$f":"PlanifierJour","v":""},{"$f":"TotauxHeuresQuotidiennes","v":""}]
[null,{"$f":"PlanifierJour","v":""},{"$f":"TotauxHeuresQuotidiennes","v":""}]
[null,{"$f":"PlanifierJour","v":""},{"$f":"TotauxHeuresQuotidiennes","v":""}]
[null,{"$f":"PlanifierJour","v":""},{"$f":"TotauxHeuresQuotidiennes","v":""}]
[null,{"$f":"PlanifierJour","v":""},{"$f":"TotauxHeuresQuotidiennes","v":""}]
[null,{"$f":"PlanifierJour","v":""},{"$f":"TotauxHeuresQuotidiennes","v":""}]
[null,{"$f":"PlanifierJour","v":""},{"$f":"TotauxHeuresQuotidiennes","v":""}]
[null,{"$f":"PlanifierJour","v":""},{"$f":"TotauxHeuresQuotidiennes","v":""}]
[null,{"$f":"PlanifierJour","v":""},{"$f":"TotauxHeuresQuotidiennes","v":""}]
[null,{"$f":"PlanifierJour","v":""},{"$f":"TotauxHeuresQuotidiennes","v":""}]
[null,{"$f":"PlanifierJour","v":""},{"$f":"TotauxHeuresQuotidiennes","v":""}]
[null,{"$f":"PlanifierJour","v":""},{"$f":"TotauxHeuresQuotidiennes","v":""}]

{"sheet":"juin 20","index":16,"n_rows":103,"n_cols":24,"rows_kept":103,"cut":false,"hidden":false,"merged":[[21,13,22,14],[31,14,32,14],[11,5,12,5],[11,8,12,8],[21,11,22,11],[17,14,18,14],[3,21,3,23],[6,8,7,8],[17,8,18,8],[3,3,3,5],[3,6,3,8],[3,9,3,11],[3,12,3,14],[3,15,3,17],[3,18,3,20]]}
[]
[null,"Social networks"]
[]
[null,"Entrez la date de début","Totaux","Facebook Chambéry",null,null,"Twitter Chambéry",null,null,"FB Annecy",null,null,"Twitter Annecy",null,null,"Viadeo FS",null,null,"Linkedin FS",null,null,"FB Skyline"]
[null,"2016-06-20",null,null,null,"THEME",null,null,"THEME",null,null,"THEME",null,null,"THEME",null,null,"THEME",null,null,"THEME",null,null,"THEME"]
[]
[null,{"$f":"PlanifierJour","v":"2016-06-20"},{"$f":"TotauxHeuresQuotidiennes","v":0},1,null,"mandala",0,null,null,1,null,"garde d’enfants en",0,null,null,0,null,null,0]
[null,{"$f":"PlanifierJour","v":""},{"$f":"TotauxHeuresQuotidiennes","v":""},null,null,null,null,null,null,null,null,"situation de handicap"]
[null,{"$f":"PlanifierJour","v":""},{"$f":"TotauxHeuresQuotidiennes","v":""}]
[null,{"$f":"PlanifierJour","v":""},{"$f":"TotauxHeuresQuotidiennes","v":""}]
[null,{"$f":"PlanifierJour","v":""},{"$f":"TotauxHeuresQuotidiennes","v":""}]
[null,{"$f":"PlanifierJour","v":"2016-06-21"},{"$f":"TotauxHeuresQuotidiennes","v":0},1,null,"velouté de petits pois au citron",1,null,"recrutement",1,null,"gateau garni",1,null,"recrutement"]
[null,{"$f":"PlanifierJour","v":""},{"$f":"TotauxHeuresQuotidiennes","v":""},0]
[null,{"$f":"PlanifierJour","v":""},{"$f":"TotauxHeuresQuotidiennes","v":""}]
[null,{"$f":"PlanifierJour","v":""},{"$f":"TotauxHeuresQuotidiennes","v":""}]
[null,{"$f":"PlanifierJour","v":""},{"$f":"TotauxHeuresQuotidiennes","v":""}]
[null,{"$f":"PlanifierJour","v":"2016-06-22"},{"$f":"TotauxHeuresQuotidiennes","v":0},1,null,"Offre d'emploi",1,null,"garde d'enfants",1,null,"Offre d'emploi",1,null,"garde d'enfants"]
[null,{"$f":"PlanifierJour","v":""},{"$f":"TotauxHeuresQuotidiennes","v":""},null,null,"chambéry",null,null,"habit/travail Ann ou cham",null,null,"rentrée 2016",null,null,"habit/travail Ann ou cham"]
[null,{"$f":"PlanifierJour","v":""},{"$f":"TotauxHeuresQuotidiennes","v":""}]
[null,{"$f":"PlanifierJour","v":""},{"$f":"TotauxHeuresQuotidiennes","v":""}]
[null,{"$f":"PlanifierJour","v":""},{"$f":"TotauxHeuresQuotidiennes","v":""}]
[null,{"$f":"PlanifierJour","v":"2016-06-23"},{"$f":"TotauxHeuresQuotidiennes","v":0},1,null,"vidéo",0,null,null,1,null,"La citation du jeudi",0]
[null,{"$f":"PlanifierJour","v":""},{"$f":"TotauxHeuresQuotidiennes","v":""},null,null,"j'ai 6 ans, handicapé ",null,null,null,0]
[null,{"$f":"PlanifierJour","v":""},{"$f":"TotauxHeuresQuotidiennes","v":""},null,null,"et je vais à l'école",null,null,null,null,null,"aimer c'est…"]
[null,{"$f":"PlanifierJour","v":""},{"$f":"TotauxHeuresQuotidiennes","v":""}]
[null,{"$f":"PlanifierJour","v":""},{"$f":"TotauxHeuresQuotidiennes","v":""}]
[null,{"$f":"PlanifierJour","v":"2016-06-24"},{"$f":"TotauxHeuresQuotidiennes","v":0},1,null,"fete de la montagne",1,null,"mandalas",1,null,"Agenda",1,null,"citation"]
[null,{"$f":"PlanifierJour","v":""},{"$f":"TotauxHeuresQuotidiennes","v":""},null,null,null,null,null,null,null,null,"prêt d'œuvres d'art."]
[null,{"$f":"PlanifierJour","v":""},{"$f":"TotauxHeuresQuotidiennes","v":""}]
[null,{"$f":"PlanifierJour","v":""},{"$f":"TotauxHeuresQuotidiennes","v":""}]
[null,{"$f":"PlanifierJour","v":""},{"$f":"TotauxHeuresQuotidiennes","v":""}]
[null,{"$f":"PlanifierJour","v":"2016-06-25"},{"$f":"TotauxHeuresQuotidiennes","v":0},1,null,"étudiants",1,null,"promo FS",1,null,"Prestations FS",1,null,"recherche nounoun doussard",0]
[null,{"$f":"PlanifierJour","v":""},{"$f":"TotauxHeuresQuotidiennes","v":""},null,null,"souad témoignages",null,null,null,null,null,"valeurs"]
[null,{"$f":"PlanifierJour","v":""},{"$f":"TotauxHeuresQuotidiennes","v":""}]
[null,{"$f":"PlanifierJour","v":""},{"$f":"TotauxHeuresQuotidiennes","v":""}]
[null,{"$f":"PlanifierJour","v":""},{"$f":"TotauxHeuresQuotidiennes","v":""}]
[null,{"$f":"PlanifierJour","v":"2016-06-26"},{"$f":"TotauxHeuresQuotidiennes","v":0},1,null,"papillon",1,null,"recrutement rentrée",1,null,"vidéo apprendre à",1,null,"recrutement 20 nounous"]
[null,{"$f":"PlanifierJour","v":""},{"$f":"TotauxHeuresQuotidiennes","v":""},null,null,null,null,null,"2016 handicap",null,null,"connaitre les animaux.",null,null,"rentrée annecy"]
[null,{"$f":"PlanifierJour","v":""},{"$f":"TotauxHeuresQuotidiennes","v":""}]
[null,{"$f":"PlanifierJour","v":""},{"$f":"TotauxHeuresQuotidiennes","v":""}]
[null,{"$f":"PlanifierJour","v":""},{"$f":"TotauxHeuresQuotidiennes","v":""}]
[null,{"$f":"PlanifierJour","v":""},{"$f":"TotauxHeuresQuotidiennes","v":""}]
[null,{"$f":"PlanifierJour","v":""},{"$f":"TotauxHeuresQuotidiennes","v":""},null,null,"Réserve",null,null,"Journées internationales"]
[null,{"$f":"PlanifierJour","v":""},{"$f":"TotauxHeuresQuotidiennes","v":""}]
[null,{"$f":"PlanifierJour","v":""},{"$f":"TotauxHeuresQuotidiennes","v":""}]
[null,{"$f":"PlanifierJour","v":""},{"$f":"TotauxHeuresQuotidiennes","v":""}]
[null,{"$f":"PlanifierJour","v":""},{"$f":"TotauxHeuresQuotidiennes","v":""}]
[null,{"$f":"PlanifierJour","v":""},{"$f":"TotauxHeuresQuotidiennes","v":""}]
[null,{"$f":"PlanifierJour","v":""},{"$f":"TotauxHeuresQuotidiennes","v":""}]
[null,{"$f":"PlanifierJour","v":""},{"$f":"TotauxHeuresQuotidiennes","v":""}]
[null,{"$f":"PlanifierJour","v":""},{"$f":"TotauxHeuresQuotidiennes","v":""}]
[null,{"$f":"PlanifierJour","v":""},{"$f":"TotauxHeuresQuotidiennes","v":""}]
[null,{"$f":"PlanifierJour","v":""},{"$f":"TotauxHeuresQuotidiennes","v":""}]
[null,{"$f":"PlanifierJour","v":""},{"$f":"TotauxHeuresQuotidiennes","v":""}]
[null,{"$f":"PlanifierJour","v":""},{"$f":"TotauxHeuresQuotidiennes","v":""}]
[null,{"$f":"PlanifierJour","v":""},{"$f":"TotauxHeuresQuotidiennes","v":""}]
[null,{"$f":"PlanifierJour","v":""},{"$f":"TotauxHeuresQuotidiennes","v":""}]
[null,{"$f":"PlanifierJour","v":""},{"$f":"TotauxHeuresQuotidiennes","v":""}]
[null,{"$f":"PlanifierJour","v":""},{"$f":"TotauxHeuresQuotidiennes","v":""}]
[null,{"$f":"PlanifierJour","v":""},{"$f":"TotauxHeuresQuotidiennes","v":""}]
[null,{"$f":"PlanifierJour","v":""},{"$f":"TotauxHeuresQuotidiennes","v":""}]
[null,{"$f":"PlanifierJour","v":""},{"$f":"TotauxHeuresQuotidiennes","v":""}]
[null,{"$f":"PlanifierJour","v":""},{"$f":"TotauxHeuresQuotidiennes","v":""}]
[null,{"$f":"PlanifierJour","v":""},{"$f":"TotauxHeuresQuotidiennes","v":""}]
[null,{"$f":"PlanifierJour","v":""},{"$f":"TotauxHeuresQuotidiennes","v":""}]
[null,{"$f":"PlanifierJour","v":""},{"$f":"TotauxHeuresQuotidiennes","v":""}]
[null,{"$f":"PlanifierJour","v":""},{"$f":"TotauxHeuresQuotidiennes","v":""}]
[null,{"$f":"PlanifierJour","v":""},{"$f":"TotauxHeuresQuotidiennes","v":""}]
[null,{"$f":"PlanifierJour","v":""},{"$f":"TotauxHeuresQuotidiennes","v":""}]
[null,{"$f":"PlanifierJour","v":""},{"$f":"TotauxHeuresQuotidiennes","v":""}]
[null,{"$f":"PlanifierJour","v":""},{"$f":"TotauxHeuresQuotidiennes","v":""}]
[null,{"$f":"PlanifierJour","v":""},{"$f":"TotauxHeuresQuotidiennes","v":""}]
[null,{"$f":"PlanifierJour","v":""},{"$f":"TotauxHeuresQuotidiennes","v":""}]
[null,{"$f":"PlanifierJour","v":""},{"$f":"TotauxHeuresQuotidiennes","v":""}]
[null,{"$f":"PlanifierJour","v":""},{"$f":"TotauxHeuresQuotidiennes","v":""}]
[null,{"$f":"PlanifierJour","v":""},{"$f":"TotauxHeuresQuotidiennes","v":""}]
[null,{"$f":"PlanifierJour","v":""},{"$f":"TotauxHeuresQuotidiennes","v":""}]
[null,{"$f":"PlanifierJour","v":""},{"$f":"TotauxHeuresQuotidiennes","v":""}]
[null,{"$f":"PlanifierJour","v":""},{"$f":"TotauxHeuresQuotidiennes","v":""}]
[null,{"$f":"PlanifierJour","v":""},{"$f":"TotauxHeuresQuotidiennes","v":""}]
[null,{"$f":"PlanifierJour","v":""},{"$f":"TotauxHeuresQuotidiennes","v":""}]
[null,{"$f":"PlanifierJour","v":""},{"$f":"TotauxHeuresQuotidiennes","v":""}]
[null,{"$f":"PlanifierJour","v":""},{"$f":"TotauxHeuresQuotidiennes","v":""}]
[null,{"$f":"PlanifierJour","v":""},{"$f":"TotauxHeuresQuotidiennes","v":""}]
[null,{"$f":"PlanifierJour","v":""},{"$f":"TotauxHeuresQuotidiennes","v":""}]
[null,{"$f":"PlanifierJour","v":""},{"$f":"TotauxHeuresQuotidiennes","v":""}]
[null,{"$f":"PlanifierJour","v":""},{"$f":"TotauxHeuresQuotidiennes","v":""}]
[null,{"$f":"PlanifierJour","v":""},{"$f":"TotauxHeuresQuotidiennes","v":""}]
[null,{"$f":"PlanifierJour","v":""},{"$f":"TotauxHeuresQuotidiennes","v":""}]
[null,{"$f":"PlanifierJour","v":""},{"$f":"TotauxHeuresQuotidiennes","v":""}]
[null,{"$f":"PlanifierJour","v":""},{"$f":"TotauxHeuresQuotidiennes","v":""}]
[null,{"$f":"PlanifierJour","v":""},{"$f":"TotauxHeuresQuotidiennes","v":""}]
[null,{"$f":"PlanifierJour","v":""},{"$f":"TotauxHeuresQuotidiennes","v":""}]
[null,{"$f":"PlanifierJour","v":""},{"$f":"TotauxHeuresQuotidiennes","v":""}]
[null,{"$f":"PlanifierJour","v":""},{"$f":"TotauxHeuresQuotidiennes","v":""}]
[null,{"$f":"PlanifierJour","v":""},{"$f":"TotauxHeuresQuotidiennes","v":""}]
[null,{"$f":"PlanifierJour","v":""},{"$f":"TotauxHeuresQuotidiennes","v":""}]
[null,{"$f":"PlanifierJour","v":""},{"$f":"TotauxHeuresQuotidiennes","v":""}]
[null,{"$f":"PlanifierJour","v":""},{"$f":"TotauxHeuresQuotidiennes","v":""}]
[null,{"$f":"PlanifierJour","v":""},{"$f":"TotauxHeuresQuotidiennes","v":""}]
[null,{"$f":"PlanifierJour","v":""},{"$f":"TotauxHeuresQuotidiennes","v":""}]
[null,{"$f":"PlanifierJour","v":""},{"$f":"TotauxHeuresQuotidiennes","v":""}]
[null,{"$f":"PlanifierJour","v":""},{"$f":"TotauxHeuresQuotidiennes","v":""}]

{"sheet":"juin 27","index":17,"n_rows":103,"n_cols":24,"rows_kept":103,"cut":false,"hidden":false,"merged":[[21,11,22,11],[3,21,3,23],[6,5,9,5],[6,8,7,8],[11,5,12,5],[11,8,12,8],[11,13,11,14],[3,3,3,5],[3,6,3,8],[3,9,3,11],[3,12,3,14],[3,15,3,17],[3,18,3,20]]}
[]
[null,"Social networks"]
[]
[null,"Entrez la date de début","Totaux","Facebook Chambéry",null,null,"Twitter Chambéry",null,null,"FB Annecy",null,null,"Twitter Annecy",null,null,"Viadeo FS",null,null,"Linkedin FS",null,null,"FB Skyline"]
[null,"2016-06-27",null,null,null,"THEME",null,null,"THEME",null,null,"THEME",null,null,"THEME",null,null,"THEME",null,null,"THEME",null,null,"THEME"]
[]
[null,{"$f":"PlanifierJour","v":"2016-06-27"},{"$f":"TotauxHeuresQuotidiennes","v":0},1,null,"windows 10 handicap",0,null,null,1,null,"offre d'emploi doussard",0,null,null,null,null,null,0]
[null,{"$f":"PlanifierJour","v":""},{"$f":"TotauxHeuresQuotidiennes","v":""}]
[null,{"$f":"PlanifierJour","v":""},{"$f":"TotauxHeuresQuotidiennes","v":""}]
[null,{"$f":"PlanifierJour","v":""},{"$f":"TotauxHeuresQuotidiennes","v":""}]
[null,{"$f":"PlanifierJour","v":""},{"$f":"TotauxHeuresQuotidiennes","v":""}]
[null,{"$f":"PlanifierJour","v":"2016-06-28"},{"$f":"TotauxHeuresQuotidiennes","v":0},1,null,"alternative",1,null,"alternative",1,null,"espace extérieur",1,"Caf et aides de l'état"]
[null,{"$f":"PlanifierJour","v":""},{"$f":"TotauxHeuresQuotidiennes","v":""}]
[null,{"$f":"PlanifierJour","v":""},{"$f":"TotauxHeuresQuotidiennes","v":""},null,null,"punition",null,null,"punition"]
[null,{"$f":"PlanifierJour","v":""},{"$f":"TotauxHeuresQuotidiennes","v":""}]
[null,{"$f":"PlanifierJour","v":""},{"$f":"TotauxHeuresQuotidiennes","v":""}]
[null,{"$f":"PlanifierJour","v":"2016-06-29"},{"$f":"TotauxHeuresQuotidiennes","v":0},1,null,"Offre d'emploi",1,null,"recherche personnes",1,null,"Offre d'emploi",0]
[null,{"$f":"PlanifierJour","v":""},{"$f":"TotauxHeuresQuotidiennes","v":""},null,null,"chambéry",null,null,"rentrée 2016",null,null,"rentrée 2016"]
[null,{"$f":"PlanifierJour","v":""},{"$f":"TotauxHeuresQuotidiennes","v":""}]
[null,{"$f":"PlanifierJour","v":""},{"$f":"TotauxHeuresQuotidiennes","v":""}]
[null,{"$f":"PlanifierJour","v":""},{"$f":"TotauxHeuresQuotidiennes","v":""}]
[null,{"$f":"PlanifierJour","v":"2016-06-30"},{"$f":"TotauxHeuresQuotidiennes","v":0},1,null,"piccolo et saxo",0,null,null,1,null,"windows 10 handicap",1,null,"Offre d'emploi"]
[null,{"$f":"PlanifierJour","v":""},{"$f":"TotauxHeuresQuotidiennes","v":""},null,null,"1 ère partie",null,null,null,null,null,null,null,null,"rentrée 2016"]
[null,{"$f":"PlanifierJour","v":""},{"$f":"TotauxHeuresQuotidiennes","v":""}]
[null,{"$f":"PlanifierJour","v":""},{"$f":"TotauxHeuresQuotidiennes","v":""}]
[null,{"$f":"PlanifierJour","v":""},{"$f":"TotauxHeuresQuotidiennes","v":""}]
[null,{"$f":"PlanifierJour","v":"2016-07-01"},{"$f":"TotauxHeuresQuotidiennes","v":0},1,null,"family sphere souhaite",1,null,"Caf et aides",1,null,"family sphere souhaite"]
[null,{"$f":"PlanifierJour","v":""},{"$f":"TotauxHeuresQuotidiennes","v":""},null,null,"de bonnes vacances",null,null,null,null,null,"de bonnes vacances"]
[null,{"$f":"PlanifierJour","v":""},{"$f":"TotauxHeuresQuotidiennes","v":""}]
[null,{"$f":"PlanifierJour","v":""},{"$f":"TotauxHeuresQuotidiennes","v":""}]
[null,{"$f":"PlanifierJour","v":""},{"$f":"TotauxHeuresQuotidiennes","v":""}]
[null,{"$f":"PlanifierJour","v":"2016-07-02"},{"$f":"TotauxHeuresQuotidiennes","v":0},1,null,"découvrir Familysphere",1,null,"solution de garde ",1,null,"familysphere a et c ",1,null,"solution de garde ",0]
[null,{"$f":"PlanifierJour","v":""},{"$f":"TotauxHeuresQuotidiennes","v":""},null,null,null,null,null,"rentrée 2016.",null,null,"sont liés",null,null,"rentrée 2016."]
[null,{"$f":"PlanifierJour","v":""},{"$f":"TotauxHeuresQuotidiennes","v":""}]
[null,{"$f":"PlanifierJour","v":""},{"$f":"TotauxHeuresQuotidiennes","v":""}]
[null,{"$f":"PlanifierJour","v":""},{"$f":"TotauxHeuresQuotidiennes","v":""}]
[null,{"$f":"PlanifierJour","v":"2016-07-03"},{"$f":"TotauxHeuresQuotidiennes","v":0},1,null,"familysphere a et c ",1,null,"family sphere souhaite",1,null,"découvrir Familysphere",1,null,"family sphere souhaite"]
[null,{"$f":"PlanifierJour","v":""},{"$f":"TotauxHeuresQuotidiennes","v":""},null,null,"sont liés",null,null,"de bonnes vacances",null,null,null,null,null,"de bonnes vacances"]
[null,{"$f":"PlanifierJour","v":""},{"$f":"TotauxHeuresQuotidiennes","v":""}]
[null,{"$f":"PlanifierJour","v":""},{"$f":"TotauxHeuresQuotidiennes","v":""}]
[null,{"$f":"PlanifierJour","v":""},{"$f":"TotauxHeuresQuotidiennes","v":""}]
[null,{"$f":"PlanifierJour","v":""},{"$f":"TotauxHeuresQuotidiennes","v":""}]
[null,{"$f":"PlanifierJour","v":""},{"$f":"TotauxHeuresQuotidiennes","v":""},null,null,"Réserve",null,null,"Journées internationales"]
[null,{"$f":"PlanifierJour","v":""},{"$f":"TotauxHeuresQuotidiennes","v":""}]
[null,{"$f":"PlanifierJour","v":""},{"$f":"TotauxHeuresQuotidiennes","v":""}]
[null,{"$f":"PlanifierJour","v":""},{"$f":"TotauxHeuresQuotidiennes","v":""}]
[null,{"$f":"PlanifierJour","v":""},{"$f":"TotauxHeuresQuotidiennes","v":""}]
[null,{"$f":"PlanifierJour","v":""},{"$f":"TotauxHeuresQuotidiennes","v":""}]
[null,{"$f":"PlanifierJour","v":""},{"$f":"TotauxHeuresQuotidiennes","v":""}]
[null,{"$f":"PlanifierJour","v":""},{"$f":"TotauxHeuresQuotidiennes","v":""}]
[null,{"$f":"PlanifierJour","v":""},{"$f":"TotauxHeuresQuotidiennes","v":""}]
[null,{"$f":"PlanifierJour","v":""},{"$f":"TotauxHeuresQuotidiennes","v":""}]
[null,{"$f":"PlanifierJour","v":""},{"$f":"TotauxHeuresQuotidiennes","v":""}]
[null,{"$f":"PlanifierJour","v":""},{"$f":"TotauxHeuresQuotidiennes","v":""}]
[null,{"$f":"PlanifierJour","v":""},{"$f":"TotauxHeuresQuotidiennes","v":""}]
[null,{"$f":"PlanifierJour","v":""},{"$f":"TotauxHeuresQuotidiennes","v":""}]
[null,{"$f":"PlanifierJour","v":""},{"$f":"TotauxHeuresQuotidiennes","v":""}]
[null,{"$f":"PlanifierJour","v":""},{"$f":"TotauxHeuresQuotidiennes","v":""}]
[null,{"$f":"PlanifierJour","v":""},{"$f":"TotauxHeuresQuotidiennes","v":""}]
[null,{"$f":"PlanifierJour","v":""},{"$f":"TotauxHeuresQuotidiennes","v":""}]
[null,{"$f":"PlanifierJour","v":""},{"$f":"TotauxHeuresQuotidiennes","v":""}]
[null,{"$f":"PlanifierJour","v":""},{"$f":"TotauxHeuresQuotidiennes","v":""}]
[null,{"$f":"PlanifierJour","v":""},{"$f":"TotauxHeuresQuotidiennes","v":""}]
[null,{"$f":"PlanifierJour","v":""},{"$f":"TotauxHeuresQuotidiennes","v":""}]
[null,{"$f":"PlanifierJour","v":""},{"$f":"TotauxHeuresQuotidiennes","v":""}]
[null,{"$f":"PlanifierJour","v":""},{"$f":"TotauxHeuresQuotidiennes","v":""}]
[null,{"$f":"PlanifierJour","v":""},{"$f":"TotauxHeuresQuotidiennes","v":""}]
[null,{"$f":"PlanifierJour","v":""},{"$f":"TotauxHeuresQuotidiennes","v":""}]
[null,{"$f":"PlanifierJour","v":""},{"$f":"TotauxHeuresQuotidiennes","v":""}]
[null,{"$f":"PlanifierJour","v":""},{"$f":"TotauxHeuresQuotidiennes","v":""}]
[null,{"$f":"PlanifierJour","v":""},{"$f":"TotauxHeuresQuotidiennes","v":""}]
[null,{"$f":"PlanifierJour","v":""},{"$f":"TotauxHeuresQuotidiennes","v":""}]
[null,{"$f":"PlanifierJour","v":""},{"$f":"TotauxHeuresQuotidiennes","v":""}]
[null,{"$f":"PlanifierJour","v":""},{"$f":"TotauxHeuresQuotidiennes","v":""}]
[null,{"$f":"PlanifierJour","v":""},{"$f":"TotauxHeuresQuotidiennes","v":""}]
[null,{"$f":"PlanifierJour","v":""},{"$f":"TotauxHeuresQuotidiennes","v":""}]
[null,{"$f":"PlanifierJour","v":""},{"$f":"TotauxHeuresQuotidiennes","v":""}]
[null,{"$f":"PlanifierJour","v":""},{"$f":"TotauxHeuresQuotidiennes","v":""}]
[null,{"$f":"PlanifierJour","v":""},{"$f":"TotauxHeuresQuotidiennes","v":""}]
[null,{"$f":"PlanifierJour","v":""},{"$f":"TotauxHeuresQuotidiennes","v":""}]
[null,{"$f":"PlanifierJour","v":""},{"$f":"TotauxHeuresQuotidiennes","v":""}]
[null,{"$f":"PlanifierJour","v":""},{"$f":"TotauxHeuresQuotidiennes","v":""}]
[null,{"$f":"PlanifierJour","v":""},{"$f":"TotauxHeuresQuotidiennes","v":""}]
[null,{"$f":"PlanifierJour","v":""},{"$f":"TotauxHeuresQuotidiennes","v":""}]
[null,{"$f":"PlanifierJour","v":""},{"$f":"TotauxHeuresQuotidiennes","v":""}]
[null,{"$f":"PlanifierJour","v":""},{"$f":"TotauxHeuresQuotidiennes","v":""}]
[null,{"$f":"PlanifierJour","v":""},{"$f":"TotauxHeuresQuotidiennes","v":""}]
[null,{"$f":"PlanifierJour","v":""},{"$f":"TotauxHeuresQuotidiennes","v":""}]
[null,{"$f":"PlanifierJour","v":""},{"$f":"TotauxHeuresQuotidiennes","v":""}]
[null,{"$f":"PlanifierJour","v":""},{"$f":"TotauxHeuresQuotidiennes","v":""}]
[null,{"$f":"PlanifierJour","v":""},{"$f":"TotauxHeuresQuotidiennes","v":""}]
[null,{"$f":"PlanifierJour","v":""},{"$f":"TotauxHeuresQuotidiennes","v":""}]
[null,{"$f":"PlanifierJour","v":""},{"$f":"TotauxHeuresQuotidiennes","v":""}]
[null,{"$f":"PlanifierJour","v":""},{"$f":"TotauxHeuresQuotidiennes","v":""}]
[null,{"$f":"PlanifierJour","v":""},{"$f":"TotauxHeuresQuotidiennes","v":""}]
[null,{"$f":"PlanifierJour","v":""},{"$f":"TotauxHeuresQuotidiennes","v":""}]
[null,{"$f":"PlanifierJour","v":""},{"$f":"TotauxHeuresQuotidiennes","v":""}]
[null,{"$f":"PlanifierJour","v":""},{"$f":"TotauxHeuresQuotidiennes","v":""}]
[null,{"$f":"PlanifierJour","v":""},{"$f":"TotauxHeuresQuotidiennes","v":""}]
[null,{"$f":"PlanifierJour","v":""},{"$f":"TotauxHeuresQuotidiennes","v":""}]
[null,{"$f":"PlanifierJour","v":""},{"$f":"TotauxHeuresQuotidiennes","v":""}]
[null,{"$f":"PlanifierJour","v":""},{"$f":"TotauxHeuresQuotidiennes","v":""}]
[null,{"$f":"PlanifierJour","v":""},{"$f":"TotauxHeuresQuotidiennes","v":""}]

{"sheet":"Juillet 4","index":18,"n_rows":103,"n_cols":24,"rows_kept":103,"cut":false,"hidden":false,"merged":[[21,11,22,11],[26,11,27,11],[26,14,27,14],[3,21,3,23],[6,5,9,5],[6,8,7,8],[16,8,17,8],[11,13,11,14],[6,20,6,21],[3,3,3,5],[3,6,3,8],[3,9,3,11],[3,12,3,14],[3,15,3,17],[3,18,3,20],[16,11,20,11]]}
[]
[null,"Social networks"]
[]
[null,"Entrez la date de début","Totaux","Facebook Chambéry",null,null,"Twitter Chambéry",null,null,"FB Annecy",null,null,"Twitter Annecy",null,null,"Viadeo FS",null,null,"Linkedin FS",null,null,"FB Skyline"]
[null,"2016-07-04",null,null,null,"THEME",null,null,"THEME",null,null,"THEME",null,null,"THEME",null,null,"THEME",null,null,"THEME",null,null,"THEME"]
[]
[null,{"$f":"PlanifierJour","v":"2016-07-04"},{"$f":"TotauxHeuresQuotidiennes","v":0},0,null,"La citation du lundi",0,null,null,0,null,"Astuces",0,null,null,null,null,null,0]
[null,{"$f":"PlanifierJour","v":""},{"$f":"TotauxHeuresQuotidiennes","v":""}]
[null,{"$f":"PlanifierJour","v":""},{"$f":"TotauxHeuresQuotidiennes","v":""}]
[null,{"$f":"PlanifierJour","v":""},{"$f":"TotauxHeuresQuotidiennes","v":""}]
[null,{"$f":"PlanifierJour","v":""},{"$f":"TotauxHeuresQuotidiennes","v":""}]
[null,{"$f":"PlanifierJour","v":"2016-07-05"},{"$f":"TotauxHeuresQuotidiennes","v":0},1,null,"publication rentrée",1,null,"vacances",1,null,"publication rentrée",1,"vacances",null,1,null,"acueille vacances",1,null,"étudiante"]
[null,{"$f":"PlanifierJour","v":""},{"$f":"TotauxHeuresQuotidiennes","v":""},null,null,2016,null,null,null,null,null,2016]
[null,{"$f":"PlanifierJour","v":""},{"$f":"TotauxHeuresQuotidiennes","v":""},null,null,"mise en avant.",null,null,null,null,null,"mise en avant."]
[null,{"$f":"PlanifierJour","v":""},{"$f":"TotauxHeuresQuotidiennes","v":""}]
[null,{"$f":"PlanifierJour","v":""},{"$f":"TotauxHeuresQuotidiennes","v":""}]
[null,{"$f":"PlanifierJour","v":"2016-07-06"},{"$f":"TotauxHeuresQuotidiennes","v":0},1,null,null,1,null,"windows 10 handicap",1,null,"Offre d'emploi annecy",0]
[null,{"$f":"PlanifierJour","v":""},{"$f":"TotauxHeuresQuotidiennes","v":""},null,null,"sortie de fin d'année"]
[null,{"$f":"PlanifierJour","v":""},{"$f":"TotauxHeuresQuotidiennes","v":""},null,null,"Chambéry"]
[null,{"$f":"PlanifierJour","v":""},{"$f":"TotauxHeuresQuotidiennes","v":""}]
[null,{"$f":"PlanifierJour","v":""},{"$f":"TotauxHeuresQuotidiennes","v":""}]
[null,{"$f":"PlanifierJour","v":"2016-07-07"},{"$f":"TotauxHeuresQuotidiennes","v":0},1,null,"cham et annecy sont liés",1,null,"valeurs",1,null,"magazine pep's",1,null,"abri ext"]
[null,{"$f":"PlanifierJour","v":""},{"$f":"TotauxHeuresQuotidiennes","v":""}]
[null,{"$f":"PlanifierJour","v":""},{"$f":"TotauxHeuresQuotidiennes","v":""}]
[null,{"$f":"PlanifierJour","v":""},{"$f":"TotauxHeuresQuotidiennes","v":""}]
[null,{"$f":"PlanifierJour","v":""},{"$f":"TotauxHeuresQuotidiennes","v":""}]
[null,{"$f":"PlanifierJour","v":"2016-07-08"},{"$f":"TotauxHeuresQuotidiennes","v":0},1,null,"Agenda",0,null,null,1,null,"http://www.hautesavoiexperience.fr/",1,null,"windows 10 handicap"]
[null,{"$f":"PlanifierJour","v":""},{"$f":"TotauxHeuresQuotidiennes","v":""},null,null,"ciné belle étoile"]
[null,{"$f":"PlanifierJour","v":""},{"$f":"TotauxHeuresQuotidiennes","v":""}]
[null,{"$f":"PlanifierJour","v":""},{"$f":"TotauxHeuresQuotidiennes","v":""}]
[null,{"$f":"PlanifierJour","v":""},{"$f":"TotauxHeuresQuotidiennes","v":""}]
[null,{"$f":"PlanifierJour","v":"2016-07-09"},{"$f":"TotauxHeuresQuotidiennes","v":0},1,null,"recrutement la motte",1,null,"LA GARDE D'ENFANTS ET VOS IMPÔTS",1,null,"recrutement Annecy",1,null,"garde partagée",1,null,"temoignage étudiante"]
[null,{"$f":"PlanifierJour","v":""},{"$f":"TotauxHeuresQuotidiennes","v":""}]
[null,{"$f":"PlanifierJour","v":""},{"$f":"TotauxHeuresQuotidiennes","v":""}]
[null,{"$f":"PlanifierJour","v":""},{"$f":"TotauxHeuresQuotidiennes","v":""}]
[null,{"$f":"PlanifierJour","v":""},{"$f":"TotauxHeuresQuotidiennes","v":""}]
[null,{"$f":"PlanifierJour","v":"2016-07-10"},{"$f":"TotauxHeuresQuotidiennes","v":0},1,null,"magazine pep's",1,null,"dispo pendant vacances",1,null,"vote enfants assemblée",1,null,"alternative punition"]
[null,{"$f":"PlanifierJour","v":""},{"$f":"TotauxHeuresQuotidiennes","v":""}]
[null,{"$f":"PlanifierJour","v":""},{"$f":"TotauxHeuresQuotidiennes","v":""}]
[null,{"$f":"PlanifierJour","v":""},{"$f":"TotauxHeuresQuotidiennes","v":""}]
[null,{"$f":"PlanifierJour","v":""},{"$f":"TotauxHeuresQuotidiennes","v":""}]
[null,{"$f":"PlanifierJour","v":""},{"$f":"TotauxHeuresQuotidiennes","v":""}]
[null,{"$f":"PlanifierJour","v":""},{"$f":"TotauxHeuresQuotidiennes","v":""},null,null,"Réserve",null,null,"Journées internationales"]
[null,{"$f":"PlanifierJour","v":""},{"$f":"TotauxHeuresQuotidiennes","v":""}]
[null,{"$f":"PlanifierJour","v":""},{"$f":"TotauxHeuresQuotidiennes","v":""}]
[null,{"$f":"PlanifierJour","v":""},{"$f":"TotauxHeuresQuotidiennes","v":""}]
[null,{"$f":"PlanifierJour","v":""},{"$f":"TotauxHeuresQuotidiennes","v":""}]
[null,{"$f":"PlanifierJour","v":""},{"$f":"TotauxHeuresQuotidiennes","v":""}]
[null,{"$f":"PlanifierJour","v":""},{"$f":"TotauxHeuresQuotidiennes","v":""}]
[null,{"$f":"PlanifierJour","v":""},{"$f":"TotauxHeuresQuotidiennes","v":""}]
[null,{"$f":"PlanifierJour","v":""},{"$f":"TotauxHeuresQuotidiennes","v":""}]
[null,{"$f":"PlanifierJour","v":""},{"$f":"TotauxHeuresQuotidiennes","v":""}]
[null,{"$f":"PlanifierJour","v":""},{"$f":"TotauxHeuresQuotidiennes","v":""}]
[null,{"$f":"PlanifierJour","v":""},{"$f":"TotauxHeuresQuotidiennes","v":""}]
[null,{"$f":"PlanifierJour","v":""},{"$f":"TotauxHeuresQuotidiennes","v":""}]
[null,{"$f":"PlanifierJour","v":""},{"$f":"TotauxHeuresQuotidiennes","v":""}]
[null,{"$f":"PlanifierJour","v":""},{"$f":"TotauxHeuresQuotidiennes","v":""}]
[null,{"$f":"PlanifierJour","v":""},{"$f":"TotauxHeuresQuotidiennes","v":""}]
[null,{"$f":"PlanifierJour","v":""},{"$f":"TotauxHeuresQuotidiennes","v":""}]
[null,{"$f":"PlanifierJour","v":""},{"$f":"TotauxHeuresQuotidiennes","v":""}]
[null,{"$f":"PlanifierJour","v":""},{"$f":"TotauxHeuresQuotidiennes","v":""}]
[null,{"$f":"PlanifierJour","v":""},{"$f":"TotauxHeuresQuotidiennes","v":""}]
[null,{"$f":"PlanifierJour","v":""},{"$f":"TotauxHeuresQuotidiennes","v":""}]
[null,{"$f":"PlanifierJour","v":""},{"$f":"TotauxHeuresQuotidiennes","v":""}]
[null,{"$f":"PlanifierJour","v":""},{"$f":"TotauxHeuresQuotidiennes","v":""}]
[null,{"$f":"PlanifierJour","v":""},{"$f":"TotauxHeuresQuotidiennes","v":""}]
[null,{"$f":"PlanifierJour","v":""},{"$f":"TotauxHeuresQuotidiennes","v":""}]
[null,{"$f":"PlanifierJour","v":""},{"$f":"TotauxHeuresQuotidiennes","v":""}]
[null,{"$f":"PlanifierJour","v":""},{"$f":"TotauxHeuresQuotidiennes","v":""}]
[null,{"$f":"PlanifierJour","v":""},{"$f":"TotauxHeuresQuotidiennes","v":""}]
[null,{"$f":"PlanifierJour","v":""},{"$f":"TotauxHeuresQuotidiennes","v":""}]
[null,{"$f":"PlanifierJour","v":""},{"$f":"TotauxHeuresQuotidiennes","v":""}]
[null,{"$f":"PlanifierJour","v":""},{"$f":"TotauxHeuresQuotidiennes","v":""}]
[null,{"$f":"PlanifierJour","v":""},{"$f":"TotauxHeuresQuotidiennes","v":""}]
[null,{"$f":"PlanifierJour","v":""},{"$f":"TotauxHeuresQuotidiennes","v":""}]
[null,{"$f":"PlanifierJour","v":""},{"$f":"TotauxHeuresQuotidiennes","v":""}]
[null,{"$f":"PlanifierJour","v":""},{"$f":"TotauxHeuresQuotidiennes","v":""}]
[null,{"$f":"PlanifierJour","v":""},{"$f":"TotauxHeuresQuotidiennes","v":""}]
[null,{"$f":"PlanifierJour","v":""},{"$f":"TotauxHeuresQuotidiennes","v":""}]
[null,{"$f":"PlanifierJour","v":""},{"$f":"TotauxHeuresQuotidiennes","v":""}]
[null,{"$f":"PlanifierJour","v":""},{"$f":"TotauxHeuresQuotidiennes","v":""}]
[null,{"$f":"PlanifierJour","v":""},{"$f":"TotauxHeuresQuotidiennes","v":""}]
[null,{"$f":"PlanifierJour","v":""},{"$f":"TotauxHeuresQuotidiennes","v":""}]
[null,{"$f":"PlanifierJour","v":""},{"$f":"TotauxHeuresQuotidiennes","v":""}]
[null,{"$f":"PlanifierJour","v":""},{"$f":"TotauxHeuresQuotidiennes","v":""}]
[null,{"$f":"PlanifierJour","v":""},{"$f":"TotauxHeuresQuotidiennes","v":""}]
[null,{"$f":"PlanifierJour","v":""},{"$f":"TotauxHeuresQuotidiennes","v":""}]
[null,{"$f":"PlanifierJour","v":""},{"$f":"TotauxHeuresQuotidiennes","v":""}]
[null,{"$f":"PlanifierJour","v":""},{"$f":"TotauxHeuresQuotidiennes","v":""}]
[null,{"$f":"PlanifierJour","v":""},{"$f":"TotauxHeuresQuotidiennes","v":""}]
[null,{"$f":"PlanifierJour","v":""},{"$f":"TotauxHeuresQuotidiennes","v":""}]
[null,{"$f":"PlanifierJour","v":""},{"$f":"TotauxHeuresQuotidiennes","v":""}]
[null,{"$f":"PlanifierJour","v":""},{"$f":"TotauxHeuresQuotidiennes","v":""}]
[null,{"$f":"PlanifierJour","v":""},{"$f":"TotauxHeuresQuotidiennes","v":""}]
[null,{"$f":"PlanifierJour","v":""},{"$f":"TotauxHeuresQuotidiennes","v":""}]
[null,{"$f":"PlanifierJour","v":""},{"$f":"TotauxHeuresQuotidiennes","v":""}]
[null,{"$f":"PlanifierJour","v":""},{"$f":"TotauxHeuresQuotidiennes","v":""}]
[null,{"$f":"PlanifierJour","v":""},{"$f":"TotauxHeuresQuotidiennes","v":""}]
[null,{"$f":"PlanifierJour","v":""},{"$f":"TotauxHeuresQuotidiennes","v":""}]
[null,{"$f":"PlanifierJour","v":""},{"$f":"TotauxHeuresQuotidiennes","v":""}]
[null,{"$f":"PlanifierJour","v":""},{"$f":"TotauxHeuresQuotidiennes","v":""}]
[null,{"$f":"PlanifierJour","v":""},{"$f":"TotauxHeuresQuotidiennes","v":""}]
[null,{"$f":"PlanifierJour","v":""},{"$f":"TotauxHeuresQuotidiennes","v":""}]

{"sheet":"Juillet 11","index":19,"n_rows":103,"n_cols":24,"rows_kept":103,"cut":false,"hidden":false,"merged":[[31,14,32,14],[16,8,17,8],[11,11,12,11],[3,21,3,23],[3,18,3,20],[6,5,9,5],[6,8,7,8],[11,5,12,5],[11,8,12,8],[11,13,11,14],[3,3,3,5],[3,6,3,8],[3,9,3,11],[3,12,3,14],[3,15,3,17]]}
[]
[null,"Social networks"]
[]
[null,"Entrez la date de début","Totaux","Facebook Chambéry",null,null,"Twitter Chambéry",null,null,"FB Annecy",null,null,"Twitter Annecy",null,null,"Viadeo FS",null,null,"Linkedin FS",null,null,"FB Skyline"]
[null,"2016-07-11",null,null,null,"THEME",null,null,"THEME",null,null,"THEME",null,null,"THEME",null,null,"THEME",null,null,"THEME",null,null,"THEME"]
[]
[null,{"$f":"PlanifierJour","v":"2016-07-11"},{"$f":"TotauxHeuresQuotidiennes","v":0},1,null,"petits bateaux",0,null,null,1,null,"conseils chaleur",0,null,null,null,null,null,1,null,"nounou septembre"]
[null,{"$f":"PlanifierJour","v":""},{"$f":"TotauxHeuresQuotidiennes","v":""},null,null,null,null,null,null,null,null,"bébés"]
[null,{"$f":"PlanifierJour","v":""},{"$f":"TotauxHeuresQuotidiennes","v":""}]
[null,{"$f":"PlanifierJour","v":""},{"$f":"TotauxHeuresQuotidiennes","v":""}]
[null,{"$f":"PlanifierJour","v":""},{"$f":"TotauxHeuresQuotidiennes","v":""}]
[null,{"$f":"PlanifierJour","v":"2016-07-12"},{"$f":"TotauxHeuresQuotidiennes","v":0},1,null,"offre d'emploi mouxy",1,null,"magazine pep's",1,null,"alternative",1,"cesu",null,null,null,null,0]
[null,{"$f":"PlanifierJour","v":""},{"$f":"TotauxHeuresQuotidiennes","v":""}]
[null,{"$f":"PlanifierJour","v":""},{"$f":"TotauxHeuresQuotidiennes","v":""},null,null,null,null,null,null,null,null,"punition"]
[null,{"$f":"PlanifierJour","v":""},{"$f":"TotauxHeuresQuotidiennes","v":""}]
[null,{"$f":"PlanifierJour","v":""},{"$f":"TotauxHeuresQuotidiennes","v":""}]
[null,{"$f":"PlanifierJour","v":"2016-07-13"},{"$f":"TotauxHeuresQuotidiennes","v":0},1,null,"citation",0,null,null,1,null,"Offre d'emploi",0]
[null,{"$f":"PlanifierJour","v":""},{"$f":"TotauxHeuresQuotidiennes","v":""},null,null,"le jeu",null,null,null,null,null,"Dingy st clair"]
[null,{"$f":"PlanifierJour","v":""},{"$f":"TotauxHeuresQuotidiennes","v":""}]
[null,{"$f":"PlanifierJour","v":""},{"$f":"TotauxHeuresQuotidiennes","v":""}]
[null,{"$f":"PlanifierJour","v":""},{"$f":"TotauxHeuresQuotidiennes","v":""}]
[null,{"$f":"PlanifierJour","v":"2016-07-14"},{"$f":"TotauxHeuresQuotidiennes","v":0},1,null,"3 petits cochons",1,null,"FS garde les enfants",1,null,"trouver son agence",1,null,"FS garde les enfants"]
[null,{"$f":"PlanifierJour","v":""},{"$f":"TotauxHeuresQuotidiennes","v":""},null,null,null,null,null,null,null,null,"FS"]
[null,{"$f":"PlanifierJour","v":""},{"$f":"TotauxHeuresQuotidiennes","v":""}]
[null,{"$f":"PlanifierJour","v":""},{"$f":"TotauxHeuresQuotidiennes","v":""}]
[null,{"$f":"PlanifierJour","v":""},{"$f":"TotauxHeuresQuotidiennes","v":""}]
[null,{"$f":"PlanifierJour","v":"2016-07-15"},{"$f":"TotauxHeuresQuotidiennes","v":0},1,null,"Agenda",0,null,null,1,null,"rucher"]
[null,{"$f":"PlanifierJour","v":""},{"$f":"TotauxHeuresQuotidiennes","v":""},null,null,null,null,null,null,null,null,"hars d'annecy"]
[null,{"$f":"PlanifierJour","v":""},{"$f":"TotauxHeuresQuotidiennes","v":""}]
[null,{"$f":"PlanifierJour","v":""},{"$f":"TotauxHeuresQuotidiennes","v":""}]
[null,{"$f":"PlanifierJour","v":""},{"$f":"TotauxHeuresQuotidiennes","v":""}]
[null,{"$f":"PlanifierJour","v":"2016-07-16"},{"$f":"TotauxHeuresQuotidiennes","v":0},1,null,"qui sommes",1,null,"recrutement nounou",1,null,"Prestations FS",1,null,"magazine pep's",1,null,"avantages FS impots"]
[null,{"$f":"PlanifierJour","v":""},{"$f":"TotauxHeuresQuotidiennes","v":""},null,null,"nous?",null,null,null,null,null,"Avantages"]
[null,{"$f":"PlanifierJour","v":""},{"$f":"TotauxHeuresQuotidiennes","v":""},null,null,null,null,null,null,null,null,"RENTREE 2016"]
[null,{"$f":"PlanifierJour","v":""},{"$f":"TotauxHeuresQuotidiennes","v":""}]
[null,{"$f":"PlanifierJour","v":""},{"$f":"TotauxHeuresQuotidiennes","v":""}]
[null,{"$f":"PlanifierJour","v":"2016-07-17"},{"$f":"TotauxHeuresQuotidiennes","v":0},1,null,"family sphere c'est ou?",1,null,"heure trouver nounou",1,null,"family sphere",1,null,"recrutement nounou"]
[null,{"$f":"PlanifierJour","v":""},{"$f":"TotauxHeuresQuotidiennes","v":""},null,null,null,null,null,"rentrée",null,null,"annecy c'est ou?"]
[null,{"$f":"PlanifierJour","v":""},{"$f":"TotauxHeuresQuotidiennes","v":""}]
[null,{"$f":"PlanifierJour","v":""},{"$f":"TotauxHeuresQuotidiennes","v":""}]
[null,{"$f":"PlanifierJour","v":""},{"$f":"TotauxHeuresQuotidiennes","v":""}]
[null,{"$f":"PlanifierJour","v":""},{"$f":"TotauxHeuresQuotidiennes","v":""}]
[null,{"$f":"PlanifierJour","v":""},{"$f":"TotauxHeuresQuotidiennes","v":""},null,null,"Réserve",null,null,"Journées internationales"]
[null,{"$f":"PlanifierJour","v":""},{"$f":"TotauxHeuresQuotidiennes","v":""}]
[null,{"$f":"PlanifierJour","v":""},{"$f":"TotauxHeuresQuotidiennes","v":""}]
[null,{"$f":"PlanifierJour","v":""},{"$f":"TotauxHeuresQuotidiennes","v":""}]
[null,{"$f":"PlanifierJour","v":""},{"$f":"TotauxHeuresQuotidiennes","v":""}]
[null,{"$f":"PlanifierJour","v":""},{"$f":"TotauxHeuresQuotidiennes","v":""}]
[null,{"$f":"PlanifierJour","v":""},{"$f":"TotauxHeuresQuotidiennes","v":""}]
[null,{"$f":"PlanifierJour","v":""},{"$f":"TotauxHeuresQuotidiennes","v":""}]
[null,{"$f":"PlanifierJour","v":""},{"$f":"TotauxHeuresQuotidiennes","v":""}]
[null,{"$f":"PlanifierJour","v":""},{"$f":"TotauxHeuresQuotidiennes","v":""}]
[null,{"$f":"PlanifierJour","v":""},{"$f":"TotauxHeuresQuotidiennes","v":""}]
[null,{"$f":"PlanifierJour","v":""},{"$f":"TotauxHeuresQuotidiennes","v":""}]
[null,{"$f":"PlanifierJour","v":""},{"$f":"TotauxHeuresQuotidiennes","v":""}]
[null,{"$f":"PlanifierJour","v":""},{"$f":"TotauxHeuresQuotidiennes","v":""}]
[null,{"$f":"PlanifierJour","v":""},{"$f":"TotauxHeuresQuotidiennes","v":""}]
[null,{"$f":"PlanifierJour","v":""},{"$f":"TotauxHeuresQuotidiennes","v":""}]
[null,{"$f":"PlanifierJour","v":""},{"$f":"TotauxHeuresQuotidiennes","v":""}]
[null,{"$f":"PlanifierJour","v":""},{"$f":"TotauxHeuresQuotidiennes","v":""}]
[null,{"$f":"PlanifierJour","v":""},{"$f":"TotauxHeuresQuotidiennes","v":""}]
[null,{"$f":"PlanifierJour","v":""},{"$f":"TotauxHeuresQuotidiennes","v":""}]
[null,{"$f":"PlanifierJour","v":""},{"$f":"TotauxHeuresQuotidiennes","v":""}]
[null,{"$f":"PlanifierJour","v":""},{"$f":"TotauxHeuresQuotidiennes","v":""}]
[null,{"$f":"PlanifierJour","v":""},{"$f":"TotauxHeuresQuotidiennes","v":""}]
[null,{"$f":"PlanifierJour","v":""},{"$f":"TotauxHeuresQuotidiennes","v":""}]
[null,{"$f":"PlanifierJour","v":""},{"$f":"TotauxHeuresQuotidiennes","v":""}]
[null,{"$f":"PlanifierJour","v":""},{"$f":"TotauxHeuresQuotidiennes","v":""}]
[null,{"$f":"PlanifierJour","v":""},{"$f":"TotauxHeuresQuotidiennes","v":""}]
[null,{"$f":"PlanifierJour","v":""},{"$f":"TotauxHeuresQuotidiennes","v":""}]
[null,{"$f":"PlanifierJour","v":""},{"$f":"TotauxHeuresQuotidiennes","v":""}]
[null,{"$f":"PlanifierJour","v":""},{"$f":"TotauxHeuresQuotidiennes","v":""}]
[null,{"$f":"PlanifierJour","v":""},{"$f":"TotauxHeuresQuotidiennes","v":""}]
[null,{"$f":"PlanifierJour","v":""},{"$f":"TotauxHeuresQuotidiennes","v":""}]
[null,{"$f":"PlanifierJour","v":""},{"$f":"TotauxHeuresQuotidiennes","v":""}]
[null,{"$f":"PlanifierJour","v":""},{"$f":"TotauxHeuresQuotidiennes","v":""}]
[null,{"$f":"PlanifierJour","v":""},{"$f":"TotauxHeuresQuotidiennes","v":""}]
[null,{"$f":"PlanifierJour","v":""},{"$f":"TotauxHeuresQuotidiennes","v":""}]
[null,{"$f":"PlanifierJour","v":""},{"$f":"TotauxHeuresQuotidiennes","v":""}]
[null,{"$f":"PlanifierJour","v":""},{"$f":"TotauxHeuresQuotidiennes","v":""}]
[null,{"$f":"PlanifierJour","v":""},{"$f":"TotauxHeuresQuotidiennes","v":""}]
[null,{"$f":"PlanifierJour","v":""},{"$f":"TotauxHeuresQuotidiennes","v":""}]
[null,{"$f":"PlanifierJour","v":""},{"$f":"TotauxHeuresQuotidiennes","v":""}]
[null,{"$f":"PlanifierJour","v":""},{"$f":"TotauxHeuresQuotidiennes","v":""}]
[null,{"$f":"PlanifierJour","v":""},{"$f":"TotauxHeuresQuotidiennes","v":""}]
[null,{"$f":"PlanifierJour","v":""},{"$f":"TotauxHeuresQuotidiennes","v":""}]
[null,{"$f":"PlanifierJour","v":""},{"$f":"TotauxHeuresQuotidiennes","v":""}]
[null,{"$f":"PlanifierJour","v":""},{"$f":"TotauxHeuresQuotidiennes","v":""}]
[null,{"$f":"PlanifierJour","v":""},{"$f":"TotauxHeuresQuotidiennes","v":""}]
[null,{"$f":"PlanifierJour","v":""},{"$f":"TotauxHeuresQuotidiennes","v":""}]
[null,{"$f":"PlanifierJour","v":""},{"$f":"TotauxHeuresQuotidiennes","v":""}]
[null,{"$f":"PlanifierJour","v":""},{"$f":"TotauxHeuresQuotidiennes","v":""}]
[null,{"$f":"PlanifierJour","v":""},{"$f":"TotauxHeuresQuotidiennes","v":""}]
[null,{"$f":"PlanifierJour","v":""},{"$f":"TotauxHeuresQuotidiennes","v":""}]
[null,{"$f":"PlanifierJour","v":""},{"$f":"TotauxHeuresQuotidiennes","v":""}]
[null,{"$f":"PlanifierJour","v":""},{"$f":"TotauxHeuresQuotidiennes","v":""}]
[null,{"$f":"PlanifierJour","v":""},{"$f":"TotauxHeuresQuotidiennes","v":""}]
[null,{"$f":"PlanifierJour","v":""},{"$f":"TotauxHeuresQuotidiennes","v":""}]
[null,{"$f":"PlanifierJour","v":""},{"$f":"TotauxHeuresQuotidiennes","v":""}]
[null,{"$f":"PlanifierJour","v":""},{"$f":"TotauxHeuresQuotidiennes","v":""}]
[null,{"$f":"PlanifierJour","v":""},{"$f":"TotauxHeuresQuotidiennes","v":""}]
[null,{"$f":"PlanifierJour","v":""},{"$f":"TotauxHeuresQuotidiennes","v":""}]
[null,{"$f":"PlanifierJour","v":""},{"$f":"TotauxHeuresQuotidiennes","v":""}]

{"sheet":"Juillet 18","index":20,"n_rows":103,"n_cols":24,"rows_kept":103,"cut":false,"hidden":false,"merged":[[26,17,27,17],[3,21,3,23],[6,5,9,5],[6,8,7,8],[11,5,12,5],[11,8,12,8],[3,3,3,5],[3,6,3,8],[3,9,3,11],[3,12,3,14],[3,15,3,17],[3,18,3,20],[6,20,10,20],[8,8,9,8],[6,14,10,14],[11,14,12,14],[16,8,20,8],[36,8,37,8],[16,11,20,11],[31,5,35,5],[22,11,25,11],[36,5,37,5],[36,11,37,11]]}
[]
[null,"Social networks"]
[]
[null,"Entrez la date de début","Totaux","Facebook Chambéry",null,null,"Twitter Chambéry",null,null,"FB Annecy",null,null,"Twitter Annecy",null,null,"Viadeo FS",null,null,"Linkedin FS",null,null,"FB Skyline"]
[null,"2016-07-18",null,null,null,"THEME",null,null,"THEME",null,null,"THEME",null,null,"THEME",null,null,"THEME",null,null,"THEME",null,null,"THEME"]
[]
[null,{"$f":"PlanifierJour","v":"2016-07-18"},{"$f":"TotauxHeuresQuotidiennes","v":0},1,null,"avions pinces à linge",1,null,"citation",1,null,"activité ext enfants",1,null,"FS est la pendant les vacances",null,null,null,1,null,"FS est la pendant les vacances"]
[null,{"$f":"PlanifierJour","v":""},{"$f":"TotauxHeuresQuotidiennes","v":""},null,null,null,null,null,null,null,null,"pause nature"]
[null,{"$f":"PlanifierJour","v":""},{"$f":"TotauxHeuresQuotidiennes","v":""},null,null,null,null,null,"pas a se remettre de son enfance"]
[null,{"$f":"PlanifierJour","v":""},{"$f":"TotauxHeuresQuotidiennes","v":""}]
[null,{"$f":"PlanifierJour","v":""},{"$f":"TotauxHeuresQuotidiennes","v":""}]
[null,{"$f":"PlanifierJour","v":"2016-07-19"},{"$f":"TotauxHeuresQuotidiennes","v":0},1,null,"au clair de la lune",1,null,"cham et annecy sont liés",1,null,"Vidéo",1,null,"cham et annecy sont liés"]
[null,{"$f":"PlanifierJour","v":""},{"$f":"TotauxHeuresQuotidiennes","v":""},null,null,null,null,null,null,null,null,"accessibilité"]
[null,{"$f":"PlanifierJour","v":""},{"$f":"TotauxHeuresQuotidiennes","v":""},null,null,null,null,null,null,null,null,"handicap mental"]
[null,{"$f":"PlanifierJour","v":""},{"$f":"TotauxHeuresQuotidiennes","v":""}]
[null,{"$f":"PlanifierJour","v":""},{"$f":"TotauxHeuresQuotidiennes","v":""}]
[null,{"$f":"PlanifierJour","v":"2016-07-20"},{"$f":"TotauxHeuresQuotidiennes","v":0},1,null,"Offre d'emploi",1,null,"Que peut on demander comme aide aux enfants? Réponse en fonction de l'âge.",1,null,"FS est la pendant les vacances",1,null,"idée dev enfants"]
[null,{"$f":"PlanifierJour","v":""},{"$f":"TotauxHeuresQuotidiennes","v":""},null,null,"septembre",null,null,null,null,null,null,null,null,"pince couleurs"]
[null,{"$f":"PlanifierJour","v":""},{"$f":"TotauxHeuresQuotidiennes","v":""}]
[null,{"$f":"PlanifierJour","v":""},{"$f":"TotauxHeuresQuotidiennes","v":""}]
[null,{"$f":"PlanifierJour","v":""},{"$f":"TotauxHeuresQuotidiennes","v":""}]
[null,{"$f":"PlanifierJour","v":"2016-07-21"},{"$f":"TotauxHeuresQuotidiennes","v":0},0,null,"vidéo",0,null,null,1,null,"La citation du jeudi",1,null,"offre emploi"]
[null,{"$f":"PlanifierJour","v":""},{"$f":"TotauxHeuresQuotidiennes","v":""},null,null,null,null,null,null,null,null,"les enfants ne doivent pas souffir des problèmes des grands",null,null,"rentrée 2016"]
[null,{"$f":"PlanifierJour","v":""},{"$f":"TotauxHeuresQuotidiennes","v":""}]
[null,{"$f":"PlanifierJour","v":""},{"$f":"TotauxHeuresQuotidiennes","v":""}]
[null,{"$f":"PlanifierJour","v":""},{"$f":"TotauxHeuresQuotidiennes","v":""}]
[null,{"$f":"PlanifierJour","v":"2016-07-22"},{"$f":"TotauxHeuresQuotidiennes","v":0},1,null,"visites",0,null,null,1,null,"déambules",null,null,null,1,null,"avantages garde d'enfants à dom"]
[null,{"$f":"PlanifierJour","v":""},{"$f":"TotauxHeuresQuotidiennes","v":""},null,null,"château"]
[null,{"$f":"PlanifierJour","v":""},{"$f":"TotauxHeuresQuotidiennes","v":""},null,null,null,null,null,null,null,null,null,null,null,null,null,null,"enfants"]
[null,{"$f":"PlanifierJour","v":""},{"$f":"TotauxHeuresQuotidiennes","v":""}]
[null,{"$f":"PlanifierJour","v":""},{"$f":"TotauxHeuresQuotidiennes","v":""}]
[null,{"$f":"PlanifierJour","v":"2016-07-23"},{"$f":"TotauxHeuresQuotidiennes","v":0},1,null,"FS est la pendant les vacances",1,null,"offre emploi",1,null,"Offre d'emploi",1,null,"avantages enfants",0]
[null,{"$f":"PlanifierJour","v":""},{"$f":"TotauxHeuresQuotidiennes","v":""},null,null,null,null,null,"rentrée 2016",null,null,"septembre",null,null,"garde domicile"]
[null,{"$f":"PlanifierJour","v":""},{"$f":"TotauxHeuresQuotidiennes","v":""}]
[null,{"$f":"PlanifierJour","v":""},{"$f":"TotauxHeuresQuotidiennes","v":""}]
[null,{"$f":"PlanifierJour","v":""},{"$f":"TotauxHeuresQuotidiennes","v":""}]
[null,{"$f":"PlanifierJour","v":"2016-07-24"},{"$f":"TotauxHeuresQuotidiennes","v":0},1,null,"avantages garde d'enfants à dom",1,null,"Avantages garde à domicile",1,null,"avantages garde d'enfants à dom",1,null,"avantages parents"]
[null,{"$f":"PlanifierJour","v":""},{"$f":"TotauxHeuresQuotidiennes","v":""},null,null,null,null,null,null,null,null,null,null,null,"garde domicile"]
[null,{"$f":"PlanifierJour","v":""},{"$f":"TotauxHeuresQuotidiennes","v":""},null,null,"enfants",null,null,null,null,null,"parents"]
[null,{"$f":"PlanifierJour","v":""},{"$f":"TotauxHeuresQuotidiennes","v":""}]
[null,{"$f":"PlanifierJour","v":""},{"$f":"TotauxHeuresQuotidiennes","v":""}]
[null,{"$f":"PlanifierJour","v":""},{"$f":"TotauxHeuresQuotidiennes","v":""}]
[null,{"$f":"PlanifierJour","v":""},{"$f":"TotauxHeuresQuotidiennes","v":""},null,null,"Réserve",null,null,"Journées internationales"]
[null,{"$f":"PlanifierJour","v":""},{"$f":"TotauxHeuresQuotidiennes","v":""}]
[null,{"$f":"PlanifierJour","v":""},{"$f":"TotauxHeuresQuotidiennes","v":""}]
[null,{"$f":"PlanifierJour","v":""},{"$f":"TotauxHeuresQuotidiennes","v":""}]
[null,{"$f":"PlanifierJour","v":""},{"$f":"TotauxHeuresQuotidiennes","v":""}]
[null,{"$f":"PlanifierJour","v":""},{"$f":"TotauxHeuresQuotidiennes","v":""}]
[null,{"$f":"PlanifierJour","v":""},{"$f":"TotauxHeuresQuotidiennes","v":""}]
[null,{"$f":"PlanifierJour","v":""},{"$f":"TotauxHeuresQuotidiennes","v":""}]
[null,{"$f":"PlanifierJour","v":""},{"$f":"TotauxHeuresQuotidiennes","v":""}]
[null,{"$f":"PlanifierJour","v":""},{"$f":"TotauxHeuresQuotidiennes","v":""}]
[null,{"$f":"PlanifierJour","v":""},{"$f":"TotauxHeuresQuotidiennes","v":""}]
[null,{"$f":"PlanifierJour","v":""},{"$f":"TotauxHeuresQuotidiennes","v":""}]
[null,{"$f":"PlanifierJour","v":""},{"$f":"TotauxHeuresQuotidiennes","v":""}]
[null,{"$f":"PlanifierJour","v":""},{"$f":"TotauxHeuresQuotidiennes","v":""}]
[null,{"$f":"PlanifierJour","v":""},{"$f":"TotauxHeuresQuotidiennes","v":""}]
[null,{"$f":"PlanifierJour","v":""},{"$f":"TotauxHeuresQuotidiennes","v":""}]
[null,{"$f":"PlanifierJour","v":""},{"$f":"TotauxHeuresQuotidiennes","v":""}]
[null,{"$f":"PlanifierJour","v":""},{"$f":"TotauxHeuresQuotidiennes","v":""}]
[null,{"$f":"PlanifierJour","v":""},{"$f":"TotauxHeuresQuotidiennes","v":""}]
[null,{"$f":"PlanifierJour","v":""},{"$f":"TotauxHeuresQuotidiennes","v":""}]
[null,{"$f":"PlanifierJour","v":""},{"$f":"TotauxHeuresQuotidiennes","v":""}]
[null,{"$f":"PlanifierJour","v":""},{"$f":"TotauxHeuresQuotidiennes","v":""}]
[null,{"$f":"PlanifierJour","v":""},{"$f":"TotauxHeuresQuotidiennes","v":""}]
[null,{"$f":"PlanifierJour","v":""},{"$f":"TotauxHeuresQuotidiennes","v":""}]
[null,{"$f":"PlanifierJour","v":""},{"$f":"TotauxHeuresQuotidiennes","v":""}]
[null,{"$f":"PlanifierJour","v":""},{"$f":"TotauxHeuresQuotidiennes","v":""}]
[null,{"$f":"PlanifierJour","v":""},{"$f":"TotauxHeuresQuotidiennes","v":""}]
[null,{"$f":"PlanifierJour","v":""},{"$f":"TotauxHeuresQuotidiennes","v":""}]
[null,{"$f":"PlanifierJour","v":""},{"$f":"TotauxHeuresQuotidiennes","v":""}]
[null,{"$f":"PlanifierJour","v":""},{"$f":"TotauxHeuresQuotidiennes","v":""}]
[null,{"$f":"PlanifierJour","v":""},{"$f":"TotauxHeuresQuotidiennes","v":""}]
[null,{"$f":"PlanifierJour","v":""},{"$f":"TotauxHeuresQuotidiennes","v":""}]
[null,{"$f":"PlanifierJour","v":""},{"$f":"TotauxHeuresQuotidiennes","v":""}]
[null,{"$f":"PlanifierJour","v":""},{"$f":"TotauxHeuresQuotidiennes","v":""}]
[null,{"$f":"PlanifierJour","v":""},{"$f":"TotauxHeuresQuotidiennes","v":""}]
[null,{"$f":"PlanifierJour","v":""},{"$f":"TotauxHeuresQuotidiennes","v":""}]
[null,{"$f":"PlanifierJour","v":""},{"$f":"TotauxHeuresQuotidiennes","v":""}]
[null,{"$f":"PlanifierJour","v":""},{"$f":"TotauxHeuresQuotidiennes","v":""}]
[null,{"$f":"PlanifierJour","v":""},{"$f":"TotauxHeuresQuotidiennes","v":""}]
[null,{"$f":"PlanifierJour","v":""},{"$f":"TotauxHeuresQuotidiennes","v":""}]
[null,{"$f":"PlanifierJour","v":""},{"$f":"TotauxHeuresQuotidiennes","v":""}]
[null,{"$f":"PlanifierJour","v":""},{"$f":"TotauxHeuresQuotidiennes","v":""}]
[null,{"$f":"PlanifierJour","v":""},{"$f":"TotauxHeuresQuotidiennes","v":""}]
[null,{"$f":"PlanifierJour","v":""},{"$f":"TotauxHeuresQuotidiennes","v":""}]
[null,{"$f":"PlanifierJour","v":""},{"$f":"TotauxHeuresQuotidiennes","v":""}]
[null,{"$f":"PlanifierJour","v":""},{"$f":"TotauxHeuresQuotidiennes","v":""}]
[null,{"$f":"PlanifierJour","v":""},{"$f":"TotauxHeuresQuotidiennes","v":""}]
[null,{"$f":"PlanifierJour","v":""},{"$f":"TotauxHeuresQuotidiennes","v":""}]
[null,{"$f":"PlanifierJour","v":""},{"$f":"TotauxHeuresQuotidiennes","v":""}]
[null,{"$f":"PlanifierJour","v":""},{"$f":"TotauxHeuresQuotidiennes","v":""}]
[null,{"$f":"PlanifierJour","v":""},{"$f":"TotauxHeuresQuotidiennes","v":""}]
[null,{"$f":"PlanifierJour","v":""},{"$f":"TotauxHeuresQuotidiennes","v":""}]
[null,{"$f":"PlanifierJour","v":""},{"$f":"TotauxHeuresQuotidiennes","v":""}]
[null,{"$f":"PlanifierJour","v":""},{"$f":"TotauxHeuresQuotidiennes","v":""}]
[null,{"$f":"PlanifierJour","v":""},{"$f":"TotauxHeuresQuotidiennes","v":""}]
[null,{"$f":"PlanifierJour","v":""},{"$f":"TotauxHeuresQuotidiennes","v":""}]
[null,{"$f":"PlanifierJour","v":""},{"$f":"TotauxHeuresQuotidiennes","v":""}]
[null,{"$f":"PlanifierJour","v":""},{"$f":"TotauxHeuresQuotidiennes","v":""}]
[null,{"$f":"PlanifierJour","v":""},{"$f":"TotauxHeuresQuotidiennes","v":""}]
[null,{"$f":"PlanifierJour","v":""},{"$f":"TotauxHeuresQuotidiennes","v":""}]
[null,{"$f":"PlanifierJour","v":""},{"$f":"TotauxHeuresQuotidiennes","v":""}]

{"sheet":"Juillet 25","index":21,"n_rows":103,"n_cols":24,"rows_kept":103,"cut":false,"hidden":false,"merged":[[3,21,3,23],[6,5,9,5],[11,5,12,5],[11,8,12,8],[11,13,11,14],[3,3,3,5],[3,6,3,8],[3,9,3,11],[3,12,3,14],[3,15,3,17],[3,18,3,20],[16,14,20,14],[26,8,30,8],[21,11,22,11],[31,5,32,5],[31,11,32,11],[26,5,28,5]]}
[]
[null,"Social networks"]
[]
[null,"Entrez la date de début","Totaux","Facebook Chambéry",null,null,"Twitter Chambéry",null,null,"FB Annecy",null,null,"Twitter Annecy",null,null,"Viadeo FS",null,null,"Linkedin FS",null,null,"FB Skyline"]
[null,"2016-07-25",null,null,null,"THEME",null,null,"THEME",null,null,"THEME",null,null,"THEME",null,null,"THEME",null,null,"THEME",null,null,"THEME"]
[]
[null,{"$f":"PlanifierJour","v":"2016-07-25"},{"$f":"TotauxHeuresQuotidiennes","v":0},1,null,"citation: enfants être en construction",1,null,"avantages parents",1,null,"d’où vient la méthode",1,null,"motricité globale",null,null,null,0]
[null,{"$f":"PlanifierJour","v":""},{"$f":"TotauxHeuresQuotidiennes","v":""},null,null,null,null,null,"garde domicile",null,null,"montessori?"]
[null,{"$f":"PlanifierJour","v":""},{"$f":"TotauxHeuresQuotidiennes","v":""}]
[null,{"$f":"PlanifierJour","v":""},{"$f":"TotauxHeuresQuotidiennes","v":""}]
[null,{"$f":"PlanifierJour","v":""},{"$f":"TotauxHeuresQuotidiennes","v":""}]
[null,{"$f":"PlanifierJour","v":"2016-07-26"},{"$f":"TotauxHeuresQuotidiennes","v":0},1,null,"atelier croquis et gravure",0,null,null,0,null,"Vidéo",0]
[null,{"$f":"PlanifierJour","v":""},{"$f":"TotauxHeuresQuotidiennes","v":""}]
[null,{"$f":"PlanifierJour","v":""},{"$f":"TotauxHeuresQuotidiennes","v":""}]
[null,{"$f":"PlanifierJour","v":""},{"$f":"TotauxHeuresQuotidiennes","v":""}]
[null,{"$f":"PlanifierJour","v":""},{"$f":"TotauxHeuresQuotidiennes","v":""}]
[null,{"$f":"PlanifierJour","v":"2016-07-27"},{"$f":"TotauxHeuresQuotidiennes","v":0},1,null,"avantages possibles",1,null,"idée dev enfants",1,null,"Offre d'emploi",1,null,"Que peut on demander comme aide aux enfants? Réponse en fonction de l'âge."]
[null,{"$f":"PlanifierJour","v":""},{"$f":"TotauxHeuresQuotidiennes","v":""},null,null,"financier",null,null,"pince couleurs",null,null,"poisy et epargny"]
[null,{"$f":"PlanifierJour","v":""},{"$f":"TotauxHeuresQuotidiennes","v":""}]
[null,{"$f":"PlanifierJour","v":""},{"$f":"TotauxHeuresQuotidiennes","v":""}]
[null,{"$f":"PlanifierJour","v":""},{"$f":"TotauxHeuresQuotidiennes","v":""}]
[null,{"$f":"PlanifierJour","v":"2016-07-28"},{"$f":"TotauxHeuresQuotidiennes","v":0},1,null,"Vidéo",0,null,null,1,null,"La citation du jeudi",0]
[null,{"$f":"PlanifierJour","v":""},{"$f":"TotauxHeuresQuotidiennes","v":""},null,null,"accessibilité"]
[null,{"$f":"PlanifierJour","v":""},{"$f":"TotauxHeuresQuotidiennes","v":""},null,null,"handicap mental"]
[null,{"$f":"PlanifierJour","v":""},{"$f":"TotauxHeuresQuotidiennes","v":""}]
[null,{"$f":"PlanifierJour","v":""},{"$f":"TotauxHeuresQuotidiennes","v":""}]
[null,{"$f":"PlanifierJour","v":"2016-07-29"},{"$f":"TotauxHeuresQuotidiennes","v":0},1,null,"Y'a comme un mammouth sous le gravier",1,null,"Family Sphere Chambéry est sur la brèche pendant toutes les vacances.",1,null,"été des 6/12 ans",1,null,"FS recrute",1,null,"avantages possibles"]
[null,{"$f":"PlanifierJour","v":""},{"$f":"TotauxHeuresQuotidiennes","v":""},null,null,null,null,null,null,null,null,null,null,null,"rejoignez nous",null,null,"financier"]
[null,{"$f":"PlanifierJour","v":""},{"$f":"TotauxHeuresQuotidiennes","v":""}]
[null,{"$f":"PlanifierJour","v":""},{"$f":"TotauxHeuresQuotidiennes","v":""}]
[null,{"$f":"PlanifierJour","v":""},{"$f":"TotauxHeuresQuotidiennes","v":""}]
[null,{"$f":"PlanifierJour","v":"2016-07-30"},{"$f":"TotauxHeuresQuotidiennes","v":0},1,null,"avantages garde d'enfants à dom",0,null,null,1,null,"avantages garde d'enfants à dom",0,null,null,0]
[null,{"$f":"PlanifierJour","v":""},{"$f":"TotauxHeuresQuotidiennes","v":""}]
[null,{"$f":"PlanifierJour","v":""},{"$f":"TotauxHeuresQuotidiennes","v":""},null,null,"parents",null,null,null,null,null,"enfants"]
[null,{"$f":"PlanifierJour","v":""},{"$f":"TotauxHeuresQuotidiennes","v":""}]
[null,{"$f":"PlanifierJour","v":""},{"$f":"TotauxHeuresQuotidiennes","v":""}]
[null,{"$f":"PlanifierJour","v":"2016-07-31"},{"$f":"TotauxHeuresQuotidiennes","v":0},0,null,null,1,null,"motricité globale",1,null,"avantages possibles",1,null,"avantages possibles"]
[null,{"$f":"PlanifierJour","v":""},{"$f":"TotauxHeuresQuotidiennes","v":""},null,null,null,null,null,null,null,null,"financier",null,null,"financier"]
[null,{"$f":"PlanifierJour","v":""},{"$f":"TotauxHeuresQuotidiennes","v":""}]
[null,{"$f":"PlanifierJour","v":""},{"$f":"TotauxHeuresQuotidiennes","v":""}]
[null,{"$f":"PlanifierJour","v":""},{"$f":"TotauxHeuresQuotidiennes","v":""}]
[null,{"$f":"PlanifierJour","v":""},{"$f":"TotauxHeuresQuotidiennes","v":""}]
[null,{"$f":"PlanifierJour","v":""},{"$f":"TotauxHeuresQuotidiennes","v":""},null,null,"Réserve",null,null,"Journées internationales"]
[null,{"$f":"PlanifierJour","v":""},{"$f":"TotauxHeuresQuotidiennes","v":""}]
[null,{"$f":"PlanifierJour","v":""},{"$f":"TotauxHeuresQuotidiennes","v":""}]
[null,{"$f":"PlanifierJour","v":""},{"$f":"TotauxHeuresQuotidiennes","v":""}]
[null,{"$f":"PlanifierJour","v":""},{"$f":"TotauxHeuresQuotidiennes","v":""}]
[null,{"$f":"PlanifierJour","v":""},{"$f":"TotauxHeuresQuotidiennes","v":""}]
[null,{"$f":"PlanifierJour","v":""},{"$f":"TotauxHeuresQuotidiennes","v":""}]
[null,{"$f":"PlanifierJour","v":""},{"$f":"TotauxHeuresQuotidiennes","v":""}]
[null,{"$f":"PlanifierJour","v":""},{"$f":"TotauxHeuresQuotidiennes","v":""}]
[null,{"$f":"PlanifierJour","v":""},{"$f":"TotauxHeuresQuotidiennes","v":""}]
[null,{"$f":"PlanifierJour","v":""},{"$f":"TotauxHeuresQuotidiennes","v":""}]
[null,{"$f":"PlanifierJour","v":""},{"$f":"TotauxHeuresQuotidiennes","v":""}]
[null,{"$f":"PlanifierJour","v":""},{"$f":"TotauxHeuresQuotidiennes","v":""}]
[null,{"$f":"PlanifierJour","v":""},{"$f":"TotauxHeuresQuotidiennes","v":""}]
[null,{"$f":"PlanifierJour","v":""},{"$f":"TotauxHeuresQuotidiennes","v":""}]
[null,{"$f":"PlanifierJour","v":""},{"$f":"TotauxHeuresQuotidiennes","v":""}]
[null,{"$f":"PlanifierJour","v":""},{"$f":"TotauxHeuresQuotidiennes","v":""}]
[null,{"$f":"PlanifierJour","v":""},{"$f":"TotauxHeuresQuotidiennes","v":""}]
[null,{"$f":"PlanifierJour","v":""},{"$f":"TotauxHeuresQuotidiennes","v":""}]
[null,{"$f":"PlanifierJour","v":""},{"$f":"TotauxHeuresQuotidiennes","v":""}]
[null,{"$f":"PlanifierJour","v":""},{"$f":"TotauxHeuresQuotidiennes","v":""}]
[null,{"$f":"PlanifierJour","v":""},{"$f":"TotauxHeuresQuotidiennes","v":""}]
[null,{"$f":"PlanifierJour","v":""},{"$f":"TotauxHeuresQuotidiennes","v":""}]
[null,{"$f":"PlanifierJour","v":""},{"$f":"TotauxHeuresQuotidiennes","v":""}]
[null,{"$f":"PlanifierJour","v":""},{"$f":"TotauxHeuresQuotidiennes","v":""}]
[null,{"$f":"PlanifierJour","v":""},{"$f":"TotauxHeuresQuotidiennes","v":""}]
[null,{"$f":"PlanifierJour","v":""},{"$f":"TotauxHeuresQuotidiennes","v":""}]
[null,{"$f":"PlanifierJour","v":""},{"$f":"TotauxHeuresQuotidiennes","v":""}]
[null,{"$f":"PlanifierJour","v":""},{"$f":"TotauxHeuresQuotidiennes","v":""}]
[null,{"$f":"PlanifierJour","v":""},{"$f":"TotauxHeuresQuotidiennes","v":""}]
[null,{"$f":"PlanifierJour","v":""},{"$f":"TotauxHeuresQuotidiennes","v":""}]
[null,{"$f":"PlanifierJour","v":""},{"$f":"TotauxHeuresQuotidiennes","v":""}]
[null,{"$f":"PlanifierJour","v":""},{"$f":"TotauxHeuresQuotidiennes","v":""}]
[null,{"$f":"PlanifierJour","v":""},{"$f":"TotauxHeuresQuotidiennes","v":""}]
[null,{"$f":"PlanifierJour","v":""},{"$f":"TotauxHeuresQuotidiennes","v":""}]
[null,{"$f":"PlanifierJour","v":""},{"$f":"TotauxHeuresQuotidiennes","v":""}]
[null,{"$f":"PlanifierJour","v":""},{"$f":"TotauxHeuresQuotidiennes","v":""}]
[null,{"$f":"PlanifierJour","v":""},{"$f":"TotauxHeuresQuotidiennes","v":""}]
[null,{"$f":"PlanifierJour","v":""},{"$f":"TotauxHeuresQuotidiennes","v":""}]
[null,{"$f":"PlanifierJour","v":""},{"$f":"TotauxHeuresQuotidiennes","v":""}]
[null,{"$f":"PlanifierJour","v":""},{"$f":"TotauxHeuresQuotidiennes","v":""}]
[null,{"$f":"PlanifierJour","v":""},{"$f":"TotauxHeuresQuotidiennes","v":""}]
[null,{"$f":"PlanifierJour","v":""},{"$f":"TotauxHeuresQuotidiennes","v":""}]
[null,{"$f":"PlanifierJour","v":""},{"$f":"TotauxHeuresQuotidiennes","v":""}]
[null,{"$f":"PlanifierJour","v":""},{"$f":"TotauxHeuresQuotidiennes","v":""}]
[null,{"$f":"PlanifierJour","v":""},{"$f":"TotauxHeuresQuotidiennes","v":""}]
[null,{"$f":"PlanifierJour","v":""},{"$f":"TotauxHeuresQuotidiennes","v":""}]
[null,{"$f":"PlanifierJour","v":""},{"$f":"TotauxHeuresQuotidiennes","v":""}]
[null,{"$f":"PlanifierJour","v":""},{"$f":"TotauxHeuresQuotidiennes","v":""}]
[null,{"$f":"PlanifierJour","v":""},{"$f":"TotauxHeuresQuotidiennes","v":""}]
[null,{"$f":"PlanifierJour","v":""},{"$f":"TotauxHeuresQuotidiennes","v":""}]
[null,{"$f":"PlanifierJour","v":""},{"$f":"TotauxHeuresQuotidiennes","v":""}]
[null,{"$f":"PlanifierJour","v":""},{"$f":"TotauxHeuresQuotidiennes","v":""}]
[null,{"$f":"PlanifierJour","v":""},{"$f":"TotauxHeuresQuotidiennes","v":""}]
[null,{"$f":"PlanifierJour","v":""},{"$f":"TotauxHeuresQuotidiennes","v":""}]
[null,{"$f":"PlanifierJour","v":""},{"$f":"TotauxHeuresQuotidiennes","v":""}]
[null,{"$f":"PlanifierJour","v":""},{"$f":"TotauxHeuresQuotidiennes","v":""}]
[null,{"$f":"PlanifierJour","v":""},{"$f":"TotauxHeuresQuotidiennes","v":""}]
[null,{"$f":"PlanifierJour","v":""},{"$f":"TotauxHeuresQuotidiennes","v":""}]
[null,{"$f":"PlanifierJour","v":""},{"$f":"TotauxHeuresQuotidiennes","v":""}]
[null,{"$f":"PlanifierJour","v":""},{"$f":"TotauxHeuresQuotidiennes","v":""}]

{"sheet":"Aout 01","index":22,"n_rows":103,"n_cols":24,"rows_kept":103,"cut":false,"hidden":false,"merged":[[21,11,22,11],[31,11,32,11],[31,14,32,14],[36,8,39,8],[3,21,3,23],[3,18,3,20],[6,5,9,5],[11,5,12,5],[16,8,17,8],[16,14,16,15],[3,3,3,5],[3,6,3,8],[3,9,3,11],[3,12,3,14],[3,15,3,17]]}
[]
[null,"Social networks"]
[]
[null,"Entrez la date de début","Totaux","Facebook Chambéry",null,null,"Twitter Chambéry",null,null,"FB Annecy",null,null,"Twitter Annecy",null,null,"Viadeo FS",null,null,"Linkedin FS",null,null,"FB Skyline"]
[null,"2016-08-01",null,null,null,"THEME",null,null,"THEME",null,null,"THEME",null,null,"THEME",null,null,"THEME",null,null,"THEME",null,null,"THEME"]
[]
[null,{"$f":"PlanifierJour","v":"2016-08-01"},{"$f":"TotauxHeuresQuotidiennes","v":0},1,null,"Chalet du mini golf",1,null,"retweet",1,null,"garde d'enfants handi",1,null,"retweet",null,null,null,0]
[null,{"$f":"PlanifierJour","v":""},{"$f":"TotauxHeuresQuotidiennes","v":""}]
[null,{"$f":"PlanifierJour","v":""},{"$f":"TotauxHeuresQuotidiennes","v":""}]
[null,{"$f":"PlanifierJour","v":""},{"$f":"TotauxHeuresQuotidiennes","v":""}]
[null,{"$f":"PlanifierJour","v":""},{"$f":"TotauxHeuresQuotidiennes","v":""}]
[null,{"$f":"PlanifierJour","v":"2016-08-02"},{"$f":"TotauxHeuresQuotidiennes","v":0},1,null,"20 activ occup ",1,null,"retweet",1,null,"imperial live festival",1,null,"retweet"]
[null,{"$f":"PlanifierJour","v":""},{"$f":"TotauxHeuresQuotidiennes","v":""}]
[null,{"$f":"PlanifierJour","v":""},{"$f":"TotauxHeuresQuotidiennes","v":""},null,null,"enfnats sans se ruiner"]
[null,{"$f":"PlanifierJour","v":""},{"$f":"TotauxHeuresQuotidiennes","v":""}]
[null,{"$f":"PlanifierJour","v":""},{"$f":"TotauxHeuresQuotidiennes","v":""}]
[null,{"$f":"PlanifierJour","v":"2016-08-03"},{"$f":"TotauxHeuresQuotidiennes","v":0},1,null,"Offre d'emploi",0,null,"avantages garde d'enfants",1,null,"Offre d'emploi",1,null,"garde enfants handi"]
[null,{"$f":"PlanifierJour","v":""},{"$f":"TotauxHeuresQuotidiennes","v":""},null,null,"rentrée 2016",null,null,null,null,null,"rentrée 2016"]
[null,{"$f":"PlanifierJour","v":""},{"$f":"TotauxHeuresQuotidiennes","v":""},null,null,null,null,null,"parents"]
[null,{"$f":"PlanifierJour","v":""},{"$f":"TotauxHeuresQuotidiennes","v":""}]
[null,{"$f":"PlanifierJour","v":""},{"$f":"TotauxHeuresQuotidiennes","v":""}]
[null,{"$f":"PlanifierJour","v":"2016-08-04"},{"$f":"TotauxHeuresQuotidiennes","v":0},1,null,"sicams",1,null,"garde enfants handi",1,null,"au clair de la lune",1,null,"offre d'emploi"]
[null,{"$f":"PlanifierJour","v":""},{"$f":"TotauxHeuresQuotidiennes","v":""},null,null,"parc h dunant la motte"]
[null,{"$f":"PlanifierJour","v":""},{"$f":"TotauxHeuresQuotidiennes","v":""}]
[null,{"$f":"PlanifierJour","v":""},{"$f":"TotauxHeuresQuotidiennes","v":""}]
[null,{"$f":"PlanifierJour","v":""},{"$f":"TotauxHeuresQuotidiennes","v":""}]
[null,{"$f":"PlanifierJour","v":"2016-08-05"},{"$f":"TotauxHeuresQuotidiennes","v":0},1,null,"auditions orgues",0,null,null,1,null,"enquète eco musée "]
[null,{"$f":"PlanifierJour","v":""},{"$f":"TotauxHeuresQuotidiennes","v":""},null,null,null,null,null,null,null,null,"lac annecy"]
[null,{"$f":"PlanifierJour","v":""},{"$f":"TotauxHeuresQuotidiennes","v":""}]
[null,{"$f":"PlanifierJour","v":""},{"$f":"TotauxHeuresQuotidiennes","v":""}]
[null,{"$f":"PlanifierJour","v":""},{"$f":"TotauxHeuresQuotidiennes","v":""}]
[null,{"$f":"PlanifierJour","v":"2016-08-06"},{"$f":"TotauxHeuresQuotidiennes","v":0},1,null,"avantages garde à dom",1,null,"offre d'emploi",1,null,"avantages garde d'enfants à dom",1,null,"avantages garde d'enfants",0]
[null,{"$f":"PlanifierJour","v":""},{"$f":"TotauxHeuresQuotidiennes","v":""},null,null,"enfants"]
[null,{"$f":"PlanifierJour","v":""},{"$f":"TotauxHeuresQuotidiennes","v":""},null,null,null,null,null,null,null,null,"parents",null,null,"enfants"]
[null,{"$f":"PlanifierJour","v":""},{"$f":"TotauxHeuresQuotidiennes","v":""}]
[null,{"$f":"PlanifierJour","v":""},{"$f":"TotauxHeuresQuotidiennes","v":""}]
[null,{"$f":"PlanifierJour","v":"2016-08-07"},{"$f":"TotauxHeuresQuotidiennes","v":0},1,null,"garde d'enfants handi",1,null,"citation: enfants être en construction",1,null,"journée mondiale de",1,null,"recherche nounou"]
[null,{"$f":"PlanifierJour","v":""},{"$f":"TotauxHeuresQuotidiennes","v":""},null,null,null,null,null,null,null,null,"l'éducation citation",null,null,"rentrée"]
[null,{"$f":"PlanifierJour","v":""},{"$f":"TotauxHeuresQuotidiennes","v":""},null,null,null,null,null,null,null,null,"de mandela."]
[null,{"$f":"PlanifierJour","v":""},{"$f":"TotauxHeuresQuotidiennes","v":""}]
[null,{"$f":"PlanifierJour","v":""},{"$f":"TotauxHeuresQuotidiennes","v":""}]
[null,{"$f":"PlanifierJour","v":""},{"$f":"TotauxHeuresQuotidiennes","v":""}]
[null,{"$f":"PlanifierJour","v":""},{"$f":"TotauxHeuresQuotidiennes","v":""},null,null,"Réserve",null,null,"Journées internationales"]
[null,{"$f":"PlanifierJour","v":""},{"$f":"TotauxHeuresQuotidiennes","v":""}]
[null,{"$f":"PlanifierJour","v":""},{"$f":"TotauxHeuresQuotidiennes","v":""}]
[null,{"$f":"PlanifierJour","v":""},{"$f":"TotauxHeuresQuotidiennes","v":""}]
[null,{"$f":"PlanifierJour","v":""},{"$f":"TotauxHeuresQuotidiennes","v":""}]
[null,{"$f":"PlanifierJour","v":""},{"$f":"TotauxHeuresQuotidiennes","v":""}]
[null,{"$f":"PlanifierJour","v":""},{"$f":"TotauxHeuresQuotidiennes","v":""}]
[null,{"$f":"PlanifierJour","v":""},{"$f":"TotauxHeuresQuotidiennes","v":""}]
[null,{"$f":"PlanifierJour","v":""},{"$f":"TotauxHeuresQuotidiennes","v":""}]
[null,{"$f":"PlanifierJour","v":""},{"$f":"TotauxHeuresQuotidiennes","v":""}]
[null,{"$f":"PlanifierJour","v":""},{"$f":"TotauxHeuresQuotidiennes","v":""}]
[null,{"$f":"PlanifierJour","v":""},{"$f":"TotauxHeuresQuotidiennes","v":""}]
[null,{"$f":"PlanifierJour","v":""},{"$f":"TotauxHeuresQuotidiennes","v":""}]
[null,{"$f":"PlanifierJour","v":""},{"$f":"TotauxHeuresQuotidiennes","v":""}]
[null,{"$f":"PlanifierJour","v":""},{"$f":"TotauxHeuresQuotidiennes","v":""}]
[null,{"$f":"PlanifierJour","v":""},{"$f":"TotauxHeuresQuotidiennes","v":""}]
[null,{"$f":"PlanifierJour","v":""},{"$f":"TotauxHeuresQuotidiennes","v":""}]
[null,{"$f":"PlanifierJour","v":""},{"$f":"TotauxHeuresQuotidiennes","v":""}]
[null,{"$f":"PlanifierJour","v":""},{"$f":"TotauxHeuresQuotidiennes","v":""}]
[null,{"$f":"PlanifierJour","v":""},{"$f":"TotauxHeuresQuotidiennes","v":""}]
[null,{"$f":"PlanifierJour","v":""},{"$f":"TotauxHeuresQuotidiennes","v":""}]
[null,{"$f":"PlanifierJour","v":""},{"$f":"TotauxHeuresQuotidiennes","v":""}]
[null,{"$f":"PlanifierJour","v":""},{"$f":"TotauxHeuresQuotidiennes","v":""}]
[null,{"$f":"PlanifierJour","v":""},{"$f":"TotauxHeuresQuotidiennes","v":""}]
[null,{"$f":"PlanifierJour","v":""},{"$f":"TotauxHeuresQuotidiennes","v":""}]
[null,{"$f":"PlanifierJour","v":""},{"$f":"TotauxHeuresQuotidiennes","v":""}]
[null,{"$f":"PlanifierJour","v":""},{"$f":"TotauxHeuresQuotidiennes","v":""}]
[null,{"$f":"PlanifierJour","v":""},{"$f":"TotauxHeuresQuotidiennes","v":""}]
[null,{"$f":"PlanifierJour","v":""},{"$f":"TotauxHeuresQuotidiennes","v":""}]
[null,{"$f":"PlanifierJour","v":""},{"$f":"TotauxHeuresQuotidiennes","v":""}]
[null,{"$f":"PlanifierJour","v":""},{"$f":"TotauxHeuresQuotidiennes","v":""}]
[null,{"$f":"PlanifierJour","v":""},{"$f":"TotauxHeuresQuotidiennes","v":""}]
[null,{"$f":"PlanifierJour","v":""},{"$f":"TotauxHeuresQuotidiennes","v":""}]
[null,{"$f":"PlanifierJour","v":""},{"$f":"TotauxHeuresQuotidiennes","v":""}]
[null,{"$f":"PlanifierJour","v":""},{"$f":"TotauxHeuresQuotidiennes","v":""}]
[null,{"$f":"PlanifierJour","v":""},{"$f":"TotauxHeuresQuotidiennes","v":""}]
[null,{"$f":"PlanifierJour","v":""},{"$f":"TotauxHeuresQuotidiennes","v":""}]
[null,{"$f":"PlanifierJour","v":""},{"$f":"TotauxHeuresQuotidiennes","v":""}]
[null,{"$f":"PlanifierJour","v":""},{"$f":"TotauxHeuresQuotidiennes","v":""}]
[null,{"$f":"PlanifierJour","v":""},{"$f":"TotauxHeuresQuotidiennes","v":""}]
[null,{"$f":"PlanifierJour","v":""},{"$f":"TotauxHeuresQuotidiennes","v":""}]
[null,{"$f":"PlanifierJour","v":""},{"$f":"TotauxHeuresQuotidiennes","v":""}]
[null,{"$f":"PlanifierJour","v":""},{"$f":"TotauxHeuresQuotidiennes","v":""}]
[null,{"$f":"PlanifierJour","v":""},{"$f":"TotauxHeuresQuotidiennes","v":""}]
[null,{"$f":"PlanifierJour","v":""},{"$f":"TotauxHeuresQuotidiennes","v":""}]
[null,{"$f":"PlanifierJour","v":""},{"$f":"TotauxHeuresQuotidiennes","v":""}]
[null,{"$f":"PlanifierJour","v":""},{"$f":"TotauxHeuresQuotidiennes","v":""}]
[null,{"$f":"PlanifierJour","v":""},{"$f":"TotauxHeuresQuotidiennes","v":""}]
[null,{"$f":"PlanifierJour","v":""},{"$f":"TotauxHeuresQuotidiennes","v":""}]
[null,{"$f":"PlanifierJour","v":""},{"$f":"TotauxHeuresQuotidiennes","v":""}]
[null,{"$f":"PlanifierJour","v":""},{"$f":"TotauxHeuresQuotidiennes","v":""}]
[null,{"$f":"PlanifierJour","v":""},{"$f":"TotauxHeuresQuotidiennes","v":""}]
[null,{"$f":"PlanifierJour","v":""},{"$f":"TotauxHeuresQuotidiennes","v":""}]
[null,{"$f":"PlanifierJour","v":""},{"$f":"TotauxHeuresQuotidiennes","v":""}]
[null,{"$f":"PlanifierJour","v":""},{"$f":"TotauxHeuresQuotidiennes","v":""}]
[null,{"$f":"PlanifierJour","v":""},{"$f":"TotauxHeuresQuotidiennes","v":""}]
[null,{"$f":"PlanifierJour","v":""},{"$f":"TotauxHeuresQuotidiennes","v":""}]
[null,{"$f":"PlanifierJour","v":""},{"$f":"TotauxHeuresQuotidiennes","v":""}]
[null,{"$f":"PlanifierJour","v":""},{"$f":"TotauxHeuresQuotidiennes","v":""}]
[null,{"$f":"PlanifierJour","v":""},{"$f":"TotauxHeuresQuotidiennes","v":""}]
[null,{"$f":"PlanifierJour","v":""},{"$f":"TotauxHeuresQuotidiennes","v":""}]

{"sheet":"Aout 08","index":23,"n_rows":103,"n_cols":24,"rows_kept":103,"cut":false,"hidden":false,"merged":[[16,8,17,8],[16,11,20,11],[22,5,25,5],[36,11,37,11],[3,21,3,23],[11,5,12,5],[11,8,12,8],[11,13,11,14],[3,3,3,5],[3,6,3,8],[3,9,3,11],[3,12,3,14],[3,15,3,17],[3,18,3,20]]}
[]
[null,"Social networks"]
[]
[null,"Entrez la date de début","Totaux","Facebook Chambéry",null,null,"Twitter Chambéry",null,null,"FB Annecy",null,null,"Twitter Annecy",null,null,"Viadeo FS",null,null,"Linkedin FS",null,null,"FB Skyline"]
[null,"2016-08-08",null,null,null,"THEME",null,null,"THEME",null,null,"THEME",null,null,"THEME",null,null,"THEME",null,null,"THEME",null,null,"THEME"]
[]
[null,{"$f":"PlanifierJour","v":"2016-08-08"},{"$f":"TotauxHeuresQuotidiennes","v":1},1,1,"d’où vient la méthode",0,null,null,0,null,"Astuces",1,null,"jeux olympiques",null,null,null,0]
[null,{"$f":"PlanifierJour","v":""},{"$f":"TotauxHeuresQuotidiennes","v":""},null,null,"montessori?"]
[null,{"$f":"PlanifierJour","v":""},{"$f":"TotauxHeuresQuotidiennes","v":""}]
[null,{"$f":"PlanifierJour","v":""},{"$f":"TotauxHeuresQuotidiennes","v":""}]
[null,{"$f":"PlanifierJour","v":""},{"$f":"TotauxHeuresQuotidiennes","v":""}]
[null,{"$f":"PlanifierJour","v":"2016-08-09"},{"$f":"TotauxHeuresQuotidiennes","v":0},1,null,"motricité globale",0,null,null,0,null,"Vidéo",0]
[null,{"$f":"PlanifierJour","v":""},{"$f":"TotauxHeuresQuotidiennes","v":""}]
[null,{"$f":"PlanifierJour","v":""},{"$f":"TotauxHeuresQuotidiennes","v":""}]
[null,{"$f":"PlanifierJour","v":""},{"$f":"TotauxHeuresQuotidiennes","v":""}]
[null,{"$f":"PlanifierJour","v":""},{"$f":"TotauxHeuresQuotidiennes","v":""}]
[null,{"$f":"PlanifierJour","v":"2016-08-10"},{"$f":"TotauxHeuresQuotidiennes","v":0},0,null,"Offre d'emploi",1,null,"jeux olympiques",0,null,"Offre d'emploi",0]
[null,{"$f":"PlanifierJour","v":""},{"$f":"TotauxHeuresQuotidiennes","v":""}]
[null,{"$f":"PlanifierJour","v":""},{"$f":"TotauxHeuresQuotidiennes","v":""}]
[null,{"$f":"PlanifierJour","v":""},{"$f":"TotauxHeuresQuotidiennes","v":""}]
[null,{"$f":"PlanifierJour","v":""},{"$f":"TotauxHeuresQuotidiennes","v":""}]
[null,{"$f":"PlanifierJour","v":"2016-08-11"},{"$f":"TotauxHeuresQuotidiennes","v":0},1,null,"La citation du jeudi",0,null,null,1,null,"20 activ occup ",0]
[null,{"$f":"PlanifierJour","v":""},{"$f":"TotauxHeuresQuotidiennes","v":""},null,null,"les enfants ne doivent pas souffir des problèmes des grands"]
[null,{"$f":"PlanifierJour","v":""},{"$f":"TotauxHeuresQuotidiennes","v":""},null,null,null,null,null,null,null,null,"enfnats sans se ruiner"]
[null,{"$f":"PlanifierJour","v":""},{"$f":"TotauxHeuresQuotidiennes","v":""}]
[null,{"$f":"PlanifierJour","v":""},{"$f":"TotauxHeuresQuotidiennes","v":""}]
[null,{"$f":"PlanifierJour","v":"2016-08-12"},{"$f":"TotauxHeuresQuotidiennes","v":0},0,null,"Agenda",0,null,null,0,null,"Agenda"]
[null,{"$f":"PlanifierJour","v":""},{"$f":"TotauxHeuresQuotidiennes","v":""}]
[null,{"$f":"PlanifierJour","v":""},{"$f":"TotauxHeuresQuotidiennes","v":""}]
[null,{"$f":"PlanifierJour","v":""},{"$f":"TotauxHeuresQuotidiennes","v":""}]
[null,{"$f":"PlanifierJour","v":""},{"$f":"TotauxHeuresQuotidiennes","v":""}]
[null,{"$f":"PlanifierJour","v":"2016-08-13"},{"$f":"TotauxHeuresQuotidiennes","v":0},1,null,"chambéry et annecy ",0,null,null,1,null,"chambéry et annecy ",0,null,null,0]
[null,{"$f":"PlanifierJour","v":""},{"$f":"TotauxHeuresQuotidiennes","v":""},null,null,"sont liés.",null,null,null,null,null,"sont liés."]
[null,{"$f":"PlanifierJour","v":""},{"$f":"TotauxHeuresQuotidiennes","v":""}]
[null,{"$f":"PlanifierJour","v":""},{"$f":"TotauxHeuresQuotidiennes","v":""}]
[null,{"$f":"PlanifierJour","v":""},{"$f":"TotauxHeuresQuotidiennes","v":""}]
[null,{"$f":"PlanifierJour","v":"2016-08-14"},{"$f":"TotauxHeuresQuotidiennes","v":0},1,null,"taches en fonction",0,null,null,1,null,"motricité globale",0]
[null,{"$f":"PlanifierJour","v":""},{"$f":"TotauxHeuresQuotidiennes","v":""},null,null,"de l'age des enfants"]
[null,{"$f":"PlanifierJour","v":""},{"$f":"TotauxHeuresQuotidiennes","v":""}]
[null,{"$f":"PlanifierJour","v":""},{"$f":"TotauxHeuresQuotidiennes","v":""}]
[null,{"$f":"PlanifierJour","v":""},{"$f":"TotauxHeuresQuotidiennes","v":""}]
[null,{"$f":"PlanifierJour","v":""},{"$f":"TotauxHeuresQuotidiennes","v":""}]
[null,{"$f":"PlanifierJour","v":""},{"$f":"TotauxHeuresQuotidiennes","v":""},null,null,"Réserve",null,null,"Journées internationales"]
[null,{"$f":"PlanifierJour","v":""},{"$f":"TotauxHeuresQuotidiennes","v":""}]
[null,{"$f":"PlanifierJour","v":""},{"$f":"TotauxHeuresQuotidiennes","v":""}]
[null,{"$f":"PlanifierJour","v":""},{"$f":"TotauxHeuresQuotidiennes","v":""}]
[null,{"$f":"PlanifierJour","v":""},{"$f":"TotauxHeuresQuotidiennes","v":""}]
[null,{"$f":"PlanifierJour","v":""},{"$f":"TotauxHeuresQuotidiennes","v":""}]
[null,{"$f":"PlanifierJour","v":""},{"$f":"TotauxHeuresQuotidiennes","v":""}]
[null,{"$f":"PlanifierJour","v":""},{"$f":"TotauxHeuresQuotidiennes","v":""}]
[null,{"$f":"PlanifierJour","v":""},{"$f":"TotauxHeuresQuotidiennes","v":""}]
[null,{"$f":"PlanifierJour","v":""},{"$f":"TotauxHeuresQuotidiennes","v":""}]
[null,{"$f":"PlanifierJour","v":""},{"$f":"TotauxHeuresQuotidiennes","v":""}]
[null,{"$f":"PlanifierJour","v":""},{"$f":"TotauxHeuresQuotidiennes","v":""}]
[null,{"$f":"PlanifierJour","v":""},{"$f":"TotauxHeuresQuotidiennes","v":""}]
[null,{"$f":"PlanifierJour","v":""},{"$f":"TotauxHeuresQuotidiennes","v":""}]
[null,{"$f":"PlanifierJour","v":""},{"$f":"TotauxHeuresQuotidiennes","v":""}]
[null,{"$f":"PlanifierJour","v":""},{"$f":"TotauxHeuresQuotidiennes","v":""}]
[null,{"$f":"PlanifierJour","v":""},{"$f":"TotauxHeuresQuotidiennes","v":""}]
[null,{"$f":"PlanifierJour","v":""},{"$f":"TotauxHeuresQuotidiennes","v":""}]
[null,{"$f":"PlanifierJour","v":""},{"$f":"TotauxHeuresQuotidiennes","v":""}]
[null,{"$f":"PlanifierJour","v":""},{"$f":"TotauxHeuresQuotidiennes","v":""}]
[null,{"$f":"PlanifierJour","v":""},{"$f":"TotauxHeuresQuotidiennes","v":""}]
[null,{"$f":"PlanifierJour","v":""},{"$f":"TotauxHeuresQuotidiennes","v":""}]
[null,{"$f":"PlanifierJour","v":""},{"$f":"TotauxHeuresQuotidiennes","v":""}]
[null,{"$f":"PlanifierJour","v":""},{"$f":"TotauxHeuresQuotidiennes","v":""}]
[null,{"$f":"PlanifierJour","v":""},{"$f":"TotauxHeuresQuotidiennes","v":""}]
[null,{"$f":"PlanifierJour","v":""},{"$f":"TotauxHeuresQuotidiennes","v":""}]
[null,{"$f":"PlanifierJour","v":""},{"$f":"TotauxHeuresQuotidiennes","v":""}]
[null,{"$f":"PlanifierJour","v":""},{"$f":"TotauxHeuresQuotidiennes","v":""}]
[null,{"$f":"PlanifierJour","v":""},{"$f":"TotauxHeuresQuotidiennes","v":""}]
[null,{"$f":"PlanifierJour","v":""},{"$f":"TotauxHeuresQuotidiennes","v":""}]
[null,{"$f":"PlanifierJour","v":""},{"$f":"TotauxHeuresQuotidiennes","v":""}]
[null,{"$f":"PlanifierJour","v":""},{"$f":"TotauxHeuresQuotidiennes","v":""}]
[null,{"$f":"PlanifierJour","v":""},{"$f":"TotauxHeuresQuotidiennes","v":""}]
[null,{"$f":"PlanifierJour","v":""},{"$f":"TotauxHeuresQuotidiennes","v":""}]
[null,{"$f":"PlanifierJour","v":""},{"$f":"TotauxHeuresQuotidiennes","v":""}]
[null,{"$f":"PlanifierJour","v":""},{"$f":"TotauxHeuresQuotidiennes","v":""}]
[null,{"$f":"PlanifierJour","v":""},{"$f":"TotauxHeuresQuotidiennes","v":""}]
[null,{"$f":"PlanifierJour","v":""},{"$f":"TotauxHeuresQuotidiennes","v":""}]
[null,{"$f":"PlanifierJour","v":""},{"$f":"TotauxHeuresQuotidiennes","v":""}]
[null,{"$f":"PlanifierJour","v":""},{"$f":"TotauxHeuresQuotidiennes","v":""}]
[null,{"$f":"PlanifierJour","v":""},{"$f":"TotauxHeuresQuotidiennes","v":""}]
[null,{"$f":"PlanifierJour","v":""},{"$f":"TotauxHeuresQuotidiennes","v":""}]
[null,{"$f":"PlanifierJour","v":""},{"$f":"TotauxHeuresQuotidiennes","v":""}]
[null,{"$f":"PlanifierJour","v":""},{"$f":"TotauxHeuresQuotidiennes","v":""}]
[null,{"$f":"PlanifierJour","v":""},{"$f":"TotauxHeuresQuotidiennes","v":""}]
[null,{"$f":"PlanifierJour","v":""},{"$f":"TotauxHeuresQuotidiennes","v":""}]
[null,{"$f":"PlanifierJour","v":""},{"$f":"TotauxHeuresQuotidiennes","v":""}]
[null,{"$f":"PlanifierJour","v":""},{"$f":"TotauxHeuresQuotidiennes","v":""}]
[null,{"$f":"PlanifierJour","v":""},{"$f":"TotauxHeuresQuotidiennes","v":""}]
[null,{"$f":"PlanifierJour","v":""},{"$f":"TotauxHeuresQuotidiennes","v":""}]
[null,{"$f":"PlanifierJour","v":""},{"$f":"TotauxHeuresQuotidiennes","v":""}]
[null,{"$f":"PlanifierJour","v":""},{"$f":"TotauxHeuresQuotidiennes","v":""}]
[null,{"$f":"PlanifierJour","v":""},{"$f":"TotauxHeuresQuotidiennes","v":""}]
[null,{"$f":"PlanifierJour","v":""},{"$f":"TotauxHeuresQuotidiennes","v":""}]
[null,{"$f":"PlanifierJour","v":""},{"$f":"TotauxHeuresQuotidiennes","v":""}]
[null,{"$f":"PlanifierJour","v":""},{"$f":"TotauxHeuresQuotidiennes","v":""}]
[null,{"$f":"PlanifierJour","v":""},{"$f":"TotauxHeuresQuotidiennes","v":""}]
[null,{"$f":"PlanifierJour","v":""},{"$f":"TotauxHeuresQuotidiennes","v":""}]
[null,{"$f":"PlanifierJour","v":""},{"$f":"TotauxHeuresQuotidiennes","v":""}]
[null,{"$f":"PlanifierJour","v":""},{"$f":"TotauxHeuresQuotidiennes","v":""}]
[null,{"$f":"PlanifierJour","v":""},{"$f":"TotauxHeuresQuotidiennes","v":""}]

{"sheet":"Aout 15","index":24,"n_rows":103,"n_cols":24,"rows_kept":103,"cut":false,"hidden":false,"merged":[[3,3,3,5],[3,6,3,8],[3,9,3,11],[3,12,3,14],[3,15,3,17],[16,8,17,8],[16,11,20,11],[3,21,3,23],[6,8,7,8],[11,8,12,8],[11,13,11,14],[3,18,3,20]]}
[]
[null,"Social networks"]
[]
[null,"Entrez la date de début","Totaux","Facebook Chambéry",null,null,"Twitter Chambéry",null,null,"FB Annecy",null,null,"Twitter Annecy",null,null,"Viadeo FS",null,null,"Linkedin FS",null,null,"FB Skyline"]
[null,"2016-08-15",null,null,null,"THEME",null,null,"THEME",null,null,"THEME",null,null,"THEME",null,null,"THEME",null,null,"THEME",null,null,"THEME"]
[]
[null,{"$f":"PlanifierJour","v":"2016-08-15"},{"$f":"TotauxHeuresQuotidiennes","v":0},1,null,"astuce",1,null,"recrutement septembre",1,null,"cahier de comptines",1,null,"recrutement étudiants",1,null,"recrutement rentrée",1,null,"recrutement rentrée"]
[null,{"$f":"PlanifierJour","v":""},{"$f":"TotauxHeuresQuotidiennes","v":""},null,null,"fs"]
[null,{"$f":"PlanifierJour","v":""},{"$f":"TotauxHeuresQuotidiennes","v":""},null,null,"tipi"]
[null,{"$f":"PlanifierJour","v":""},{"$f":"TotauxHeuresQuotidiennes","v":""}]
[null,{"$f":"PlanifierJour","v":""},{"$f":"TotauxHeuresQuotidiennes","v":""}]
[null,{"$f":"PlanifierJour","v":"2016-08-16"},{"$f":"TotauxHeuresQuotidiennes","v":0},1,null,"vidéo télé 2015",0,null,null,1,null,"offre emploi étudiants",0]
[null,{"$f":"PlanifierJour","v":""},{"$f":"TotauxHeuresQuotidiennes","v":""}]
[null,{"$f":"PlanifierJour","v":""},{"$f":"TotauxHeuresQuotidiennes","v":""}]
[null,{"$f":"PlanifierJour","v":""},{"$f":"TotauxHeuresQuotidiennes","v":""}]
[null,{"$f":"PlanifierJour","v":""},{"$f":"TotauxHeuresQuotidiennes","v":""}]
[null,{"$f":"PlanifierJour","v":"2016-08-17"},{"$f":"TotauxHeuresQuotidiennes","v":0},1,null,"mobiles montessori",1,null,"création boites voyage",1,null,"Offre d'emploi",1,null,"initiation info"]
[null,{"$f":"PlanifierJour","v":""},{"$f":"TotauxHeuresQuotidiennes","v":""}]
[null,{"$f":"PlanifierJour","v":""},{"$f":"TotauxHeuresQuotidiennes","v":""}]
[null,{"$f":"PlanifierJour","v":""},{"$f":"TotauxHeuresQuotidiennes","v":""}]
[null,{"$f":"PlanifierJour","v":""},{"$f":"TotauxHeuresQuotidiennes","v":""}]
[null,{"$f":"PlanifierJour","v":"2016-08-18"},{"$f":"TotauxHeuresQuotidiennes","v":0},1,null,"offre emploi",0,null,null,1,null,"La citation du jeudi",0]
[null,{"$f":"PlanifierJour","v":""},{"$f":"TotauxHeuresQuotidiennes","v":""},null,null,null,null,null,null,null,null,"encouragement"]
[null,{"$f":"PlanifierJour","v":""},{"$f":"TotauxHeuresQuotidiennes","v":""}]
[null,{"$f":"PlanifierJour","v":""},{"$f":"TotauxHeuresQuotidiennes","v":""}]
[null,{"$f":"PlanifierJour","v":""},{"$f":"TotauxHeuresQuotidiennes","v":""}]
[null,{"$f":"PlanifierJour","v":"2016-08-19"},{"$f":"TotauxHeuresQuotidiennes","v":0},1,null,"Agenda",1,null,"recrutement annecy",1,null,"agenda",1,null,"recrutement annecy"]
[null,{"$f":"PlanifierJour","v":""},{"$f":"TotauxHeuresQuotidiennes","v":""},null,null,"minuscule",null,null,"chambéry",null,null,"festiv au bonheur des",null,null,"chambéry"]
[null,{"$f":"PlanifierJour","v":""},{"$f":"TotauxHeuresQuotidiennes","v":""},null,null,null,null,null,null,null,null,"momes"]
[null,{"$f":"PlanifierJour","v":""},{"$f":"TotauxHeuresQuotidiennes","v":""}]
[null,{"$f":"PlanifierJour","v":""},{"$f":"TotauxHeuresQuotidiennes","v":""}]
[null,{"$f":"PlanifierJour","v":"2016-08-20"},{"$f":"TotauxHeuresQuotidiennes","v":0},1,null,"offre emploi étudiants",0,null,null,1,null,"recherche emploi",0,null,null,0]
[null,{"$f":"PlanifierJour","v":""},{"$f":"TotauxHeuresQuotidiennes","v":""},null,null,null,null,null,null,null,null,"alex"]
[null,{"$f":"PlanifierJour","v":""},{"$f":"TotauxHeuresQuotidiennes","v":""}]
[null,{"$f":"PlanifierJour","v":""},{"$f":"TotauxHeuresQuotidiennes","v":""}]
[null,{"$f":"PlanifierJour","v":""},{"$f":"TotauxHeuresQuotidiennes","v":""}]
[null,{"$f":"PlanifierJour","v":"2016-08-21"},{"$f":"TotauxHeuresQuotidiennes","v":0},1,null,"témoignage inter metz",1,null,"Comment bébé voit il?",1,null,"maths dominos",1,null,"mobile de gobbi"]
[null,{"$f":"PlanifierJour","v":""},{"$f":"TotauxHeuresQuotidiennes","v":""}]
[null,{"$f":"PlanifierJour","v":""},{"$f":"TotauxHeuresQuotidiennes","v":""}]
[null,{"$f":"PlanifierJour","v":""},{"$f":"TotauxHeuresQuotidiennes","v":""}]
[null,{"$f":"PlanifierJour","v":""},{"$f":"TotauxHeuresQuotidiennes","v":""}]
[null,{"$f":"PlanifierJour","v":""},{"$f":"TotauxHeuresQuotidiennes","v":""}]
[null,{"$f":"PlanifierJour","v":""},{"$f":"TotauxHeuresQuotidiennes","v":""},null,null,"Réserve",null,null,"Journées internationales"]
[null,{"$f":"PlanifierJour","v":""},{"$f":"TotauxHeuresQuotidiennes","v":""}]
[null,{"$f":"PlanifierJour","v":""},{"$f":"TotauxHeuresQuotidiennes","v":""}]
[null,{"$f":"PlanifierJour","v":""},{"$f":"TotauxHeuresQuotidiennes","v":""}]
[null,{"$f":"PlanifierJour","v":""},{"$f":"TotauxHeuresQuotidiennes","v":""}]
[null,{"$f":"PlanifierJour","v":""},{"$f":"TotauxHeuresQuotidiennes","v":""}]
[null,{"$f":"PlanifierJour","v":""},{"$f":"TotauxHeuresQuotidiennes","v":""}]
[null,{"$f":"PlanifierJour","v":""},{"$f":"TotauxHeuresQuotidiennes","v":""}]
[null,{"$f":"PlanifierJour","v":""},{"$f":"TotauxHeuresQuotidiennes","v":""}]
[null,{"$f":"PlanifierJour","v":""},{"$f":"TotauxHeuresQuotidiennes","v":""}]
[null,{"$f":"PlanifierJour","v":""},{"$f":"TotauxHeuresQuotidiennes","v":""}]
[null,{"$f":"PlanifierJour","v":""},{"$f":"TotauxHeuresQuotidiennes","v":""}]
[null,{"$f":"PlanifierJour","v":""},{"$f":"TotauxHeuresQuotidiennes","v":""}]
[null,{"$f":"PlanifierJour","v":""},{"$f":"TotauxHeuresQuotidiennes","v":""}]
[null,{"$f":"PlanifierJour","v":""},{"$f":"TotauxHeuresQuotidiennes","v":""}]
[null,{"$f":"PlanifierJour","v":""},{"$f":"TotauxHeuresQuotidiennes","v":""}]
[null,{"$f":"PlanifierJour","v":""},{"$f":"TotauxHeuresQuotidiennes","v":""}]
[null,{"$f":"PlanifierJour","v":""},{"$f":"TotauxHeuresQuotidiennes","v":""}]
[null,{"$f":"PlanifierJour","v":""},{"$f":"TotauxHeuresQuotidiennes","v":""}]
[null,{"$f":"PlanifierJour","v":""},{"$f":"TotauxHeuresQuotidiennes","v":""}]
[null,{"$f":"PlanifierJour","v":""},{"$f":"TotauxHeuresQuotidiennes","v":""}]
[null,{"$f":"PlanifierJour","v":""},{"$f":"TotauxHeuresQuotidiennes","v":""}]
[null,{"$f":"PlanifierJour","v":""},{"$f":"TotauxHeuresQuotidiennes","v":""}]
[null,{"$f":"PlanifierJour","v":""},{"$f":"TotauxHeuresQuotidiennes","v":""}]
[null,{"$f":"PlanifierJour","v":""},{"$f":"TotauxHeuresQuotidiennes","v":""}]
[null,{"$f":"PlanifierJour","v":""},{"$f":"TotauxHeuresQuotidiennes","v":""}]
[null,{"$f":"PlanifierJour","v":""},{"$f":"TotauxHeuresQuotidiennes","v":""}]
[null,{"$f":"PlanifierJour","v":""},{"$f":"TotauxHeuresQuotidiennes","v":""}]
[null,{"$f":"PlanifierJour","v":""},{"$f":"TotauxHeuresQuotidiennes","v":""}]
[null,{"$f":"PlanifierJour","v":""},{"$f":"TotauxHeuresQuotidiennes","v":""}]
[null,{"$f":"PlanifierJour","v":""},{"$f":"TotauxHeuresQuotidiennes","v":""}]
[null,{"$f":"PlanifierJour","v":""},{"$f":"TotauxHeuresQuotidiennes","v":""}]
[null,{"$f":"PlanifierJour","v":""},{"$f":"TotauxHeuresQuotidiennes","v":""}]
[null,{"$f":"PlanifierJour","v":""},{"$f":"TotauxHeuresQuotidiennes","v":""}]
[null,{"$f":"PlanifierJour","v":""},{"$f":"TotauxHeuresQuotidiennes","v":""}]
[null,{"$f":"PlanifierJour","v":""},{"$f":"TotauxHeuresQuotidiennes","v":""}]
[null,{"$f":"PlanifierJour","v":""},{"$f":"TotauxHeuresQuotidiennes","v":""}]
[null,{"$f":"PlanifierJour","v":""},{"$f":"TotauxHeuresQuotidiennes","v":""}]
[null,{"$f":"PlanifierJour","v":""},{"$f":"TotauxHeuresQuotidiennes","v":""}]
[null,{"$f":"PlanifierJour","v":""},{"$f":"TotauxHeuresQuotidiennes","v":""}]
[null,{"$f":"PlanifierJour","v":""},{"$f":"TotauxHeuresQuotidiennes","v":""}]
[null,{"$f":"PlanifierJour","v":""},{"$f":"TotauxHeuresQuotidiennes","v":""}]
[null,{"$f":"PlanifierJour","v":""},{"$f":"TotauxHeuresQuotidiennes","v":""}]
[null,{"$f":"PlanifierJour","v":""},{"$f":"TotauxHeuresQuotidiennes","v":""}]
[null,{"$f":"PlanifierJour","v":""},{"$f":"TotauxHeuresQuotidiennes","v":""}]
[null,{"$f":"PlanifierJour","v":""},{"$f":"TotauxHeuresQuotidiennes","v":""}]
[null,{"$f":"PlanifierJour","v":""},{"$f":"TotauxHeuresQuotidiennes","v":""}]
[null,{"$f":"PlanifierJour","v":""},{"$f":"TotauxHeuresQuotidiennes","v":""}]
[null,{"$f":"PlanifierJour","v":""},{"$f":"TotauxHeuresQuotidiennes","v":""}]
[null,{"$f":"PlanifierJour","v":""},{"$f":"TotauxHeuresQuotidiennes","v":""}]
[null,{"$f":"PlanifierJour","v":""},{"$f":"TotauxHeuresQuotidiennes","v":""}]
[null,{"$f":"PlanifierJour","v":""},{"$f":"TotauxHeuresQuotidiennes","v":""}]
[null,{"$f":"PlanifierJour","v":""},{"$f":"TotauxHeuresQuotidiennes","v":""}]
[null,{"$f":"PlanifierJour","v":""},{"$f":"TotauxHeuresQuotidiennes","v":""}]
[null,{"$f":"PlanifierJour","v":""},{"$f":"TotauxHeuresQuotidiennes","v":""}]
[null,{"$f":"PlanifierJour","v":""},{"$f":"TotauxHeuresQuotidiennes","v":""}]
[null,{"$f":"PlanifierJour","v":""},{"$f":"TotauxHeuresQuotidiennes","v":""}]
[null,{"$f":"PlanifierJour","v":""},{"$f":"TotauxHeuresQuotidiennes","v":""}]
[null,{"$f":"PlanifierJour","v":""},{"$f":"TotauxHeuresQuotidiennes","v":""}]
[null,{"$f":"PlanifierJour","v":""},{"$f":"TotauxHeuresQuotidiennes","v":""}]
[null,{"$f":"PlanifierJour","v":""},{"$f":"TotauxHeuresQuotidiennes","v":""}]

{"sheet":"Aout 22","index":25,"n_rows":103,"n_cols":24,"rows_kept":103,"cut":false,"hidden":false,"merged":[[36,11,37,11],[16,14,17,14],[21,11,22,11],[3,21,3,23],[11,5,12,5],[6,8,7,8],[11,13,11,14],[16,8,17,8],[31,11,35,11],[3,3,3,5],[3,6,3,8],[3,9,3,11],[3,12,3,14],[3,15,3,17],[3,18,3,20]]}
[]
[null,"Social networks"]
[]
[null,"Entrez la date de début","Totaux","Facebook Chambéry",null,null,"Twitter Chambéry",null,null,"FB Annecy",null,null,"Twitter Annecy",null,null,"Viadeo FS",null,null,"Linkedin FS",null,null,"FB Skyline"]
[null,"2016-08-22",null,null,null,"THEME",null,null,"THEME",null,null,"THEME",null,null,"THEME",null,null,"THEME",null,null,"THEME",null,null,"THEME"]
[]
[null,{"$f":"PlanifierJour","v":"2016-08-22"},{"$f":"TotauxHeuresQuotidiennes","v":0},1,null,"cahier de comptines",0,null,"recrutement septembre",1,null,"tipi",1,null,"meunier tu dors",null,null,null,0]
[null,{"$f":"PlanifierJour","v":""},{"$f":"TotauxHeuresQuotidiennes","v":""},null,null,null,1]
[null,{"$f":"PlanifierJour","v":""},{"$f":"TotauxHeuresQuotidiennes","v":""}]
[null,{"$f":"PlanifierJour","v":""},{"$f":"TotauxHeuresQuotidiennes","v":""}]
[null,{"$f":"PlanifierJour","v":""},{"$f":"TotauxHeuresQuotidiennes","v":""}]
[null,{"$f":"PlanifierJour","v":"2016-08-23"},{"$f":"TotauxHeuresQuotidiennes","v":0},1,null,"souris info",0,null,null,1,null,"vidéo télé 2015",0]
[null,{"$f":"PlanifierJour","v":""},{"$f":"TotauxHeuresQuotidiennes","v":""}]
[null,{"$f":"PlanifierJour","v":""},{"$f":"TotauxHeuresQuotidiennes","v":""}]
[null,{"$f":"PlanifierJour","v":""},{"$f":"TotauxHeuresQuotidiennes","v":""}]
[null,{"$f":"PlanifierJour","v":""},{"$f":"TotauxHeuresQuotidiennes","v":""}]
[null,{"$f":"PlanifierJour","v":"2016-08-24"},{"$f":"TotauxHeuresQuotidiennes","v":0},1,null,"Offre d'emploi",1,null,"initiation informatique",1,null,"offre d'emploi talloires",0,null,"recrutement septembre"]
[null,{"$f":"PlanifierJour","v":""},{"$f":"TotauxHeuresQuotidiennes","v":""},null,null,null,null,null,null,null,null,null,1]
[null,{"$f":"PlanifierJour","v":""},{"$f":"TotauxHeuresQuotidiennes","v":""}]
[null,{"$f":"PlanifierJour","v":""},{"$f":"TotauxHeuresQuotidiennes","v":""}]
[null,{"$f":"PlanifierJour","v":""},{"$f":"TotauxHeuresQuotidiennes","v":""}]
[null,{"$f":"PlanifierJour","v":"2016-08-25"},{"$f":"TotauxHeuresQuotidiennes","v":0},1,null,"rentrée",0,null,null,1,null,"mobiles montessori",0]
[null,{"$f":"PlanifierJour","v":""},{"$f":"TotauxHeuresQuotidiennes","v":""},null,null,"courses faites?"]
[null,{"$f":"PlanifierJour","v":""},{"$f":"TotauxHeuresQuotidiennes","v":""}]
[null,{"$f":"PlanifierJour","v":""},{"$f":"TotauxHeuresQuotidiennes","v":""}]
[null,{"$f":"PlanifierJour","v":""},{"$f":"TotauxHeuresQuotidiennes","v":""}]
[null,{"$f":"PlanifierJour","v":"2016-08-26"},{"$f":"TotauxHeuresQuotidiennes","v":0},1,null,"citation ",1,null,"meunier tu dors",1,null,"jeux en prèt",1,null,"alouette"]
[null,{"$f":"PlanifierJour","v":""},{"$f":"TotauxHeuresQuotidiennes","v":""},null,null,"encouragement",null,null,null,null,null,"st sorlin d'arves"]
[null,{"$f":"PlanifierJour","v":""},{"$f":"TotauxHeuresQuotidiennes","v":""}]
[null,{"$f":"PlanifierJour","v":""},{"$f":"TotauxHeuresQuotidiennes","v":""}]
[null,{"$f":"PlanifierJour","v":""},{"$f":"TotauxHeuresQuotidiennes","v":""}]
[null,{"$f":"PlanifierJour","v":"2016-08-27"},{"$f":"TotauxHeuresQuotidiennes","v":0},1,null,"offre d'emploi",0,null,null,1,null,"Offre d'emploi",0,null,null,0]
[null,{"$f":"PlanifierJour","v":""},{"$f":"TotauxHeuresQuotidiennes","v":""},null,null,"trevignin"]
[null,{"$f":"PlanifierJour","v":""},{"$f":"TotauxHeuresQuotidiennes","v":""}]
[null,{"$f":"PlanifierJour","v":""},{"$f":"TotauxHeuresQuotidiennes","v":""}]
[null,{"$f":"PlanifierJour","v":""},{"$f":"TotauxHeuresQuotidiennes","v":""}]
[null,{"$f":"PlanifierJour","v":"2016-08-28"},{"$f":"TotauxHeuresQuotidiennes","v":0},1,null,"paroles",1,null,"recrutement",1,null,"souris info",1,null,"recrutement"]
[null,{"$f":"PlanifierJour","v":""},{"$f":"TotauxHeuresQuotidiennes","v":""},null,null,"meunier tu dors"]
[null,{"$f":"PlanifierJour","v":""},{"$f":"TotauxHeuresQuotidiennes","v":""}]
[null,{"$f":"PlanifierJour","v":""},{"$f":"TotauxHeuresQuotidiennes","v":""}]
[null,{"$f":"PlanifierJour","v":""},{"$f":"TotauxHeuresQuotidiennes","v":""}]
[null,{"$f":"PlanifierJour","v":""},{"$f":"TotauxHeuresQuotidiennes","v":""}]
[null,{"$f":"PlanifierJour","v":""},{"$f":"TotauxHeuresQuotidiennes","v":""},null,null,"Réserve",null,null,"Journées internationales",null,null,null,null,null,"comment bébé voit il?"]
[null,{"$f":"PlanifierJour","v":""},{"$f":"TotauxHeuresQuotidiennes","v":""}]
[null,{"$f":"PlanifierJour","v":""},{"$f":"TotauxHeuresQuotidiennes","v":""}]
[null,{"$f":"PlanifierJour","v":""},{"$f":"TotauxHeuresQuotidiennes","v":""}]
[null,{"$f":"PlanifierJour","v":""},{"$f":"TotauxHeuresQuotidiennes","v":""}]
[null,{"$f":"PlanifierJour","v":""},{"$f":"TotauxHeuresQuotidiennes","v":""}]
[null,{"$f":"PlanifierJour","v":""},{"$f":"TotauxHeuresQuotidiennes","v":""}]
[null,{"$f":"PlanifierJour","v":""},{"$f":"TotauxHeuresQuotidiennes","v":""}]
[null,{"$f":"PlanifierJour","v":""},{"$f":"TotauxHeuresQuotidiennes","v":""}]
[null,{"$f":"PlanifierJour","v":""},{"$f":"TotauxHeuresQuotidiennes","v":""}]
[null,{"$f":"PlanifierJour","v":""},{"$f":"TotauxHeuresQuotidiennes","v":""}]
[null,{"$f":"PlanifierJour","v":""},{"$f":"TotauxHeuresQuotidiennes","v":""}]
[null,{"$f":"PlanifierJour","v":""},{"$f":"TotauxHeuresQuotidiennes","v":""}]
[null,{"$f":"PlanifierJour","v":""},{"$f":"TotauxHeuresQuotidiennes","v":""}]
[null,{"$f":"PlanifierJour","v":""},{"$f":"TotauxHeuresQuotidiennes","v":""}]
[null,{"$f":"PlanifierJour","v":""},{"$f":"TotauxHeuresQuotidiennes","v":""}]
[null,{"$f":"PlanifierJour","v":""},{"$f":"TotauxHeuresQuotidiennes","v":""}]
[null,{"$f":"PlanifierJour","v":""},{"$f":"TotauxHeuresQuotidiennes","v":""}]
[null,{"$f":"PlanifierJour","v":""},{"$f":"TotauxHeuresQuotidiennes","v":""}]
[null,{"$f":"PlanifierJour","v":""},{"$f":"TotauxHeuresQuotidiennes","v":""}]
[null,{"$f":"PlanifierJour","v":""},{"$f":"TotauxHeuresQuotidiennes","v":""}]
[null,{"$f":"PlanifierJour","v":""},{"$f":"TotauxHeuresQuotidiennes","v":""}]
[null,{"$f":"PlanifierJour","v":""},{"$f":"TotauxHeuresQuotidiennes","v":""}]
[null,{"$f":"PlanifierJour","v":""},{"$f":"TotauxHeuresQuotidiennes","v":""}]
[null,{"$f":"PlanifierJour","v":""},{"$f":"TotauxHeuresQuotidiennes","v":""}]
[null,{"$f":"PlanifierJour","v":""},{"$f":"TotauxHeuresQuotidiennes","v":""}]
[null,{"$f":"PlanifierJour","v":""},{"$f":"TotauxHeuresQuotidiennes","v":""}]
[null,{"$f":"PlanifierJour","v":""},{"$f":"TotauxHeuresQuotidiennes","v":""}]
[null,{"$f":"PlanifierJour","v":""},{"$f":"TotauxHeuresQuotidiennes","v":""}]
[null,{"$f":"PlanifierJour","v":""},{"$f":"TotauxHeuresQuotidiennes","v":""}]
[null,{"$f":"PlanifierJour","v":""},{"$f":"TotauxHeuresQuotidiennes","v":""}]
[null,{"$f":"PlanifierJour","v":""},{"$f":"TotauxHeuresQuotidiennes","v":""}]
[null,{"$f":"PlanifierJour","v":""},{"$f":"TotauxHeuresQuotidiennes","v":""}]
[null,{"$f":"PlanifierJour","v":""},{"$f":"TotauxHeuresQuotidiennes","v":""}]
[null,{"$f":"PlanifierJour","v":""},{"$f":"TotauxHeuresQuotidiennes","v":""}]
[null,{"$f":"PlanifierJour","v":""},{"$f":"TotauxHeuresQuotidiennes","v":""}]
[null,{"$f":"PlanifierJour","v":""},{"$f":"TotauxHeuresQuotidiennes","v":""}]
[null,{"$f":"PlanifierJour","v":""},{"$f":"TotauxHeuresQuotidiennes","v":""}]
[null,{"$f":"PlanifierJour","v":""},{"$f":"TotauxHeuresQuotidiennes","v":""}]
[null,{"$f":"PlanifierJour","v":""},{"$f":"TotauxHeuresQuotidiennes","v":""}]
[null,{"$f":"PlanifierJour","v":""},{"$f":"TotauxHeuresQuotidiennes","v":""}]
[null,{"$f":"PlanifierJour","v":""},{"$f":"TotauxHeuresQuotidiennes","v":""}]
[null,{"$f":"PlanifierJour","v":""},{"$f":"TotauxHeuresQuotidiennes","v":""}]
[null,{"$f":"PlanifierJour","v":""},{"$f":"TotauxHeuresQuotidiennes","v":""}]
[null,{"$f":"PlanifierJour","v":""},{"$f":"TotauxHeuresQuotidiennes","v":""}]
[null,{"$f":"PlanifierJour","v":""},{"$f":"TotauxHeuresQuotidiennes","v":""}]
[null,{"$f":"PlanifierJour","v":""},{"$f":"TotauxHeuresQuotidiennes","v":""}]
[null,{"$f":"PlanifierJour","v":""},{"$f":"TotauxHeuresQuotidiennes","v":""}]
[null,{"$f":"PlanifierJour","v":""},{"$f":"TotauxHeuresQuotidiennes","v":""}]
[null,{"$f":"PlanifierJour","v":""},{"$f":"TotauxHeuresQuotidiennes","v":""}]
[null,{"$f":"PlanifierJour","v":""},{"$f":"TotauxHeuresQuotidiennes","v":""}]
[null,{"$f":"PlanifierJour","v":""},{"$f":"TotauxHeuresQuotidiennes","v":""}]
[null,{"$f":"PlanifierJour","v":""},{"$f":"TotauxHeuresQuotidiennes","v":""}]
[null,{"$f":"PlanifierJour","v":""},{"$f":"TotauxHeuresQuotidiennes","v":""}]
[null,{"$f":"PlanifierJour","v":""},{"$f":"TotauxHeuresQuotidiennes","v":""}]
[null,{"$f":"PlanifierJour","v":""},{"$f":"TotauxHeuresQuotidiennes","v":""}]
[null,{"$f":"PlanifierJour","v":""},{"$f":"TotauxHeuresQuotidiennes","v":""}]
[null,{"$f":"PlanifierJour","v":""},{"$f":"TotauxHeuresQuotidiennes","v":""}]
[null,{"$f":"PlanifierJour","v":""},{"$f":"TotauxHeuresQuotidiennes","v":""}]
[null,{"$f":"PlanifierJour","v":""},{"$f":"TotauxHeuresQuotidiennes","v":""}]
[null,{"$f":"PlanifierJour","v":""},{"$f":"TotauxHeuresQuotidiennes","v":""}]

{"sheet":"Semaine type","index":26,"n_rows":103,"n_cols":24,"rows_kept":103,"cut":false,"hidden":false,"merged":[[16,8,17,8],[16,11,20,11],[21,11,22,11],[3,21,3,23],[6,5,9,5],[6,8,7,8],[11,5,12,5],[11,8,12,8],[11,13,11,14],[3,3,3,5],[3,6,3,8],[3,9,3,11],[3,12,3,14],[3,15,3,17],[3,18,3,20]]}
[]
[null,"Social networks"]
[]
[null,"Entrez la date de début","Totaux","Facebook Chambéry",null,null,"Twitter Chambéry",null,null,"FB Annecy",null,null,"Twitter Annecy",null,null,"Viadeo FS",null,null,"Linkedin FS",null,null,"FB Skyline"]
[null,"2016-03-07",null,null,null,"THEME",null,null,"THEME",null,null,"THEME",null,null,"THEME",null,null,"THEME",null,null,"THEME",null,null,"THEME"]
[]
[null,{"$f":"PlanifierJour","v":"2016-03-07"},{"$f":"TotauxHeuresQuotidiennes","v":0},0,null,"La citation du lundi",0,null,null,0,null,"Astuces",0,null,null,null,null,null,0]
[null,{"$f":"PlanifierJour","v":""},{"$f":"TotauxHeuresQuotidiennes","v":""}]
[null,{"$f":"PlanifierJour","v":""},{"$f":"TotauxHeuresQuotidiennes","v":""}]
[null,{"$f":"PlanifierJour","v":""},{"$f":"TotauxHeuresQuotidiennes","v":""}]
[null,{"$f":"PlanifierJour","v":""},{"$f":"TotauxHeuresQuotidiennes","v":""}]
[null,{"$f":"PlanifierJour","v":"2016-03-08"},{"$f":"TotauxHeuresQuotidiennes","v":0},0,null,"Astuces",0,null,null,0,null,"Vidéo",0]
[null,{"$f":"PlanifierJour","v":""},{"$f":"TotauxHeuresQuotidiennes","v":""}]
[null,{"$f":"PlanifierJour","v":""},{"$f":"TotauxHeuresQuotidiennes","v":""}]
[null,{"$f":"PlanifierJour","v":""},{"$f":"TotauxHeuresQuotidiennes","v":""}]
[null,{"$f":"PlanifierJour","v":""},{"$f":"TotauxHeuresQuotidiennes","v":""}]
[null,{"$f":"PlanifierJour","v":"2016-03-09"},{"$f":"TotauxHeuresQuotidiennes","v":0},0,null,"Offre d'emploi",0,null,null,0,null,"Offre d'emploi",0]
[null,{"$f":"PlanifierJour","v":""},{"$f":"TotauxHeuresQuotidiennes","v":""}]
[null,{"$f":"PlanifierJour","v":""},{"$f":"TotauxHeuresQuotidiennes","v":""}]
[null,{"$f":"PlanifierJour","v":""},{"$f":"TotauxHeuresQuotidiennes","v":""}]
[null,{"$f":"PlanifierJour","v":""},{"$f":"TotauxHeuresQuotidiennes","v":""}]
[null,{"$f":"PlanifierJour","v":"2016-03-10"},{"$f":"TotauxHeuresQuotidiennes","v":0},0,null,"vidéo",0,null,null,0,null,"La citation du jeudi",0]
[null,{"$f":"PlanifierJour","v":""},{"$f":"TotauxHeuresQuotidiennes","v":""}]
[null,{"$f":"PlanifierJour","v":""},{"$f":"TotauxHeuresQuotidiennes","v":""}]
[null,{"$f":"PlanifierJour","v":""},{"$f":"TotauxHeuresQuotidiennes","v":""}]
[null,{"$f":"PlanifierJour","v":""},{"$f":"TotauxHeuresQuotidiennes","v":""}]
[null,{"$f":"PlanifierJour","v":"2016-03-11"},{"$f":"TotauxHeuresQuotidiennes","v":0},0,null,"Agenda",0,null,null,0,null,"Agenda"]
[null,{"$f":"PlanifierJour","v":""},{"$f":"TotauxHeuresQuotidiennes","v":""}]
[null,{"$f":"PlanifierJour","v":""},{"$f":"TotauxHeuresQuotidiennes","v":""}]
[null,{"$f":"PlanifierJour","v":""},{"$f":"TotauxHeuresQuotidiennes","v":""}]
[null,{"$f":"PlanifierJour","v":""},{"$f":"TotauxHeuresQuotidiennes","v":""}]
[null,{"$f":"PlanifierJour","v":"2016-03-12"},{"$f":"TotauxHeuresQuotidiennes","v":0},0,null,"Prestations FS",0,null,null,0,null,"Prestations FS",0,null,null,0]
[null,{"$f":"PlanifierJour","v":""},{"$f":"TotauxHeuresQuotidiennes","v":""},null,null,"Avantages",null,null,null,null,null,"Avantages"]
[null,{"$f":"PlanifierJour","v":""},{"$f":"TotauxHeuresQuotidiennes","v":""}]
[null,{"$f":"PlanifierJour","v":""},{"$f":"TotauxHeuresQuotidiennes","v":""}]
[null,{"$f":"PlanifierJour","v":""},{"$f":"TotauxHeuresQuotidiennes","v":""}]
[null,{"$f":"PlanifierJour","v":"2016-03-13"},{"$f":"TotauxHeuresQuotidiennes","v":0},0,null,null,0,null,null,0,null,null,0]
[null,{"$f":"PlanifierJour","v":""},{"$f":"TotauxHeuresQuotidiennes","v":""}]
[null,{"$f":"PlanifierJour","v":""},{"$f":"TotauxHeuresQuotidiennes","v":""}]
[null,{"$f":"PlanifierJour","v":""},{"$f":"TotauxHeuresQuotidiennes","v":""}]
[null,{"$f":"PlanifierJour","v":""},{"$f":"TotauxHeuresQuotidiennes","v":""}]
[null,{"$f":"PlanifierJour","v":""},{"$f":"TotauxHeuresQuotidiennes","v":""}]
[null,{"$f":"PlanifierJour","v":""},{"$f":"TotauxHeuresQuotidiennes","v":""},null,null,"Réserve",null,null,"Journées internationales"]
[null,{"$f":"PlanifierJour","v":""},{"$f":"TotauxHeuresQuotidiennes","v":""}]
[null,{"$f":"PlanifierJour","v":""},{"$f":"TotauxHeuresQuotidiennes","v":""}]
[null,{"$f":"PlanifierJour","v":""},{"$f":"TotauxHeuresQuotidiennes","v":""}]
[null,{"$f":"PlanifierJour","v":""},{"$f":"TotauxHeuresQuotidiennes","v":""}]
[null,{"$f":"PlanifierJour","v":""},{"$f":"TotauxHeuresQuotidiennes","v":""}]
[null,{"$f":"PlanifierJour","v":""},{"$f":"TotauxHeuresQuotidiennes","v":""}]
[null,{"$f":"PlanifierJour","v":""},{"$f":"TotauxHeuresQuotidiennes","v":""}]
[null,{"$f":"PlanifierJour","v":""},{"$f":"TotauxHeuresQuotidiennes","v":""}]
[null,{"$f":"PlanifierJour","v":""},{"$f":"TotauxHeuresQuotidiennes","v":""}]
[null,{"$f":"PlanifierJour","v":""},{"$f":"TotauxHeuresQuotidiennes","v":""}]
[null,{"$f":"PlanifierJour","v":""},{"$f":"TotauxHeuresQuotidiennes","v":""}]
[null,{"$f":"PlanifierJour","v":""},{"$f":"TotauxHeuresQuotidiennes","v":""}]
[null,{"$f":"PlanifierJour","v":""},{"$f":"TotauxHeuresQuotidiennes","v":""}]
[null,{"$f":"PlanifierJour","v":""},{"$f":"TotauxHeuresQuotidiennes","v":""}]
[null,{"$f":"PlanifierJour","v":""},{"$f":"TotauxHeuresQuotidiennes","v":""}]
[null,{"$f":"PlanifierJour","v":""},{"$f":"TotauxHeuresQuotidiennes","v":""}]
[null,{"$f":"PlanifierJour","v":""},{"$f":"TotauxHeuresQuotidiennes","v":""}]
[null,{"$f":"PlanifierJour","v":""},{"$f":"TotauxHeuresQuotidiennes","v":""}]
[null,{"$f":"PlanifierJour","v":""},{"$f":"TotauxHeuresQuotidiennes","v":""}]
[null,{"$f":"PlanifierJour","v":""},{"$f":"TotauxHeuresQuotidiennes","v":""}]
[null,{"$f":"PlanifierJour","v":""},{"$f":"TotauxHeuresQuotidiennes","v":""}]
[null,{"$f":"PlanifierJour","v":""},{"$f":"TotauxHeuresQuotidiennes","v":""}]
[null,{"$f":"PlanifierJour","v":""},{"$f":"TotauxHeuresQuotidiennes","v":""}]
[null,{"$f":"PlanifierJour","v":""},{"$f":"TotauxHeuresQuotidiennes","v":""}]
[null,{"$f":"PlanifierJour","v":""},{"$f":"TotauxHeuresQuotidiennes","v":""}]
[null,{"$f":"PlanifierJour","v":""},{"$f":"TotauxHeuresQuotidiennes","v":""}]
[null,{"$f":"PlanifierJour","v":""},{"$f":"TotauxHeuresQuotidiennes","v":""}]
[null,{"$f":"PlanifierJour","v":""},{"$f":"TotauxHeuresQuotidiennes","v":""}]
[null,{"$f":"PlanifierJour","v":""},{"$f":"TotauxHeuresQuotidiennes","v":""}]
[null,{"$f":"PlanifierJour","v":""},{"$f":"TotauxHeuresQuotidiennes","v":""}]
[null,{"$f":"PlanifierJour","v":""},{"$f":"TotauxHeuresQuotidiennes","v":""}]
[null,{"$f":"PlanifierJour","v":""},{"$f":"TotauxHeuresQuotidiennes","v":""}]
[null,{"$f":"PlanifierJour","v":""},{"$f":"TotauxHeuresQuotidiennes","v":""}]
[null,{"$f":"PlanifierJour","v":""},{"$f":"TotauxHeuresQuotidiennes","v":""}]
[null,{"$f":"PlanifierJour","v":""},{"$f":"TotauxHeuresQuotidiennes","v":""}]
[null,{"$f":"PlanifierJour","v":""},{"$f":"TotauxHeuresQuotidiennes","v":""}]
[null,{"$f":"PlanifierJour","v":""},{"$f":"TotauxHeuresQuotidiennes","v":""}]
[null,{"$f":"PlanifierJour","v":""},{"$f":"TotauxHeuresQuotidiennes","v":""}]
[null,{"$f":"PlanifierJour","v":""},{"$f":"TotauxHeuresQuotidiennes","v":""}]
[null,{"$f":"PlanifierJour","v":""},{"$f":"TotauxHeuresQuotidiennes","v":""}]
[null,{"$f":"PlanifierJour","v":""},{"$f":"TotauxHeuresQuotidiennes","v":""}]
[null,{"$f":"PlanifierJour","v":""},{"$f":"TotauxHeuresQuotidiennes","v":""}]
[null,{"$f":"PlanifierJour","v":""},{"$f":"TotauxHeuresQuotidiennes","v":""}]
[null,{"$f":"PlanifierJour","v":""},{"$f":"TotauxHeuresQuotidiennes","v":""}]
[null,{"$f":"PlanifierJour","v":""},{"$f":"TotauxHeuresQuotidiennes","v":""}]
[null,{"$f":"PlanifierJour","v":""},{"$f":"TotauxHeuresQuotidiennes","v":""}]
[null,{"$f":"PlanifierJour","v":""},{"$f":"TotauxHeuresQuotidiennes","v":""}]
[null,{"$f":"PlanifierJour","v":""},{"$f":"TotauxHeuresQuotidiennes","v":""}]
[null,{"$f":"PlanifierJour","v":""},{"$f":"TotauxHeuresQuotidiennes","v":""}]
[null,{"$f":"PlanifierJour","v":""},{"$f":"TotauxHeuresQuotidiennes","v":""}]
[null,{"$f":"PlanifierJour","v":""},{"$f":"TotauxHeuresQuotidiennes","v":""}]
[null,{"$f":"PlanifierJour","v":""},{"$f":"TotauxHeuresQuotidiennes","v":""}]
[null,{"$f":"PlanifierJour","v":""},{"$f":"TotauxHeuresQuotidiennes","v":""}]
[null,{"$f":"PlanifierJour","v":""},{"$f":"TotauxHeuresQuotidiennes","v":""}]
[null,{"$f":"PlanifierJour","v":""},{"$f":"TotauxHeuresQuotidiennes","v":""}]
[null,{"$f":"PlanifierJour","v":""},{"$f":"TotauxHeuresQuotidiennes","v":""}]
[null,{"$f":"PlanifierJour","v":""},{"$f":"TotauxHeuresQuotidiennes","v":""}]
[null,{"$f":"PlanifierJour","v":""},{"$f":"TotauxHeuresQuotidiennes","v":""}]
[null,{"$f":"PlanifierJour","v":""},{"$f":"TotauxHeuresQuotidiennes","v":""}]
[null,{"$f":"PlanifierJour","v":""},{"$f":"TotauxHeuresQuotidiennes","v":""}]